Workbook

Sheet Guide
K2: INDEX
K3: SHEET 1 - IN_OUT
K4: SHEET 2 - LCOE TABLE
K5: SHEET 3 - TECHNOLOGY INPUTS
K6: SHEET 4 - INITIAL SIZE & COST CALCULATIONS
K7: SHEET 5 - LCOE CALCULATIONS
J10: color code | K10: Color coding of cells and their function
K11: Input cells - Users can provide inputs in these cells
K12: Fixed cells - Non editable cells
K13: Linked cells - Linked to other cells
K14: Calculation cells - Contains calculations and formulas
J15: Cells other than "Inputs cells" are protected. Protected cells cannot be modified or edited but users can copy the data to other workbooks and sheets. Users can view formulas and links.
J16: This work is licensed under a Creative Commons Attribution 3.0 International
J17: License: | K17: https://creativecommons.org/licenses/by/3.0/au/
K19: Document Control
J20: 2017-07-18 | K20: first draft | M20: K Lovegrove
J21: 2017-11-01 | K21: Formulas verified | M21: Ben Elliston
J22: 2018-04-08 | K22: Version for internal anaylsis | L22: 0.91 | M22: K Lovegrove
J23: 2018-05-23 | K23: Draft in preparation for public release | L23: 0.91pc | M23: K Urkalan
J24: 2018-07-05 | K24: Review version for ARENA | L24: 1 | M24: K Urkalan
J25: 2018-07-23 | K25: Revised based on comments from ARENA | L25: 1.1 | M25: K Urkalan
J26: 2018-08-08 | K26: Public release version | L26: 2 | M26: K Urkalan, K Lovegrove
J27: 2018-08-17 | K27: Public release version, minor revisions | L27: 2.1 | M27: K Urkalan, K Lovegrove

Sheet IN_OUT
B2: PARAMETERS | E2: UNITS | F2: INPUTS | Q2: Input Cells
B3: Nameplate capacity | E3: MW | F3: 100 | L3: ( best accuracy in range 10 - 200 MW ) | Q3: Fixed Cells
B4: Daily duration of delivery / storage | E4: Hours | F4: 6 | L4: ( valid for 0.5 - 48hrs ) | Q4: Linked Cells | S4: BACK TO INDEX
B5: Base Year | F5: =TechnologyInputs!E8 -> 2017 | L5: ( assumes base cost data is for this year) | Q5: Calculated Cells
B6: Target Year | F6: 2017 | L6: ( uncertainty increases projecting further into future)
B7: WACC | E7: % | F7: 0.065 | L7: (LCOEs are real or nominal according to assumptions in choosing WACC)
A8: TABLE 1: RENEWABLE ENERGY TECHNOLOGY AND STORAGE COMBINATIONS - AVAILABLE | L8: TABLE 2: RESULTS OF RENEWABLE ENERGY TECHNOLOGY COMBINATIONS [TARGET YEAR (Cell-F6), STORAGE HOURS (Cell-F4), WACC (Cell-F7)]. REFER FIGURE 1.0 FOR GRAPH
A9: SI No | B9: Renewable Energy Technology | C9: Energy Capture | D9: Initial energy conversion | E9: Energy Storage | F9: Energy Conversion | H9: Collector cost - (a) | I9: Conversion cost - (b) | J9: Storage cost - ( c ) | K9: Conversion cost (d) | L9: Total installed cost (a+b+c+d) | M9: Total specific cost | N9: =LCOECalc!BI9 -> TOTAL LCOE | AA9: =LCOECalc!BN9 -> LCOE collection | AB9: =LCOECalc!BO9 -> LCOE initial conversion | AC9: =LCOECalc!BP9 -> LCOE storage | AD9: =LCOECalc!BQ9 -> LCOE final conversion
H10: ='InitialSize&CostCalc'!AA10 -> AUD $ | I10: ='InitialSize&CostCalc'!AQ10 -> AUD $ | J10: ='InitialSize&CostCalc'!BH10 -> AUD $ | K10: ='InitialSize&CostCalc'!BX10 -> AUD $ | L10: ='InitialSize&CostCalc'!BZ10 -> AUD $ | M10: ='InitialSize&CostCalc'!CA10 -> mAUD$/MW | N10: =LCOECalc!BI10 -> AUD$/MWh
A11: 1 | B11: PV no storage | C11: =TechnologyInputs!B11 -> Utility PV | D11: =TechnologyInputs!C11 -> na | E11: =TechnologyInputs!D11 -> na | F11: =TechnologyInputs!E11 -> na | H11: ='InitialSize&CostCalc'!AA11 -> 187000000 | I11: ='InitialSize&CostCalc'!AQ11 -> 0 | J11: ='InitialSize&CostCalc'!BH11 -> 0 | K11: ='InitialSize&CostCalc'!BX11 -> 0 | L11: ='InitialSize&CostCalc'!BZ11 -> 187000000 | M11: ='InitialSize&CostCalc'!CA11 -> 1.87 | N11: =LCOECalc!BI11 -> 67.53091039 | Z11: =B11 -> PV no storage | AA11: =LCOECalc!BN11 -> 67.53091039 | AB11: =LCOECalc!BO11 -> 0 | AC11: =LCOECalc!BP11 -> 0 | AD11: =LCOECalc!BQ11 -> 0
A12: =A11+1 -> 2 | B12: Wind no storage | C12: =TechnologyInputs!B12 -> Wind | D12: =TechnologyInputs!C12 -> na | E12: =TechnologyInputs!D12 -> na | F12: =TechnologyInputs!E12 -> na | H12: ='InitialSize&CostCalc'!AA12 -> 218000000 | I12: ='InitialSize&CostCalc'!AQ12 -> 0 | J12: ='InitialSize&CostCalc'!BH12 -> 0 | K12: ='InitialSize&CostCalc'!BX12 -> 0 | L12: ='InitialSize&CostCalc'!BZ12 -> 218000000 | M12: ='InitialSize&CostCalc'!CA12 -> 2.18 | N12: =LCOECalc!BI12 -> 63.24766405 | Z12: Wind no storage | AA12: =LCOECalc!BN12 -> 63.24766405 | AB12: =LCOECalc!BO12 -> 0 | AC12: =LCOECalc!BP12 -> 0 | AD12: =LCOECalc!BQ12 -> 0
A13: 3 | B13: Utility PV/Batt | C13: =TechnologyInputs!B13 -> Utility PV | D13: =TechnologyInputs!C13 -> na | E13: =TechnologyInputs!D13 -> Batteries | F13: =TechnologyInputs!E13 -> Inverter | H13: ='InitialSize&CostCalc'!AA13 -> 422326429.5 | I13: ='InitialSize&CostCalc'!AQ13 -> 0 | J13: ='InitialSize&CostCalc'!BH13 -> 458490000 | K13: ='InitialSize&CostCalc'!BX13 -> 11777811.71 | L13: ='InitialSize&CostCalc'!BZ13 -> 892594241.2 | M13: ='InitialSize&CostCalc'!CA13 -> 8.925942412 | N13: =LCOECalc!BI13 -> 210.4172328 | Z13: Utility PV/Batt | AA13: =LCOECalc!BN13 -> 67.84708336 | AB13: =LCOECalc!BO13 -> 0 | AC13: =LCOECalc!BP13 -> 129.5813478 | AD13: =LCOECalc!BQ13 -> 12.98880164
A14: 4 | B14: Utility PV/PHES | C14: =TechnologyInputs!B14 -> Utility PV | D14: =TechnologyInputs!C14 -> na | E14: =TechnologyInputs!D14 -> Hydro Dam | F14: =TechnologyInputs!E14 -> Hydro turbine | H14: ='InitialSize&CostCalc'!AA14 -> 360711510.2 | I14: ='InitialSize&CostCalc'!AQ14 -> 0 | J14: ='InitialSize&CostCalc'!BH14 -> 31952068.77 | K14: ='InitialSize&CostCalc'!BX14 -> 184671662 | L14: ='InitialSize&CostCalc'!BZ14 -> 577335241 | M14: ='InitialSize&CostCalc'!CA14 -> 5.77335241 | N14: =LCOECalc!BI14 -> 126.0032123 | Z14: Utility PV/PHES | AA14: =LCOECalc!BN14 -> 77.83027166 | AB14: =LCOECalc!BO14 -> 0 | AC14: =LCOECalc!BP14 -> 7.105523979 | AD14: =LCOECalc!BQ14 -> 41.0674167
A15: 5 | B15: Utility PV/H2 | C15: =TechnologyInputs!B15 -> Utility PV | D15: =TechnologyInputs!C15 -> Electrolyser | E15: =TechnologyInputs!D15 -> Hydrogen | F15: =TechnologyInputs!E15 -> Fuel cell / GT | H15: ='InitialSize&CostCalc'!AA15 -> 361810794.5 | I15: ='InitialSize&CostCalc'!AQ15 -> 113027109 | J15: ='InitialSize&CostCalc'!BH15 -> 1667799.253 | K15: ='InitialSize&CostCalc'!BX15 -> 101193553.5 | L15: ='InitialSize&CostCalc'!BZ15 -> 577699256.3 | M15: ='InitialSize&CostCalc'!CA15 -> 5.776992563 | N15: =LCOECalc!BI15 -> 271.589024 | Z15: Utility PV/H2 | AA15: =LCOECalc!BN15 -> 186.6570844 | AB15: =LCOECalc!BO15 -> 47.98516658 | AC15: =LCOECalc!BP15 -> 0.7093158527 | AD15: =LCOECalc!BQ15 -> 36.23745722
A16: 6 | B16: Wind/Batt | C16: =TechnologyInputs!B16 -> Wind | D16: =TechnologyInputs!C16 -> na | E16: =TechnologyInputs!D16 -> Batteries | F16: =TechnologyInputs!E16 -> Inverter | H16: ='InitialSize&CostCalc'!AA16 -> 453142337.1 | I16: ='InitialSize&CostCalc'!AQ16 -> 0 | J16: ='InitialSize&CostCalc'!BH16 -> 458490000 | K16: ='InitialSize&CostCalc'!BX16 -> 11777811.71 | L16: ='InitialSize&CostCalc'!BZ16 -> 923410148.8 | M16: ='InitialSize&CostCalc'!CA16 -> 9.234101488 | N16: =LCOECalc!BI16 -> 165.2215644 | Z16: Wind/Batt | AA16: =LCOECalc!BN16 -> 64.78780969 | AB16: =LCOECalc!BO16 -> 0 | AC16: =LCOECalc!BP16 -> 88.39492049 | AD16: =LCOECalc!BQ16 -> 12.0388342
A17: 7 | B17: Wind/PHES | C17: =TechnologyInputs!B17 -> Wind | D17: =TechnologyInputs!C17 -> na | E17: =TechnologyInputs!D17 -> Hydro Dam | F17: =TechnologyInputs!E17 -> Hydro turbine | H17: ='InitialSize&CostCalc'!AA17 -> 372996030.6 | I17: ='InitialSize&CostCalc'!AQ17 -> 0 | J17: ='InitialSize&CostCalc'!BH17 -> 31952068.77 | K17: ='InitialSize&CostCalc'!BX17 -> 184671662 | L17: ='InitialSize&CostCalc'!BZ17 -> 589619761.4 | M17: ='InitialSize&CostCalc'!CA17 -> 5.896197614 | N17: =LCOECalc!BI17 -> 116.1340508 | Z17: Wind/PHES | AA17: =LCOECalc!BN17 -> 74.47972943 | AB17: =LCOECalc!BO17 -> 0 | AC17: =LCOECalc!BP17 -> 6.144025576 | AD17: =LCOECalc!BQ17 -> 35.51029583
A18: 8 | B18: Wind/H2 | C18: =TechnologyInputs!B18 -> Wind | D18: =TechnologyInputs!C18 -> Electrolyser | E18: =TechnologyInputs!D18 -> Cavern | F18: =TechnologyInputs!E18 -> Fuel cell / GT | H18: ='InitialSize&CostCalc'!AA18 -> 429117776.8 | I18: ='InitialSize&CostCalc'!AQ18 -> 113892599.7 | J18: ='InitialSize&CostCalc'!BH18 -> 1667799.253 | K18: ='InitialSize&CostCalc'!BX18 -> 101193553.5 | L18: ='InitialSize&CostCalc'!BZ18 -> 645871729.3 | M18: ='InitialSize&CostCalc'!CA18 -> 6.458717293 | N18: =LCOECalc!BI18 -> 229.6725356 | Z18: Wind/H2 | AA18: =LCOECalc!BN18 -> 175.9275145 | AB18: =LCOECalc!BO18 -> 30.46577688 | AC18: =LCOECalc!BP18 -> 0.4469223046 | AD18: =LCOECalc!BQ18 -> 22.83232192
A19: 9 | B19: Grid VRE/Batt | C19: =TechnologyInputs!B19 -> Grid VRE | D19: =TechnologyInputs!C19 -> na | E19: =TechnologyInputs!D19 -> Batteries | F19: =TechnologyInputs!E19 -> Inverter | H19: ='InitialSize&CostCalc'!AA19 -> 0 | I19: ='InitialSize&CostCalc'!AQ19 -> 0 | J19: ='InitialSize&CostCalc'!BH19 -> 458490000 | K19: ='InitialSize&CostCalc'!BX19 -> 11777811.71 | L19: ='InitialSize&CostCalc'!BZ19 -> 470267811.7 | M19: ='InitialSize&CostCalc'!CA19 -> 4.702678117 | N19: =LCOECalc!BI19 -> 157.2610174 | Z19: Grid VRE/Batt | AA19: =LCOECalc!BN19 -> 72.65476358 | AB19: =LCOECalc!BO19 -> 0 | AC19: =LCOECalc!BP19 -> 72.92425153 | AD19: =LCOECalc!BQ19 -> 11.68200228
A20: 10 | B20: Grid VRE/PHES | C20: =TechnologyInputs!B20 -> Grid VRE | D20: =TechnologyInputs!C20 -> na | E20: =TechnologyInputs!D20 -> Hydro Dam | F20: =TechnologyInputs!E20 -> Hydro turbine | H20: ='InitialSize&CostCalc'!AA20 -> 0 | I20: ='InitialSize&CostCalc'!AQ20 -> 0 | J20: ='InitialSize&CostCalc'!BH20 -> 31952068.77 | K20: ='InitialSize&CostCalc'!BX20 -> 184671662 | L20: ='InitialSize&CostCalc'!BZ20 -> 216623730.8 | M20: ='InitialSize&CostCalc'!CA20 -> 2.166237308 | N20: =LCOECalc!BI20 -> 108.4574801 | Z20: Grid VRE/PHES | AA20: =LCOECalc!BN20 -> 81.73660903 | AB20: =LCOECalc!BO20 -> 0 | AC20: =LCOECalc!BP20 -> 3.941336926 | AD20: =LCOECalc!BQ20 -> 22.77953411
A21: 11 | B21: Grid VRE/H2 | C21: =TechnologyInputs!B21 -> Grid VRE | D21: =TechnologyInputs!C21 -> Electrolyser | E21: =TechnologyInputs!D21 -> Hydrogen | F21: =TechnologyInputs!E21 -> Fuel cell / GT | H21: ='InitialSize&CostCalc'!AA21 -> 0 | I21: ='InitialSize&CostCalc'!AQ21 -> 313039304.3 | J21: ='InitialSize&CostCalc'!BH21 -> 1667799.253 | K21: ='InitialSize&CostCalc'!BX21 -> 101193553.5 | L21: ='InitialSize&CostCalc'!BZ21 -> 415900657 | M21: ='InitialSize&CostCalc'!CA21 -> 4.15900657 | N21: =LCOECalc!BI21 -> 257.4856613 | Z21: Grid VRE/H2 | AA21: =LCOECalc!BN21 -> 196.0992269 | AB21: =LCOECalc!BO21 -> 48.03300015 | AC21: =LCOECalc!BP21 -> 0.256363459 | AD21: =LCOECalc!BQ21 -> 13.09707071
A22: 12 | B22: Rooftop PV/Batt | C22: =TechnologyInputs!B22 -> Rooftop PV | D22: =TechnologyInputs!C22 -> na | E22: =TechnologyInputs!D22 -> Batteries | F22: =TechnologyInputs!E22 -> Inverter | H22: ='InitialSize&CostCalc'!AA22 -> 395924365 | I22: ='InitialSize&CostCalc'!AQ22 -> 0 | J22: ='InitialSize&CostCalc'!BH22 -> 458490000 | K22: ='InitialSize&CostCalc'!BX22 -> 11777811.71 | L22: ='InitialSize&CostCalc'!BZ22 -> 866192176.7 | M22: ='InitialSize&CostCalc'!CA22 -> 8.661921767 | N22: =LCOECalc!BI22 -> 337.4525598 | Z22: Rooftop PV/Batt | AA22: =LCOECalc!BN22 -> 152.1793671 | AB22: =LCOECalc!BO22 -> 0 | AC22: =LCOECalc!BP22 -> 171.3216484 | AD22: =LCOECalc!BQ22 -> 13.9515442
A23: 13 | B23: Conc. Solar | C23: =TechnologyInputs!B23 -> Conc. Solar | D23: =TechnologyInputs!C23 -> na | E23: =TechnologyInputs!D23 -> Molten Salt | F23: =TechnologyInputs!E23 -> Steam turbine | H23: ='InitialSize&CostCalc'!AA23 -> 298383920.6 | I23: ='InitialSize&CostCalc'!AQ23 -> 0 | J23: ='InitialSize&CostCalc'!BH23 -> 37145085.45 | K23: ='InitialSize&CostCalc'!BX23 -> 240000000 | L23: ='InitialSize&CostCalc'!BZ23 -> 575529006 | M23: ='InitialSize&CostCalc'!CA23 -> 5.75529006 | N23: =LCOECalc!BI23 -> 134.362868 | Z23: Conc. Solar | AA23: =LCOECalc!BN23 -> 64.01409381 | AB23: =LCOECalc!BO23 -> 0 | AC23: =LCOECalc!BP23 -> 9.428676052 | AD23: =LCOECalc!BQ23 -> 60.92009819
A24: 14 | B24: Biomass+AD | C24: =TechnologyInputs!B24 -> Biomass+AD | D24: =TechnologyInputs!C24 -> Digestor | E24: =TechnologyInputs!D24 -> Gas accumulator | F24: =TechnologyInputs!E24 -> Turbine /eng. | H24: ='InitialSize&CostCalc'!AA24 -> 0 | I24: ='InitialSize&CostCalc'!AQ24 -> 76220588.24 | J24: ='InitialSize&CostCalc'!BH24 -> 11352342.65 | K24: ='InitialSize&CostCalc'!BX24 -> 60060000 | L24: ='InitialSize&CostCalc'!BZ24 -> 147632930.9 | M24: ='InitialSize&CostCalc'!CA24 -> 1.476329309 | N24: =LCOECalc!BI24 -> 104.9989642 | Z24: Biomass+AD | AA24: =LCOECalc!BN24 -> 0 | AB24: =LCOECalc!BO24 -> 54.20933368 | AC24: =LCOECalc!BP24 -> 8.073972464 | AD24: =LCOECalc!BQ24 -> 42.71565801
A25: 15 | B25: Dry Biomass $5/GJ | C25: =TechnologyInputs!B25 -> Dry Biomass $5/GJ | D25: =TechnologyInputs!C25 -> na | E25: =TechnologyInputs!D25 -> Depot | F25: =TechnologyInputs!E25 -> Boiler&Turbine | H25: ='InitialSize&CostCalc'!AA25 -> 0 | I25: ='InitialSize&CostCalc'!AQ25 -> 0 | J25: ='InitialSize&CostCalc'!BH25 -> 443382.3529 | K25: ='InitialSize&CostCalc'!BX25 -> 340833000 | L25: ='InitialSize&CostCalc'!BZ25 -> 341276382.4 | M25: ='InitialSize&CostCalc'!CA25 -> 3.412763824 | N25: =LCOECalc!BI25 -> 258.8552194 | Z25: Dry Biomass $5/GJ | AA25: =LCOECalc!BN25 -> 75 | AB25: =LCOECalc!BO25 -> 0 | AC25: =LCOECalc!BP25 -> 0.2388625876 | AD25: =LCOECalc!BQ25 -> 183.6163568
A26: 16 | B26: Dry Biomass $2.5/GJ | C26: =TechnologyInputs!B26 -> Dry Biomass $2.5/GJ | D26: =TechnologyInputs!C26 -> na | E26: =TechnologyInputs!D26 -> Depot | F26: =TechnologyInputs!E26 -> Boiler&Turbine | H26: ='InitialSize&CostCalc'!AA26 -> 0 | I26: ='InitialSize&CostCalc'!AQ26 -> 0 | J26: ='InitialSize&CostCalc'!BH26 -> 443382.3529 | K26: ='InitialSize&CostCalc'!BX26 -> 340833000 | L26: ='InitialSize&CostCalc'!BZ26 -> 341276382.4 | M26: ='InitialSize&CostCalc'!CA26 -> 3.412763824 | N26: =LCOECalc!BI26 -> 221.3552194 | Z26: Dry Biomass $2.5/GJ | AA26: =LCOECalc!BN26 -> 37.5 | AB26: =LCOECalc!BO26 -> 0 | AC26: =LCOECalc!BP26 -> 0.2388625876 | AD26: =LCOECalc!BQ26 -> 183.6163568
A27: =A26+1 -> 17 | B27: HSA Geothermal | C27: =TechnologyInputs!B27 -> HSA Geothermal | D27: =TechnologyInputs!C27 -> na | E27: =TechnologyInputs!D27 -> Self | F27: =TechnologyInputs!E27 -> Turbine | H27: ='InitialSize&CostCalc'!AA27 -> 0 | I27: ='InitialSize&CostCalc'!AQ27 -> 0 | J27: ='InitialSize&CostCalc'!BH27 -> 0 | K27: ='InitialSize&CostCalc'!BX27 -> 509282252.5 | L27: ='InitialSize&CostCalc'!BZ27 -> 509282252.5 | M27: ='InitialSize&CostCalc'!CA27 -> 5.092822525 | N27: =LCOECalc!BI27 -> 224.5898508 | Z27: HSA Geothermal | AA27: =LCOECalc!BN27 -> 0 | AB27: =LCOECalc!BO27 -> 0 | AC27: =LCOECalc!BP27 -> 0 | AD27: =LCOECalc!BQ27 -> 224.5898508
A28: 18 | B28: EGS Geothermal | C28: =TechnologyInputs!B28 -> EGS Geothermal | D28: =TechnologyInputs!C28 -> na | E28: =TechnologyInputs!D28 -> Self | F28: =TechnologyInputs!E28 -> Turbine | H28: ='InitialSize&CostCalc'!AA28 -> 0 | I28: ='InitialSize&CostCalc'!AQ28 -> 0 | J28: ='InitialSize&CostCalc'!BH28 -> 0 | K28: ='InitialSize&CostCalc'!BX28 -> 1218770789 | L28: ='InitialSize&CostCalc'!BZ28 -> 1218770789 | M28: ='InitialSize&CostCalc'!CA28 -> 12.18770789 | N28: =LCOECalc!BI28 -> 537.4692486 | Z28: EGS Geothermal | AA28: =LCOECalc!BN28 -> 0 | AB28: =LCOECalc!BO28 -> 0 | AC28: =LCOECalc!BP28 -> 0 | AD28: =LCOECalc!BQ28 -> 537.4692486

Sheet LCOETable
B4: Storage hours | C4: 40 | D4: 35 | E4: 30 | F4: 25 | G4: 20 | H4: 15 | I4: 12 | J4: 10 | K4: 8 | L4: 7 | M4: 6 | N4: 4 | O4: 2 | P4: 1 | Q4: 0.5 | S4: BACK TO INDEX | AB4: Input Cells
B5: ( valid for 0.5 - 48hrs ) | AB5: Fixed Cells
AB6: Linked Cells
B7: TABLE3: LCOE RESULTS 0.5 HOURS TO 40 HOURS FOR SAID TARGET YEAR | AB7: Calculated Cells
B8: Nameplate capacity | D8: Base Year | E8: Target Year | F8: WACC | G8: Daily duration of delivery / storage | H8: Utility PV/Batt | I8: Utility PV/PHES | J8: Utility PV/H2 | K8: Wind/Batt | L8: Wind/PHES | M8: Wind/H2 | N8: Grid VRE/Batt | O8: Grid VRE/PHES | P8: Grid VRE/H2 | Q8: Rooftop PV/Batt | R8: Conc. Solar | S8: Biomass+AD | T8: Dry Biomass $5/GJ | U8: Dry Biomass $2.5/GJ | V8: HSA Geothermal | W8: EGS Geothermal | X8: Pure Variable Renewable Energy | Y8: Overall Dispatchable Renewable Energy
B10: =IN_OUT!F3 -> 100 | D10: =IN_OUT!F5 -> 2017 | E10: =IN_OUT!F6 -> 2017 | F10: =IN_OUT!F7 -> 0.065 | G10: =IN_OUT!F4 -> 6 | H10: =IN_OUT!N13 -> 210.4172328 | I10: =IN_OUT!N14 -> 126.0032123 | J10: =IN_OUT!N15 -> 271.589024 | K10: =IN_OUT!N16 -> 165.2215644 | L10: =IN_OUT!N17 -> 116.1340508 | M10: =IN_OUT!N18 -> 229.6725356 | N10: =IN_OUT!N19 -> 157.2610174 | O10: =IN_OUT!N20 -> 108.4574801 | P10: =IN_OUT!N21 -> 257.4856613 | Q10: =IN_OUT!N22 -> 337.4525598 | R10: =IN_OUT!N23 -> 134.362868 | S10: =IN_OUT!N24 -> 104.9989642 | T10: =IN_OUT!N25 -> 258.8552194 | U10: =IN_OUT!N26 -> 221.3552194 | V10: =IN_OUT!N27 -> 224.5898508 | W10: =IN_OUT!N28 -> 537.4692486 | X10: =(IN_OUT!N11+IN_OUT!N12)/2 -> 65.38928722 | Y10: =1.7*X10 -> 111.1617883
B16: TABLE 4: PASTE VALUES FROM ROWS 14 TO GET GRAPH OF 0.5 TO 40 HOURS OF STORAGE FOR TARGET YEAR - REFER FIGURE 2 FOR GRAPH
B17: Nameplate capacity | C17: Length of analysis | D17: Base Year | E17: Target Year | F17: WACC | G17: Daily duration of delivery / storage | H17: Utility PV/Batt | I17: Utility PV/PHES | J17: Utility PV/H2 | K17: Wind/Batt | L17: Wind/PHES | M17: Wind/H2 | N17: Grid VRE/Batt | O17: Grid VRE/PHES | P17: Grid VRE/H2 | Q17: Rooftop PV/Batt | R17: Conc. Solar | S17: Biomass+AD | T17: Dry Biomass $5/GJ | U17: Dry Biomass $2.5/GJ | V17: HSA Geothermal | W17: EGS Geothermal | X17: Pure VRE | Y17: Overall Dispatchable RE
B18: 100 | D18: 2017 | E18: 2017 | F18: 0.065 | G18: 0.5 | H18: 111.1636173 | I18: 180.4089295 | J18: 271.3475864 | K18: 94.88195537 | L18: 118.3901043 | M18: 234.0340692 | N18: 91.18634493 | O18: 107.303225 | P18: 260.276657 | Q18: 202.6678826 | R18: 178.8690207 | S18: 607.2448911 | T18: 2278.416187 | U18: 2240.916187 | V18: 2695.07821 | W18: 6449.630983 | X18: 65.38928722 | Y18: 111.1617883
B19: 100 | D19: 2017 | E19: 2017 | F19: 0.065 | G19: 1 | H19: 123.8479654 | I19: 159.2693965 | J19: 271.3620784 | K19: 102.2723478 | L19: 117.7796929 | M19: 233.5887212 | N19: 97.69718615 | O19: 107.5116396 | P19: 259.9449248 | Q19: 225.1261536 | R19: 170.5446547 | S19: 334.9340932 | T19: 1176.737951 | U19: 1139.237951 | V19: 1347.539105 | W19: 3224.815492 | X19: 65.38928722 | Y19: 111.1617883
B20: 100 | D20: 2017 | E20: 2017 | F20: 0.065 | G20: 2 | H20: 146.279312 | I20: 140.8230443 | J20: 271.3898944 | K20: 116.9166426 | L20: 117.2133239 | M20: 232.6652636 | N20: 110.3311222 | O20: 107.7799305 | P20: 259.3322773 | Q20: 257.9625802 | R20: 158.4132119 | S20: 193.51101 | T20: 625.9286913 | U20: 588.4286913 | V20: 673.7695525 | W20: 1612.407746 | X20: 65.38928722 | Y20: 111.1617883
B21: 100 | D21: 2017 | E21: 2017 | F21: 0.065 | G21: 4 | H21: 181.5602007 | I21: 129.104052 | J21: 271.4749 | K21: 142.6932302 | L21: 116.5904427 | M21: 231.0074282 | N21: 134.3772162 | O21: 108.1428893 | P21: 258.3009486 | Q21: 302.8070565 | R21: 143.3170059 | S21: 127.2539012 | T21: 350.5837769 | U21: 313.0837769 | V21: 336.8847762 | W21: 806.2038729 | X21: 65.38928722 | Y21: 111.1617883
B22: 100 | D22: 2017 | E22: 2017 | F22: 0.065 | G22: 6 | H22: 210.4172328 | I22: 126.0032123 | J22: 271.589024 | K22: 165.2215644 | L22: 116.1340508 | M22: 229.6725356 | N22: 157.2610174 | O22: 108.4574801 | P22: 257.4856613 | Q22: 337.4525598 | R22: 134.362868 | S22: 104.9989642 | T22: 258.8552194 | U22: 221.3552194 | V22: 224.5898508 | W22: 537.4692486 | X22: 65.38928722 | Y22: 111.1617883
B23: 100 | D23: 2017 | E23: 2017 | F23: 0.065 | G23: 7 | H23: 223.6772222 | I23: 125.5352821 | J23: 271.6516829 | K23: 175.764029 | L23: 115.9337925 | M23: 229.113675 | N23: 168.3946386 | O23: 108.616045 | P23: 257.1442427 | Q23: 353.2703869 | R23: 131.1760856 | S23: 98.44817327 | T23: 232.6641217 | U23: 195.1641217 | V23: 192.5055864 | W23: 460.6879274 | X23: 65.38928722 | Y23: 111.1617883
B24: 100 | D24: 2017 | E24: 2017 | F24: 0.065 | G24: 8 | H24: 236.4943666 | I24: 125.4237395 | J24: 271.7161374 | K24: 185.9949129 | L24: 115.7473317 | M24: 228.6176333 | N24: 179.3727149 | O24: 108.7787593 | P24: 256.8403783 | Q24: 368.5939882 | R24: 128.5743764 | S24: 93.4229416 | T24: 213.0307511 | U24: 175.5307511 | V24: 168.4423881 | W24: 403.1019365 | X24: 65.38928722 | Y24: 111.1617883
B25: 100 | D25: 2017 | E25: 2017 | F25: 0.065 | G25: 10 | H25: 261.3666198 | I25: 125.7913458 | J25: 271.8469365 | K25: 205.848067 | L25: 115.4099327 | M25: 227.7875039 | N25: 200.9743792 | O25: 109.1197707 | P25: 256.3290068 | Q25: 398.5216244 | R25: 124.6450342 | S25: 86.11848485 | T25: 185.5679184 | U25: 148.0679184 | V25: 134.7539105 | W25: 322.4815492 | X25: 65.38928722 | Y25: 111.1617883
B26: 100 | D26: 2017 | E26: 2017 | F26: 0.065 | G26: 12 | H26: 285.7935811 | I26: 126.5428549 | J26: 271.9768851 | K26: 225.2501364 | L26: 115.1145546 | M26: 227.1354611 | N26: 222.2451769 | O26: 109.48229 | P26: 255.9236563 | Q26: 428.1989762 | R26: 121.9047002 | S26: 80.949811 | T26: 167.2859036 | U26: 129.7859036 | V26: 112.2949254 | W26: 268.7346243 | X26: 65.38928722 | Y26: 111.1617883
B27: 100 | D27: 2017 | E27: 2017 | F27: 0.065 | G27: 15 | H27: 322.4061346 | I27: 127.9250598 | J27: 272.166265 | K27: 254.0711022 | L27: 114.7417219 | M27: 226.4126423 | N27: 253.7911624 | O27: 110.0620853 | P27: 255.4683886 | Q27: 473.1581711 | R27: 119.2332317 | S27: 75.33258312 | T27: 149.0436992 | U27: 111.5436992 | V27: 89.83594033 | W27: 214.9876994 | X27: 65.38928722 | Y27: 111.1617883
B28: 100 | D28: 2017 | E28: 2017 | F28: 0.065 | G28: 20 | H28: 384.6184256 | I28: 130.3475466 | J28: 272.4641108 | K28: 302.373412 | L28: 114.2843608 | M28: 225.6789049 | N28: 305.9933491 | O28: 111.099833 | P28: 254.9938713 | Q28: 550.4794271 | R28: 117.0727039 | S28: 68.81824719 | T28: 130.8811157 | U28: 93.38111567 | V28: 67.37695525 | W28: 161.2407746 | X28: 65.38928722 | Y28: 111.1617883
B29: 100 | D29: 2017 | E29: 2017 | F29: 0.065 | G29: 25 | H29: 448.8885572 | I29: 132.7002177 | J29: 272.741999 | K29: 351.6250341 | L29: 114.0008736 | M29: 225.3132557 | N29: 358.2135637 | O29: 112.190799 | P29: 254.7435426 | Q29: 631.046741 | R29: 116.5276544 | S29: 60.07286275 | T29: 121.7500609 | U29: 84.25006087 | V29: 56.1474627 | W29: 134.3673122 | X29: 65.38928722 | Y29: 111.1617883
B30: 100 | D30: 2017 | E30: 2017 | F30: 0.065 | G30: 30 | H30: 515.0976197 | I30: 134.9543373 | J30: 273.0039232 | K30: 401.9273514 | L30: 113.8612855 | M30: 225.1623474 | N30: 410.6742596 | O30: 113.304521 | P30: 254.6249944 | Q30: 714.3704517 | R30: 116.8944348 | S30: 60.07286275 | T30: 121.9192552 | U30: 84.4192552 | V30: 56.1474627 | W30: 134.3673122 | X30: 65.38928722 | Y30: 111.1617883
B31: 100 | D31: 2017 | E31: 2017 | F31: 0.065 | G31: 35 | H31: 582.8716557 | I31: 137.1207449 | J31: 273.2530698 | K31: 453.1401173 | L31: 113.8412447 | M31: 225.1374983 | N31: 463.4220098 | O31: 114.421326 | P31: 254.5842857 | Q31: 799.7775791 | R31: 117.8158021 | S31: 60.07286275 | T31: 122.0884495 | U31: 84.58844953 | V31: 56.1474627 | W31: 134.3673122 | X31: 65.38928722 | Y31: 111.1617883
B32: 100 | D32: 2017 | E32: 2017 | F32: 0.065 | G32: 40 | H32: 651.8190808 | I32: 139.2119488 | J32: 273.4917357 | K32: 505.0671337 | L32: 113.9211008 | M32: 225.1864243 | N32: 516.4324466 | O32: 115.5291883 | P32: 254.5895045 | Q32: 886.662456 | R32: 119.0894632 | S32: 60.07286275 | T32: 122.2576439 | U32: 84.75764387 | V32: 56.1474627 | W32: 134.3673122 | X32: 65.38928722 | Y32: 111.1617883

Sheet TechnologyInputs
B2: Global inputs | P2: Input Cells
B3: =IN_OUT!B3 -> Nameplate capacity | E3: =IN_OUT!F3 -> 100 | F3: =IN_OUT!E3 -> MW | P3: Fixed Cells
B4: =IN_OUT!B4 -> Daily duration of delivery / storage | E4: =IN_OUT!F4 -> 6 | F4: =IN_OUT!E4 -> Hours | P4: Linked Cells | S4: BACK TO INDEX
B5: =IN_OUT!B6 -> Target Year | E5: =IN_OUT!F6 -> 2017 | P5: Calculated Cells
B6: =IN_OUT!B7 -> WACC | E6: =IN_OUT!F7 -> 0.065 | F6: =IN_OUT!E7 -> %
B8: =IN_OUT!B5 -> Base Year | E8: 2017 | G8: (base year must align with data value inputs below) | Q8: Energy Capture | AC8: Initial Energy Conversion | AM8: Energy Storage | AX8: Final Energy Conversion
B9: Energy Capture | C9: Initial energy conversion | D9: Energy Storage | E9: Energy Conversion | F9: Collector size base multiplier | G9: Collector size exponent | H9: Collector size multiplier for min LCOE | I9: Capacity factor - Coefficient A | J9: Capacity Factor - Coefficient B | K9: Capacity factor of output | N9: Specific Installed cost | O9: baseline capacity | P9: Capture capacity factor | Q9: Power law size exponent | R9: Life-time | S9: Fixed O&M cost | T9: Variable O&M cost | U9: Input energy/ fuel cost | V9: Cost progress ratio | W9: deployment growth | Y9: Specific Installed cost | Z9: baseline capacity | AA9: Power law size exponent | AB9: Lifetime | AC9: Fixed O&M cost | AD9: Variable O&M cost | AE9: efficiency | AF9: Cost progress ratio | AG9: deployment growth | AI9: Specific Installed cost _ Energy | AJ9: baseline capacity | AK9: Power law size exponent | AL9: Lifetime | AM9: Fixed O&M cost | AN9: Variable O&M cost | AO9: % average capacity over lifetime | AP9: efficiency | AQ9: Cost progress ratio | AR9: deployment growth | AT9: Specific Installed cost | AU9: baseline capacity | AV9: Power law size exponent | AW9: Lifetime | AX9: Fixed O&M cost | AY9: Variable O&M cost | AZ9: efficiency | BA9: Cost progress ratio | BB9: deployment growth
N10: m$/MW | O10: MW | R10: year | S10: %/yr | T10: $/MWh | U10: $/MWh | W10: %/yr | Y10: m$/MW | AC10: %/yr | AD10: $/MWh | AG10: %/yr | AI10: $/MWh | AJ10: MWh | AL10: Year | AM10: %/yr | AN10: $/MWh | AR10: %/yr | AT10: m$/MW | AX10: %/yr | AY10: $/MWh | BB10: %/yr
A11: 1 | B11: Utility PV | C11: na | D11: na | E11: na | F11: 1 | G11: 0 | H11: =F11*$E$4^G11 -> 1 | I11: 0 | J11: 0 | K11: =P11 -> 0.28 | N11: 1.87 | O11: 100 | P11: 0.28 | Q11: 0.89 | R11: 30 | S11: 0.012 | T11: 0 | U11: 0 | V11: 0.85 | W11: 0.2 | Y11: 0 | Z11: 1 | AA11: 1 | AB11: 30 | AC11: 0 | AD11: 0 | AE11: 1 | AF11: 1 | AG11: 0 | AI11: 0 | AJ11: 1 | AK11: 1 | AL11: 30 | AM11: 0 | AN11: 0 | AO11: 1 | AP11: 1 | AQ11: 1 | AR11: 0 | AT11: 0 | AU11: 1 | AV11: 1 | AW11: 30 | AX11: 0 | AY11: 0 | AZ11: 1 | BA11: 1 | BB11: 0
A12: =A11+1 -> 2 | B12: Wind | C12: na | D12: na | E12: na | F12: 1 | G12: 0 | H12: =F12*$E$4^G12 -> 1 | I12: 0 | J12: 0 | K12: =P12 -> 0.38 | N12: 2.18 | O12: 100 | P12: 0.38 | Q12: 0.9 | R12: 30 | S12: 0.02 | T12: 0 | U12: 0 | V12: 0.85 | W12: 0.1 | Y12: 0 | Z12: 1 | AA12: 1 | AB12: 30 | AC12: 0 | AD12: 0 | AE12: 1 | AF12: 1 | AG12: 0 | AI12: 0 | AJ12: 1 | AK12: 1 | AL12: 30 | AM12: 0 | AN12: 0 | AO12: 1 | AP12: 1 | AQ12: 1 | AR12: 0 | AT12: 0 | AU12: 1 | AV12: 1 | AW12: 30 | AX12: 0 | AY12: 0 | AZ12: 1 | BA12: 1 | BB12: 0
A13: =A12+1 -> 3 | B13: Utility PV | C13: na | D13: Batteries | E13: Inverter | F13: 0.9743 | G13: 0.4666 | H13: 2.247905635 | I13: 0.11148 | J13: 0.71037 | K13: =0.75-1/(EXP(I13*$E$4+J13)) -> 0.4982326923 | N13: 1.87 | O13: 100 | P13: 0.28 | Q13: 0.89 | R13: 30 | S13: 0.012 | T13: 0 | U13: 0 | V13: 0.85 | W13: 0.3 | Y13: 0 | Z13: 1 | AA13: 1 | AB13: 30 | AC13: 0 | AD13: 0 | AE13: 1 | AF13: 1 | AG13: 0 | AI13: 687735 | AJ13: 1 | AK13: 1 | AL13: 15 | AM13: 0.017 | AN13: 0 | AO13: 0.9 | AP13: 0.9 | AQ13: 0.85 | AR13: 0.4 | AT13: 0.39 | AU13: 1 | AV13: 0.74 | AW13: 20 | AX13: 0.02 | AY13: 10 | AZ13: 1 | BA13: 0.85 | BB13: 0.4
A14: =A13+1 -> 4 | B14: Utility PV | C14: na | D14: Hydro Dam | E14: Hydro turbine | F14: 1.3214 | G14: 0.1319 | H14: 1.6736801 | I14: 0.4061581197 | J14: 0.9375114621 | K14: =0.53-1/EXP(I14*$E$4+J14) -> 0.4957634051 | N14: =N$13 -> 1.87 | O14: 100 | P14: 0.28 | Q14: 0.89 | R14: 30 | S14: 0.012 | T14: 0 | U14: 0 | V14: 0.85 | W14: 0.3 | Y14: 0 | Z14: 1 | AA14: 1 | AB14: 30 | AC14: 0 | AD14: 0 | AE14: 1 | AF14: 1 | AG14: 0 | AI14: 37000 | AJ14: 1200 | AK14: 0.7 | AL14: 30 | AM14: 0.02 | AN14: 0 | AO14: 1 | AP14: 1 | AQ14: 0.85 | AR14: 0.05 | AT14: 1.5 | AU14: 200 | AV14: 0.7 | AW14: 30 | AX14: 0.02 | AY14: 0 | AZ14: 0.8 | BA14: 0.85 | BB14: 0.05
A15: =A14+1 -> 5 | B15: Utility PV | C15: Electrolyser | D15: Hydrogen | E15: Fuel cell / GT | F15: 0.7 | G15: 0 | H15: 0.7 | I15: 0.33907 | J15: 6.24983 | K15: =0.34-1/(EXP(I15*$E$4+J15)) -> 0.339747538 | N15: 1.87 | O15: 100 | P15: 0.28 | Q15: 0.89 | R15: 30 | S15: 0.012 | T15: 0 | U15: 0 | V15: 0.85 | W15: 0.3 | Y15: 1.09 | Z15: 20 | AA15: 0.7 | AB15: 15 | AC15: 0.02 | AD15: 0 | AE15: 0.65 | AF15: 0.85 | AG15: 0.2 | AI15: 655 | AJ15: 20000 | AK15: 0.7 | AL15: 30 | AM15: 0.05 | AN15: 0 | AO15: 1 | AP15: 0.9 | AQ15: 0.85 | AR15: 0.2 | AT15: 1.64 | AU15: 20 | AV15: 0.7 | AW15: 30 | AX15: 0.03 | AY15: 0 | AZ15: 0.57 | BA15: 0.85 | BB15: 0.2
A16: 6 | B16: Wind | C16: na | D16: Batteries | E16: Inverter | F16: 0.9933 | G16: 0.3987 | H16: 2.029220958 | I16: 0.1068704692 | J16: 0.6695097459 | K16: =1-1/(EXP(I16*$E$4+J16)) -> 0.7303775309 | N16: 2.18 | O16: 100 | P16: 0.38 | Q16: 0.9 | R16: 30 | S16: 0.02 | T16: 0 | U16: 0 | V16: 0.85 | W16: 0.1 | Y16: =Y$13 -> 0 | Z16: =Z$13 -> 1 | AA16: 1 | AB16: 30 | AC16: 0 | AD16: 0 | AE16: 1 | AF16: 1 | AG16: 0 | AI16: =AI$13 -> 687735 | AJ16: =AJ$13 -> 1 | AK16: 1 | AL16: 15 | AM16: 0.017 | AN16: 0 | AO16: 0.9 | AP16: 0.9 | AQ16: 0.85 | AR16: 0.4 | AT16: =AT$13 -> 0.39 | AU16: =AU$13 -> 1 | AV16: 0.74 | AW16: 20 | AX16: 0.02 | AY16: 10 | AZ16: 1 | BA16: 0.85 | BB16: 0.4
A17: 7 | B17: Wind | C17: na | D17: Hydro Dam | E17: Hydro turbine | F17: 1.0678 | G17: 0.1719 | H17: 1.452961533 | I17: 0.02295006087 | J17: 0.7140839272 | K17: =1-1/(EXP(I17*$E$4+J17)) -> 0.5733470213 | N17: =N16 -> 2.18 | O17: =O16 -> 100 | P17: 0.38 | Q17: 0.9 | R17: 30 | S17: 0.02 | T17: 0 | U17: 0 | V17: 0.85 | W17: 0.1 | Y17: =Y14 -> 0 | Z17: 1 | AA17: 1 | AB17: 30 | AC17: 0 | AD17: 0 | AE17: 1 | AF17: 1 | AG17: 0 | AI17: =AI14 -> 37000 | AJ17: 1200 | AK17: 0.7 | AL17: 30 | AM17: 0.02 | AN17: 0 | AO17: 1 | AP17: 1 | AQ17: 0.85 | AR17: 0.05 | AT17: =AT14 -> 1.5 | AU17: 200 | AV17: 0.7 | AW17: 30 | AX17: 0.02 | AY17: 0 | AZ17: 0.8 | BA17: 0.85 | BB17: 0.05
A18: 8 | B18: Wind | C18: Electrolyser | D18: Cavern | E18: Fuel cell / GT | F18: 0.6012 | G18: 0.091 | H18: =F18*$E$4^G18 -> 0.7076699195 | I18: 0.09942089371 | J18: 2.051617707 | K18: =0.61-1/(EXP(I18*$E$4+J18)) -> 0.5392174707 | N18: =N17 -> 2.18 | O18: 100 | P18: 0.38 | Q18: 0.9 | R18: 30 | S18: 0.02 | T18: 0 | U18: 0 | V18: 0.85 | W18: 0.1 | Y18: =Y15 -> 1.09 | Z18: 20 | AA18: 0.7 | AB18: 15 | AC18: 0.02 | AD18: 0 | AE18: 0.65 | AF18: 0.85 | AG18: 0.2 | AI18: =AI15 -> 655 | AJ18: 20000 | AK18: 0.7 | AL18: 30 | AM18: 0.05 | AN18: 0 | AO18: 1 | AP18: 0.9 | AQ18: 0.85 | AR18: 0.2 | AT18: =AT15 -> 1.64 | AU18: 20 | AV18: 0.7 | AW18: 30 | AX18: 0.03 | AY18: 0 | AZ18: 0.57 | BA18: 0.85 | BB18: 0.2
A19: 9 | B19: Grid VRE | C19: na | D19: Batteries | E19: Inverter | F19: 3 | G19: 0 | H19: =F19*$E$4^G19 -> 3 | I19: 0.09638095138 | J19: 1.587367624 | K19: =1-1/(EXP(I19*$E$4+J19)) -> 0.8853250107 | N19: 0 | O19: 1 | P19: 0.8 | Q19: 1 | R19: 30 | S19: 0 | T19: 0 | U19: =(IN_OUT!$N$11+IN_OUT!$N$12)/2 -> 65.38928722 | V19: 0.85 | W19: 0.3 | Y19: =Y$13 -> 0 | Z19: =Z$13 -> 1 | AA19: 1 | AB19: 30 | AC19: 0 | AD19: 0 | AE19: 1 | AF19: 1 | AG19: 0 | AI19: =AI$13 -> 687735 | AJ19: =AJ$13 -> 1 | AK19: 1 | AL19: 15 | AM19: 0.017 | AN19: 0 | AO19: 0.9 | AP19: 0.9 | AQ19: 0.85 | AR19: 0.4 | AT19: =AT$13 -> 0.39 | AU19: =AU$13 -> 1 | AV19: 0.74 | AW19: 20 | AX19: 0.02 | AY19: 10 | AZ19: 1 | BA19: 0.85 | BB19: 0.4
A20: 10 | B20: Grid VRE | C20: na | D20: Hydro Dam | E20: Hydro turbine | F20: 3 | G20: 0 | H20: 3 | I20: 0.09534236612 | J20: 1.670118553 | K20: =1-1/(EXP(I20*$E$4+J20)) -> 0.8937725522 | N20: =N19 -> 0 | O20: =O19 -> 1 | P20: 0.8 | Q20: 1 | R20: 30 | S20: 0 | T20: 0 | U20: 65.38928722 | V20: 0.85 | W20: 0.3 | Y20: =Y14 -> 0 | Z20: 1 | AA20: 1 | AB20: 30 | AC20: 0 | AD20: 0 | AE20: 1 | AF20: 1 | AG20: 0 | AI20: =AI14 -> 37000 | AJ20: 1200 | AK20: 0.7 | AL20: 30 | AM20: 0.02 | AN20: 0 | AO20: 1 | AP20: 1 | AQ20: 0.85 | AR20: 0.05 | AT20: =AT14 -> 1.5 | AU20: 200 | AV20: 0.7 | AW20: 30 | AX20: 0.02 | AY20: 0 | AZ20: 0.8 | BA20: 0.85 | BB20: 0.05
A21: 11 | B21: Grid VRE | C21: Electrolyser | D21: Hydrogen | E21: Fuel cell / GT | F21: 3 | G21: 0 | H21: 3 | I21: 0.1 | J21: 2.213843997 | K21: =1-1/(EXP(I21*$E$4+J21)) -> 0.9400259912 | N21: =N20 -> 0 | O21: 1 | P21: 0.8 | Q21: 1 | R21: 30 | S21: 0 | T21: 0 | U21: 65.38928722 | V21: 0.85 | W21: 0.3 | Y21: =Y15 -> 1.09 | Z21: 20 | AA21: 0.7 | AB21: 15 | AC21: 0.02 | AD21: 0 | AE21: 0.65 | AF21: 0.85 | AG21: 0.2 | AI21: =AI15 -> 655 | AJ21: 20000 | AK21: 0.7 | AL21: 30 | AM21: 0.05 | AN21: 0 | AO21: 1 | AP21: 0.9 | AQ21: 0.85 | AR21: 0.2 | AT21: =AT15 -> 1.64 | AU21: 20 | AV21: 0.7 | AW21: 30 | AX21: 0.03 | AY21: 0 | AZ21: 0.57 | BA21: 0.85 | BB21: 0.2
A22: 12 | B22: Rooftop PV | C22: na | D22: Batteries | E22: Inverter | F22: 0.9142 | G22: 0.3724 | H22: =F22*$E$4^G22 -> 1.781659642 | I22: 0.1194016847 | J22: 0.7834774533 | K22: =0.6-1/(EXP(I22*$E$4+J22)) -> 0.37684475 | N22: 2 | O22: 0.005 | P22: 0.17 | Q22: 1 | R22: 25 | S22: 0.02 | T22: 0 | U22: 0 | V22: 0.85 | W22: 0.3 | Y22: =Y$13 -> 0 | Z22: =Z$13 -> 1 | AA22: 1 | AB22: 30 | AC22: 0 | AD22: 0 | AE22: 1 | AF22: 1 | AG22: 0 | AI22: =AI$13 -> 687735 | AJ22: =AJ$13 -> 1 | AK22: 1 | AL22: 15 | AM22: 0.017 | AN22: 0 | AO22: 0.9 | AP22: 0.9 | AQ22: 0.85 | AR22: 0.4 | AT22: =AT$13 -> 0.39 | AU22: =AU$13 -> 1 | AV22: 0.74 | AW22: 20 | AX22: 0.02 | AY22: 10 | AZ22: 1 | BA22: 0.85 | BB22: 0.4
A23: 13 | B23: Conc. Solar | C23: na | D23: Molten Salt | E23: Steam turbine | F23: 1.6453 | G23: 0.2863 | H23: =F23*$E$4^G23 -> 2.748082716 | I23: 0.07575090713 | J23: 0.5515251465 | K23: =0.8-1/(EXP(I23*$E$4+J23)) -> 0.4343324126 | N23: 0.46 | O23: 600 | P23: 0.187 | Q23: 0.9 | R23: 30 | S23: 0.02 | T23: 0 | U23: 0 | V23: 0.85 | W23: 0.2 | Y23: 0 | Z23: 1 | AA23: 1 | AB23: 30 | AC23: 0 | AD23: 0 | AE23: 1 | AF23: 1 | AG23: 0 | AI23: 26000 | AJ23: 1429 | AK23: 0.8 | AL23: 30 | AM23: 0.02 | AN23: 0 | AO23: 1 | AP23: 1 | AQ23: 0.85 | AR23: 0.2 | AT23: 2.4 | AU23: 100 | AV23: 0.7 | AW23: 30 | AX23: 0.02 | AY23: 0 | AZ23: 0.42 | BA23: 0.85 | BB23: 0.2
A24: 14 | B24: Biomass+AD | C24: Digestor | D24: Gas accumulator | E24: Turbine /eng. | F24: 1 | G24: 0.9 | H24: =MIN(1,$E$4/(24*G24)) -> 0.2777777778 | I24: 0 | J24: 0 | K24: =MIN(1,$E$4/24) -> 0.25 | N24: 0 | O24: 1 | P24: 1 | Q24: 1 | R24: 20 | S24: 0 | T24: 0 | U24: 0 | V24: 0.85 | W24: 0.05 | Y24: 1.42 | Z24: 7.26 | AA24: 0.7 | AB24: 20 | AC24: 0.065 | AD24: 0 | AE24: 1 | AF24: 0.85 | AG24: 0.05 | AI24: 12391 | AJ24: 11 | AK24: 0.8 | AL24: 20 | AM24: 0.065 | AN24: 0 | AO24: 1 | AP24: 1 | AQ24: 0.85 | AR24: 0.05 | AT24: 0.91 | AU24: 2.5 | AV24: 0.7 | AW24: 20 | AX24: 0.065 | AY24: 0 | AZ24: 0.34 | BA24: 0.85 | BB24: 0.05
A25: 15 | B25: Dry Biomass $5/GJ | C25: na | D25: Depot | E25: Boiler&Turbine | F25: 1 | G25: 0.85 | H25: =MIN(1,$E$4/(24*G25)) -> 0.2941176471 | I25: 0 | J25: 0 | K25: 0.25 | N25: 0 | O25: 1 | P25: 0.5 | Q25: 1 | R25: 25 | S25: 0 | T25: 0 | U25: 18 | V25: 0.85 | W25: 0.05 | Y25: 0 | Z25: 1 | AA25: 1 | AB25: 25 | AC25: 0 | AD25: 0 | AE25: 1 | AF25: 1 | AG25: 0 | AI25: 6.7 | AJ25: 44384 | AK25: 1 | AL25: 25 | AM25: 0.036 | AN25: 0 | AO25: 1 | AP25: 1 | AQ25: 0.85 | AR25: 0 | AT25: 4.89 | AU25: 15 | AV25: 0.7 | AW25: 25 | AX25: 0.036 | AY25: 0 | AZ25: 0.24 | BA25: 0.85 | BB25: 0.05
A26: 16 | B26: Dry Biomass $2.5/GJ | C26: na | D26: Depot | E26: Boiler&Turbine | F26: 1 | G26: 0.85 | H26: 0.2941176471 | I26: 0 | J26: 0 | K26: 0.25 | N26: 0 | O26: 1 | P26: 0.5 | Q26: 1 | R26: 25 | S26: 0 | T26: 0 | U26: 9 | V26: 0.85 | W26: 0.05 | Y26: 0 | Z26: 1 | AA26: 1 | AB26: 25 | AC26: 0 | AD26: 0 | AE26: 1 | AF26: 1 | AG26: 0 | AI26: 6.7 | AJ26: 44384 | AK26: 1 | AL26: 25 | AM26: 0.036 | AN26: 0 | AO26: 1 | AP26: 1 | AQ26: 0.85 | AR26: 0 | AT26: 4.89 | AU26: 15 | AV26: 0.7 | AW26: 25 | AX26: 0.036 | AY26: 0 | AZ26: 0.24 | BA26: 0.85 | BB26: 0.05
A27: =A26+1 -> 17 | B27: HSA Geothermal | C27: na | D27: Self | E27: Turbine | F27: 1 | G27: 0 | H27: =F27*$E$4^G27 -> 1 | I27: 0 | J27: 0 | K27: 0.25 | N27: 0 | O27: 50 | P27: 1 | Q27: 1 | R27: 30 | S27: 0.02 | T27: 0 | U27: 0 | V27: 0.85 | W27: 0.05 | Y27: 0 | Z27: 1 | AA27: 1 | AB27: 30 | AC27: 0 | AD27: 0 | AE27: 1 | AF27: 1 | AG27: 0 | AI27: 0 | AJ27: 1 | AK27: 1 | AL27: 30 | AM27: 0 | AN27: 0 | AO27: 1 | AP27: 1 | AQ27: 0.85 | AR27: 0 | AT27: 6.27 | AU27: 50 | AV27: 0.7 | AW27: 30 | AX27: 0.02 | AY27: 0 | AZ27: 0.2 | BA27: 0.85 | BB27: 0.05
A28: 18 | B28: EGS Geothermal | C28: na | D28: Self | E28: Turbine | F28: 1 | G28: 0 | H28: 1 | I28: 0 | J28: 0 | K28: 0.25 | N28: 0 | O28: 50 | P28: 1 | Q28: 1 | R28: 30 | S28: 0.02 | T28: 0 | U28: 0 | V28: 0.85 | W28: 0.05 | Y28: 0 | Z28: 1 | AA28: 1 | AB28: 30 | AC28: 0 | AD28: 0 | AE28: 1 | AF28: 1 | AG28: 0 | AI28: 0 | AJ28: 1 | AK28: 1 | AL28: 30 | AM28: 0 | AN28: 0 | AO28: 1 | AP28: 1 | AQ28: 0.85 | AR28: 0 | AT28: 14 | AU28: 50 | AV28: 0.8 | AW28: 30 | AX28: 0.02 | AY28: 0 | AZ28: 0.2 | BA28: 0.85 | BB28: 0.05
A42: DEFAULT TABLE VALUES - BASE YEAR | D42: 2017
B43: Energy Capture | C43: Initial energy conversion | D43: Energy Storage | E43: Energy Conversion | F43: Collector size base multiplier | G43: Collector size exponent | H43: Collector size multiplier for min LCOE | I43: Capacity factor paramater A | J43: Capacity Factor Parameter B | K43: Capacity factor of output | N43: Specific Installed cost | O43: baseline capacity | P43: Capture capacity factor | Q43: Power law size exponent | R43: Life-time | S43: Fixed O&M cost | T43: Variable O&M cost | U43: Input energy/ fuel cost | V43: Cost progress ratio | W43: deployment growth | Y43: Specific Installed cost | Z43: baseline capacity | AA43: Power law size exponent | AB43: Lifetime | AC43: Fixed O&M cost | AD43: Variable O&M cost | AE43: efficiency | AF43: Cost progress ratio | AG43: deployment growth | AI43: Specific Installed cost _ Energy | AJ43: baseline capacity | AK43: Power law size exponent | AL43: Lifetime | AM43: Fixed O&M cost | AN43: Variable O&M cost | AO43: % average capacity over lifetime | AP43: efficiency | AQ43: Cost progress ratio | AR43: deployment growth | AT43: Specific Installed cost | AU43: baseline capacity | AV43: Power law size exponent | AW43: Lifetime | AX43: Fixed O&M cost | AY43: Variable O&M cost | AZ43: efficiency | BA43: Cost progress ratio | BB43: deployment growth
N44: m$/MW | O44: MW | R44: year | S44: %/yr | T44: $/MWh | U44: $/MWh | W44: %/yr | Y44: m$/MW | AC44: %/yr | AD44: $/MWh | AG44: %/yr | AI44: $/MWh | AJ44: MWh | AL44: Year | AM44: %/yr | AN44: $/MWh | AR44: %/yr | AT44: m$/MW | AX44: %/yr | AY44: $/MWh | BB44: %/yr
A45: 1 | B45: Utility PV | C45: na | D45: na | E45: na | F45: 1 | G45: 0 | H45: =F45*$E$4^G45 -> 1 | I45: 0 | J45: 0 | K45: =P45 -> 0.28 | N45: 1.87 | O45: 100 | P45: 0.28 | Q45: 0.89 | R45: 30 | S45: 0.012 | T45: 0 | U45: 0 | V45: 0.85 | W45: 0.2 | Y45: 0 | Z45: 1 | AA45: 1 | AB45: 30 | AC45: 0 | AD45: 0 | AE45: 1 | AF45: 1 | AG45: 0 | AI45: 0 | AJ45: 1 | AK45: 1 | AL45: 30 | AM45: 0 | AN45: 0 | AO45: 1 | AP45: 1 | AQ45: 1 | AR45: 0 | AT45: 0 | AU45: 1 | AV45: 1 | AW45: 30 | AX45: 0 | AY45: 0 | AZ45: 1 | BA45: 1 | BB45: 0
A46: =A45+1 -> 2 | B46: Wind | C46: na | D46: na | E46: na | F46: 1 | G46: 0 | H46: =F46*$E$4^G46 -> 1 | I46: 0 | J46: 0 | K46: =P46 -> 0.38 | N46: 2.18 | O46: 100 | P46: 0.38 | Q46: 0.9 | R46: 30 | S46: 0.02 | T46: 0 | U46: 0 | V46: 0.85 | W46: 0.1 | Y46: 0 | Z46: 1 | AA46: 1 | AB46: 30 | AC46: 0 | AD46: 0 | AE46: 1 | AF46: 1 | AG46: 0 | AI46: 0 | AJ46: 1 | AK46: 1 | AL46: 30 | AM46: 0 | AN46: 0 | AO46: 1 | AP46: 1 | AQ46: 1 | AR46: 0 | AT46: 0 | AU46: 1 | AV46: 1 | AW46: 30 | AX46: 0 | AY46: 0 | AZ46: 1 | BA46: 1 | BB46: 0
A47: =A46+1 -> 3 | B47: Utility PV | C47: na | D47: Batteries | E47: Inverter | F47: 0.9743 | G47: 0.4666 | H47: 2.247905635 | I47: 0.11148 | J47: 0.71037 | K47: =0.75-1/(EXP(I47*$E$4+J47)) -> 0.4982326923 | N47: 1.87 | O47: 100 | P47: 0.28 | Q47: 0.89 | R47: 30 | S47: 0.012 | T47: 0 | U47: 0 | V47: 0.85 | W47: 0.3 | Y47: 0 | Z47: 1 | AA47: 1 | AB47: 30 | AC47: 0 | AD47: 0 | AE47: 1 | AF47: 1 | AG47: 0 | AI47: 687735 | AJ47: 1 | AK47: 1 | AL47: 15 | AM47: 0.017 | AN47: 0 | AO47: 0.9 | AP47: 0.9 | AQ47: 0.85 | AR47: 0.4 | AT47: 0.39 | AU47: 1 | AV47: 0.74 | AW47: 20 | AX47: 0.02 | AY47: 10 | AZ47: 1 | BA47: 0.85 | BB47: 0.4
A48: =A47+1 -> 4 | B48: Utility PV | C48: na | D48: Hydro Dam | E48: Hydro turbine | F48: 1.3214 | G48: 0.1319 | H48: 1.6736801 | I48: 0.4061581197 | J48: 0.9375114621 | K48: =0.53-1/EXP(I48*$E$4+J48) -> 0.4957634051 | N48: =N$13 -> 1.87 | O48: 100 | P48: 0.28 | Q48: 0.89 | R48: 30 | S48: 0.012 | T48: 0 | U48: 0 | V48: 0.85 | W48: 0.3 | Y48: 0 | Z48: 1 | AA48: 1 | AB48: 30 | AC48: 0 | AD48: 0 | AE48: 1 | AF48: 1 | AG48: 0 | AI48: 37000 | AJ48: 1200 | AK48: 0.7 | AL48: 30 | AM48: 0.02 | AN48: 0 | AO48: 1 | AP48: 1 | AQ48: 0.85 | AR48: 0.05 | AT48: 1.5 | AU48: 200 | AV48: 0.7 | AW48: 30 | AX48: 0.02 | AY48: 0 | AZ48: 0.8 | BA48: 0.85 | BB48: 0.05
A49: =A48+1 -> 5 | B49: Utility PV | C49: Electrolyser | D49: Hydrogen | E49: Fuel cell / GT | F49: 0.7 | G49: 0 | H49: 0.7 | I49: 0.33907 | J49: 6.24983 | K49: =0.34-1/(EXP(I49*$E$4+J49)) -> 0.339747538 | N49: 1.87 | O49: 100 | P49: 0.28 | Q49: 0.89 | R49: 30 | S49: 0.012 | T49: 0 | U49: 0 | V49: 0.85 | W49: 0.3 | Y49: 1.09 | Z49: 20 | AA49: 0.7 | AB49: 15 | AC49: 0.02 | AD49: 0 | AE49: 0.65 | AF49: 0.85 | AG49: 0.2 | AI49: 655 | AJ49: 20000 | AK49: 0.7 | AL49: 30 | AM49: 0.05 | AN49: 0 | AO49: 1 | AP49: 0.9 | AQ49: 0.85 | AR49: 0.2 | AT49: 1.64 | AU49: 20 | AV49: 0.7 | AW49: 30 | AX49: 0.03 | AY49: 0 | AZ49: 0.57 | BA49: 0.85 | BB49: 0.2
A50: 6 | B50: Wind | C50: na | D50: Batteries | E50: Inverter | F50: 0.9933 | G50: 0.3987 | H50: 2.029220958 | I50: 0.1068704692 | J50: 0.6695097459 | K50: =1-1/(EXP(I50*$E$4+J50)) -> 0.7303775309 | N50: 2.18 | O50: 100 | P50: 0.38 | Q50: 0.9 | R50: 30 | S50: 0.02 | T50: 0 | U50: 0 | V50: 0.85 | W50: 0.1 | Y50: =Y$13 -> 0 | Z50: =Z$13 -> 1 | AA50: 1 | AB50: 30 | AC50: 0 | AD50: 0 | AE50: 1 | AF50: 1 | AG50: 0 | AI50: =AI$13 -> 687735 | AJ50: =AJ$13 -> 1 | AK50: 1 | AL50: 15 | AM50: 0.017 | AN50: 0 | AO50: 0.9 | AP50: 0.9 | AQ50: 0.85 | AR50: 0.4 | AT50: =AT$13 -> 0.39 | AU50: =AU$13 -> 1 | AV50: 0.74 | AW50: 20 | AX50: 0.02 | AY50: 10 | AZ50: 1 | BA50: 0.85 | BB50: 0.4
A51: 7 | B51: Wind | C51: na | D51: Hydro Dam | E51: Hydro turbine | F51: 1.0678 | G51: 0.1719 | H51: 1.452961533 | I51: 0.02295006087 | J51: 0.7140839272 | K51: =1-1/(EXP(I51*$E$4+J51)) -> 0.5733470213 | N51: =N50 -> 2.18 | O51: =O50 -> 100 | P51: 0.38 | Q51: 0.9 | R51: 30 | S51: 0.02 | T51: 0 | U51: 0 | V51: 0.85 | W51: 0.1 | Y51: =Y48 -> 0 | Z51: 1 | AA51: 1 | AB51: 30 | AC51: 0 | AD51: 0 | AE51: 1 | AF51: 1 | AG51: 0 | AI51: =AI48 -> 37000 | AJ51: 1200 | AK51: 0.7 | AL51: 30 | AM51: 0.02 | AN51: 0 | AO51: 1 | AP51: 1 | AQ51: 0.85 | AR51: 0.05 | AT51: =AT48 -> 1.5 | AU51: 200 | AV51: 0.7 | AW51: 30 | AX51: 0.02 | AY51: 0 | AZ51: 0.8 | BA51: 0.85 | BB51: 0.05
A52: 8 | B52: Wind | C52: Electrolyser | D52: Cavern | E52: Fuel cell / GT | F52: 0.6012 | G52: 0.091 | H52: =F52*$E$4^G52 -> 0.7076699195 | I52: 0.09942089371 | J52: 2.051617707 | K52: =0.61-1/(EXP(I52*$E$4+J52)) -> 0.5392174707 | N52: =N51 -> 2.18 | O52: 100 | P52: 0.38 | Q52: 0.9 | R52: 30 | S52: 0.02 | T52: 0 | U52: 0 | V52: 0.85 | W52: 0.1 | Y52: =Y49 -> 1.09 | Z52: 20 | AA52: 0.7 | AB52: 15 | AC52: 0.02 | AD52: 0 | AE52: 0.65 | AF52: 0.85 | AG52: 0.2 | AI52: =AI49 -> 655 | AJ52: 20000 | AK52: 0.7 | AL52: 30 | AM52: 0.05 | AN52: 0 | AO52: 1 | AP52: 0.9 | AQ52: 0.85 | AR52: 0.2 | AT52: =AT49 -> 1.64 | AU52: 20 | AV52: 0.7 | AW52: 30 | AX52: 0.03 | AY52: 0 | AZ52: 0.57 | BA52: 0.85 | BB52: 0.2
A53: 9 | B53: Grid VRE | C53: na | D53: Batteries | E53: Inverter | F53: 3 | G53: 0 | H53: =F53*$E$4^G53 -> 3 | I53: 0.09638095138 | J53: 1.587367624 | K53: =1-1/(EXP(I53*$E$4+J53)) -> 0.8853250107 | N53: 0 | O53: 1 | P53: 0.8 | Q53: 1 | R53: 30 | S53: 0 | T53: 0 | U53: =(IN_OUT!$N$11+IN_OUT!$N$12)/2 -> 65.38928722 | V53: 0.85 | W53: 0.3 | Y53: =Y$13 -> 0 | Z53: =Z$13 -> 1 | AA53: 1 | AB53: 30 | AC53: 0 | AD53: 0 | AE53: 1 | AF53: 1 | AG53: 0 | AI53: =AI$13 -> 687735 | AJ53: =AJ$13 -> 1 | AK53: 1 | AL53: 15 | AM53: 0.017 | AN53: 0 | AO53: 0.9 | AP53: 0.9 | AQ53: 0.85 | AR53: 0.4 | AT53: =AT$13 -> 0.39 | AU53: =AU$13 -> 1 | AV53: 0.74 | AW53: 20 | AX53: 0.02 | AY53: 10 | AZ53: 1 | BA53: 0.85 | BB53: 0.4
A54: 10 | B54: Grid VRE | C54: na | D54: Hydro Dam | E54: Hydro turbine | F54: 3 | G54: 0 | H54: 3 | I54: 0.09534236612 | J54: 1.670118553 | K54: =1-1/(EXP(I54*$E$4+J54)) -> 0.8937725522 | N54: =N53 -> 0 | O54: =O53 -> 1 | P54: 0.8 | Q54: 1 | R54: 30 | S54: 0 | T54: 0 | U54: 65.38928722 | V54: 0.85 | W54: 0.3 | Y54: =Y48 -> 0 | Z54: 1 | AA54: 1 | AB54: 30 | AC54: 0 | AD54: 0 | AE54: 1 | AF54: 1 | AG54: 0 | AI54: =AI48 -> 37000 | AJ54: 1200 | AK54: 0.7 | AL54: 30 | AM54: 0.02 | AN54: 0 | AO54: 1 | AP54: 1 | AQ54: 0.85 | AR54: 0.05 | AT54: =AT48 -> 1.5 | AU54: 200 | AV54: 0.7 | AW54: 30 | AX54: 0.02 | AY54: 0 | AZ54: 0.8 | BA54: 0.85 | BB54: 0.05
A55: 11 | B55: Grid VRE | C55: Electrolyser | D55: Hydrogen | E55: Fuel cell / GT | F55: 3 | G55: 0 | H55: 3 | I55: 0.1 | J55: 2.213843997 | K55: =1-1/(EXP(I55*$E$4+J55)) -> 0.9400259912 | N55: =N54 -> 0 | O55: 1 | P55: 0.8 | Q55: 1 | R55: 30 | S55: 0 | T55: 0 | U55: 65.38928722 | V55: 0.85 | W55: 0.3 | Y55: =Y49 -> 1.09 | Z55: 20 | AA55: 0.7 | AB55: 15 | AC55: 0.02 | AD55: 0 | AE55: 0.65 | AF55: 0.85 | AG55: 0.2 | AI55: =AI49 -> 655 | AJ55: 20000 | AK55: 0.7 | AL55: 30 | AM55: 0.05 | AN55: 0 | AO55: 1 | AP55: 0.9 | AQ55: 0.85 | AR55: 0.2 | AT55: =AT49 -> 1.64 | AU55: 20 | AV55: 0.7 | AW55: 30 | AX55: 0.03 | AY55: 0 | AZ55: 0.57 | BA55: 0.85 | BB55: 0.2
A56: 12 | B56: Rooftop PV | C56: na | D56: Batteries | E56: Inverter | F56: 0.9142 | G56: 0.3724 | H56: =F56*$E$4^G56 -> 1.781659642 | I56: 0.1194016847 | J56: 0.7834774533 | K56: =0.6-1/(EXP(I56*$E$4+J56)) -> 0.37684475 | N56: 2 | O56: 0.005 | P56: 0.17 | Q56: 1 | R56: 25 | S56: 0.02 | T56: 0 | U56: 0 | V56: 0.85 | W56: 0.3 | Y56: =Y$13 -> 0 | Z56: =Z$13 -> 1 | AA56: 1 | AB56: 30 | AC56: 0 | AD56: 0 | AE56: 1 | AF56: 1 | AG56: 0 | AI56: =AI$13 -> 687735 | AJ56: =AJ$13 -> 1 | AK56: 1 | AL56: 15 | AM56: 0.017 | AN56: 0 | AO56: 0.9 | AP56: 0.9 | AQ56: 0.85 | AR56: 0.4 | AT56: =AT$13 -> 0.39 | AU56: =AU$13 -> 1 | AV56: 0.74 | AW56: 20 | AX56: 0.02 | AY56: 10 | AZ56: 1 | BA56: 0.85 | BB56: 0.4
A57: 13 | B57: Conc. Solar | C57: na | D57: Molten Salt | E57: Steam turbine | F57: 1.6453 | G57: 0.2863 | H57: =F57*$E$4^G57 -> 2.748082716 | I57: 0.07575090713 | J57: 0.5515251465 | K57: =0.8-1/(EXP(I57*$E$4+J57)) -> 0.4343324126 | N57: 0.46 | O57: 600 | P57: 0.187 | Q57: 0.9 | R57: 30 | S57: 0.02 | T57: 0 | U57: 0 | V57: 0.85 | W57: 0.2 | Y57: 0 | Z57: 1 | AA57: 1 | AB57: 30 | AC57: 0 | AD57: 0 | AE57: 1 | AF57: 1 | AG57: 0 | AI57: 26000 | AJ57: 1429 | AK57: 0.8 | AL57: 30 | AM57: 0.02 | AN57: 0 | AO57: 1 | AP57: 1 | AQ57: 0.85 | AR57: 0.2 | AT57: 2.4 | AU57: 100 | AV57: 0.7 | AW57: 30 | AX57: 0.02 | AY57: 0 | AZ57: 0.42 | BA57: 0.85 | BB57: 0.2
A58: 14 | B58: Biomass+AD | C58: Digestor | D58: Gas accumulator | E58: Turbine /eng. | F58: 1 | G58: 0.9 | H58: =MIN(1,$E$4/(24*G58)) -> 0.2777777778 | I58: 0 | J58: 0 | K58: =MIN(1,$E$4/24) -> 0.25 | N58: 0 | O58: 1 | P58: 1 | Q58: 1 | R58: 20 | S58: 0 | T58: 0 | U58: 0 | V58: 0.85 | W58: 0.05 | Y58: 1.42 | Z58: 7.26 | AA58: 0.7 | AB58: 20 | AC58: 0.065 | AD58: 0 | AE58: 1 | AF58: 0.85 | AG58: 0.05 | AI58: 12391 | AJ58: 11 | AK58: 0.8 | AL58: 20 | AM58: 0.065 | AN58: 0 | AO58: 1 | AP58: 1 | AQ58: 0.85 | AR58: 0.05 | AT58: 0.91 | AU58: 2.5 | AV58: 0.7 | AW58: 20 | AX58: 0.065 | AY58: 0 | AZ58: 0.34 | BA58: 0.85 | BB58: 0.05
A59: 15 | B59: Dry Biomass $5/GJ | C59: na | D59: Depot | E59: Boiler&Turbine | F59: 1 | G59: 0.85 | H59: =MIN(1,$E$4/(24*G59)) -> 0.2941176471 | I59: 0 | J59: 0 | K59: 0.25 | N59: 0 | O59: 1 | P59: 0.5 | Q59: 1 | R59: 25 | S59: 0 | T59: 0 | U59: 18 | V59: 0.85 | W59: 0.05 | Y59: 0 | Z59: 1 | AA59: 1 | AB59: 25 | AC59: 0 | AD59: 0 | AE59: 1 | AF59: 1 | AG59: 0 | AI59: 6.7 | AJ59: 44384 | AK59: 1 | AL59: 25 | AM59: 0.036 | AN59: 0 | AO59: 1 | AP59: 1 | AQ59: 0.85 | AR59: 0 | AT59: 4.89 | AU59: 15 | AV59: 0.7 | AW59: 25 | AX59: 0.036 | AY59: 0 | AZ59: 0.24 | BA59: 0.85 | BB59: 0.05
A60: 16 | B60: Dry Biomass $2.5/GJ | C60: na | D60: Depot | E60: Boiler&Turbine | F60: 1 | G60: 0.85 | H60: 0.2941176471 | I60: 0 | J60: 0 | K60: 0.25 | N60: 0 | O60: 1 | P60: 0.5 | Q60: 1 | R60: 25 | S60: 0 | T60: 0 | U60: 9 | V60: 0.85 | W60: 0.05 | Y60: 0 | Z60: 1 | AA60: 1 | AB60: 25 | AC60: 0 | AD60: 0 | AE60: 1 | AF60: 1 | AG60: 0 | AI60: 6.7 | AJ60: 44384 | AK60: 1 | AL60: 25 | AM60: 0.036 | AN60: 0 | AO60: 1 | AP60: 1 | AQ60: 0.85 | AR60: 0 | AT60: 4.89 | AU60: 15 | AV60: 0.7 | AW60: 25 | AX60: 0.036 | AY60: 0 | AZ60: 0.24 | BA60: 0.85 | BB60: 0.05
A61: =A60+1 -> 17 | B61: HSA Geothermal | C61: na | D61: Self | E61: Turbine | F61: 1 | G61: 0 | H61: =F61*$E$4^G61 -> 1 | I61: 0 | J61: 0 | K61: 0.25 | N61: 0 | O61: 50 | P61: 1 | Q61: 1 | R61: 30 | S61: 0.02 | T61: 0 | U61: 0 | V61: 0.85 | W61: 0.05 | Y61: 0 | Z61: 1 | AA61: 1 | AB61: 30 | AC61: 0 | AD61: 0 | AE61: 1 | AF61: 1 | AG61: 0 | AI61: 0 | AJ61: 1 | AK61: 1 | AL61: 30 | AM61: 0 | AN61: 0 | AO61: 1 | AP61: 1 | AQ61: 0.85 | AR61: 0 | AT61: 6.27 | AU61: 50 | AV61: 0.7 | AW61: 30 | AX61: 0.02 | AY61: 0 | AZ61: 0.2 | BA61: 0.85 | BB61: 0.05
A62: 18 | B62: EGS Geothermal | C62: na | D62: Self | E62: Turbine | F62: 1 | G62: 0 | H62: 1 | I62: 0 | J62: 0 | K62: 0.25 | N62: 0 | O62: 50 | P62: 1 | Q62: 1 | R62: 30 | S62: 0.02 | T62: 0 | U62: 0 | V62: 0.85 | W62: 0.05 | Y62: 0 | Z62: 1 | AA62: 1 | AB62: 30 | AC62: 0 | AD62: 0 | AE62: 1 | AF62: 1 | AG62: 0 | AI62: 0 | AJ62: 1 | AK62: 1 | AL62: 30 | AM62: 0 | AN62: 0 | AO62: 1 | AP62: 1 | AQ62: 0.85 | AR62: 0 | AT62: 14 | AU62: 50 | AV62: 0.8 | AW62: 30 | AX62: 0.02 | AY62: 0 | AZ62: 0.2 | BA62: 0.85 | BB62: 0.05

Sheet InitialSize&CostCalc
B2: Global inputs | K2: Input Cells
B3: =IN_OUT!B3 -> Nameplate capacity | E3: =IN_OUT!F3 -> 100 | F3: =IN_OUT!E3 -> MW | K3: Fixed Cells
B4: =IN_OUT!B4 -> Daily duration of delivery / storage | E4: =IN_OUT!F4 -> 6 | F4: =IN_OUT!E4 -> Hours | K4: Linked Cells | S4: BACK TO INDEX
B5: =IN_OUT!B5 -> Base Year | E5: =IN_OUT!F5 -> 2017 | K5: Calculated Cells
B6: =IN_OUT!B6 -> Target Year | E6: =IN_OUT!F6 -> 2017
B7: =IN_OUT!B7 -> WACC | E7: =IN_OUT!F7 -> 0.065 | F7: =IN_OUT!E7 -> %
N8: Sizing | R8: Energy Capture Inputs (linked) | AA8: Collection cost | AH8: Conversion Inputs (linked) | AQ8: Conversion cost | AX8: Energy Storage Inputs (linked) | BH8: Storage cost | BO8: Conversion Inputs (linked) | BX8: Conversion cost | CB8: Whole system cost
A9: SI No | B9: =TechnologyInputs!B9 -> Energy Capture | C9: =TechnologyInputs!C9 -> Initial energy conversion | D9: =TechnologyInputs!D9 -> Energy Storage | E9: =TechnologyInputs!E9 -> Energy Conversion | G9: Nameplate output | H9: Storage capacity required | I9: Initial conversion capacity required | J9: Base collector capacity required | K9: Actual collector capacity required | M9: =TechnologyInputs!N9 -> Specific Installed cost | N9: =TechnologyInputs!O9 -> baseline capacity | O9: =TechnologyInputs!P9 -> Capture capacity factor | P9: =TechnologyInputs!Q9 -> Power law size exponent | Q9: =TechnologyInputs!R9 -> Life-time | R9: =TechnologyInputs!S9 -> Fixed O&M cost | S9: =TechnologyInputs!T9 -> Variable O&M cost | T9: =TechnologyInputs!V9 -> Cost progress ratio | U9: =TechnologyInputs!W9 -> deployment growth | V9: size scale factor on collectro specific cost | W9: Global Capacity increase factor on collection tech | X9: doubling collection tech | Y9: year scale factor on collector cost | Z9: Collector specific cost scaled | AA9: Collector cost | AB9: =TechnologyInputs!X9 -> 0 | AC9: =TechnologyInputs!Y9 -> Specific Installed cost | AD9: =TechnologyInputs!Z9 -> baseline capacity | AE9: =TechnologyInputs!AA9 -> Power law size exponent | AF9: =TechnologyInputs!AB9 -> Lifetime | AG9: =TechnologyInputs!AC9 -> Fixed O&M cost | AH9: =TechnologyInputs!AD9 -> Variable O&M cost | AI9: =TechnologyInputs!AE9 -> efficiency | AJ9: =TechnologyInputs!AF9 -> Cost progress ratio | AK9: =TechnologyInputs!AG9 -> deployment growth | AL9: size scale factor on Final conversion specific cost | AM9: Global Capacity increase factor on conversion tech | AN9: #doubling conversion tech | AO9: year scale factor on conversion cost | AP9: Conversion specific cost scaled | AQ9: Conversion cost | AS9: =TechnologyInputs!AI9 -> Specific Installed cost _ Energy | AT9: =TechnologyInputs!AJ9 -> baseline capacity | AU9: =TechnologyInputs!AK9 -> Power law size exponent | AV9: =TechnologyInputs!AL9 -> Lifetime | AW9: =TechnologyInputs!AM9 -> Fixed O&M cost | AX9: =TechnologyInputs!AN9 -> Variable O&M cost | AY9: =TechnologyInputs!AO9 -> % average capacity over lifetime | AZ9: =TechnologyInputs!AP9 -> efficiency | BA9: =TechnologyInputs!AQ9 -> Cost progress ratio | BB9: =TechnologyInputs!AR9 -> deployment growth | BC9: size scale factor on storage specific cost | BD9: Global Capacity increase factor on storage tech | BE9: doubling storage tech | BF9: year scale factor on storage cost | BG9: Storage specific cost scaled | BH9: Storage cost | BJ9: =TechnologyInputs!AT9 -> Specific Installed cost | BK9: =TechnologyInputs!AU9 -> baseline capacity | BL9: =TechnologyInputs!AV9 -> Power law size exponent | BM9: =TechnologyInputs!AW9 -> Lifetime | BN9: =TechnologyInputs!AX9 -> Fixed O&M cost | BO9: =TechnologyInputs!AY9 -> Variable O&M cost | BP9: =TechnologyInputs!AZ9 -> efficiency | BQ9: =TechnologyInputs!BA9 -> Cost progress ratio | BR9: =TechnologyInputs!BB9 -> deployment growth | BS9: size scale factor on Final conversion specific cost | BT9: Global Capacity increase factor on conversion tech | BU9: #doubling conversion tech | BV9: year scale factor on conversion cost | BW9: Conversion specific cost scaled | BX9: Conversion cost | BZ9: Total system cost | CA9: Specific system cost
G10: MW | H10: MWh | I10: MW | J10: MW | K10: MW | M10: =TechnologyInputs!N10 -> m$/MW | N10: =TechnologyInputs!O10 -> MW | Q10: =TechnologyInputs!R10 -> year | R10: =TechnologyInputs!S10 -> %/yr | S10: =TechnologyInputs!T10 -> $/MWh | U10: =TechnologyInputs!W10 -> %/yr | Z10: m$/MW | AA10: AUD $ | AC10: =TechnologyInputs!Y10 -> m$/MW | AG10: =TechnologyInputs!AC10 -> %/yr | AH10: =TechnologyInputs!AD10 -> $/MWh | AK10: =TechnologyInputs!AG10 -> %/yr | AP10: m$/MW | AQ10: AUD $ | AS10: =TechnologyInputs!AI10 -> $/MWh | AT10: =TechnologyInputs!AJ10 -> MWh | AV10: =TechnologyInputs!AL10 -> Year | AW10: =TechnologyInputs!AM10 -> %/yr | AX10: =TechnologyInputs!AN10 -> $/MWh | BB10: =TechnologyInputs!AR10 -> %/yr | BG10: $/MWH | BH10: AUD $ | BJ10: =TechnologyInputs!AT10 -> m$/MW | BN10: =TechnologyInputs!AX10 -> %/yr | BO10: =TechnologyInputs!AY10 -> $/MWh | BR10: =TechnologyInputs!BB10 -> %/yr | BW10: m$/MW | BX10: AUD $ | BZ10: AUD $ | CA10: mAUD$/MW
A11: =TechnologyInputs!A11 -> 1 | B11: =TechnologyInputs!B11 -> Utility PV | C11: =TechnologyInputs!C11 -> na | D11: =TechnologyInputs!D11 -> na | E11: =TechnologyInputs!E11 -> na | G11: =$E$3 -> 100 | H11: 0 | I11: =K11 -> 100 | J11: =$E$3/(BP11*AZ11*AI11) -> 100 | K11: =J11*TechnologyInputs!H11 -> 100 | M11: =TechnologyInputs!N11 -> 1.87 | N11: =TechnologyInputs!O11 -> 100 | O11: =TechnologyInputs!P11 -> 0.28 | P11: =TechnologyInputs!Q11 -> 0.89 | Q11: =TechnologyInputs!R11 -> 30 | R11: =TechnologyInputs!S11 -> 0.012 | S11: =TechnologyInputs!T11 -> 0 | T11: =TechnologyInputs!V11 -> 0.85 | U11: =TechnologyInputs!W11 -> 0.2 | V11: =(K11/N11)^(P11-1) -> 1 | W11: =(1+U11)^($E$6-$E$5) -> 1 | X11: =LOG(W11,2) -> 0 | Y11: =T11^X11 -> 1 | Z11: =V11*M11*Y11 -> 1.87 | AA11: =Z11*K11*1000000 -> 187000000 | AC11: =TechnologyInputs!Y11 -> 0 | AD11: =TechnologyInputs!Z11 -> 1 | AE11: =TechnologyInputs!AA11 -> 1 | AF11: =TechnologyInputs!AB11 -> 30 | AG11: =TechnologyInputs!AC11 -> 0 | AH11: =TechnologyInputs!AD11 -> 0 | AI11: =TechnologyInputs!AE11 -> 1 | AJ11: =TechnologyInputs!AF11 -> 1 | AK11: =TechnologyInputs!AG11 -> 0 | AL11: 0 | AM11: 0 | AN11: 0 | AO11: 0 | AP11: 0 | AQ11: 0 | AS11: =TechnologyInputs!AI11 -> 0 | AT11: =TechnologyInputs!AJ11 -> 1 | AU11: =TechnologyInputs!AK11 -> 1 | AV11: =TechnologyInputs!AL11 -> 30 | AW11: =TechnologyInputs!AM11 -> 0 | AX11: =TechnologyInputs!AN11 -> 0 | AY11: =TechnologyInputs!AO11 -> 1 | AZ11: =TechnologyInputs!AP11 -> 1 | BA11: =TechnologyInputs!AQ11 -> 1 | BB11: =TechnologyInputs!AR11 -> 0 | BC11: 0 | BD11: 0 | BE11: 0 | BF11: 0 | BG11: 0 | BH11: 0 | BJ11: =TechnologyInputs!AT11 -> 0 | BK11: =TechnologyInputs!AU11 -> 1 | BL11: =TechnologyInputs!AV11 -> 1 | BM11: =TechnologyInputs!AW11 -> 30 | BN11: =TechnologyInputs!AX11 -> 0 | BO11: =TechnologyInputs!AY11 -> 0 | BP11: =TechnologyInputs!AZ11 -> 1 | BQ11: =TechnologyInputs!BA11 -> 1 | BR11: =TechnologyInputs!BB11 -> 0 | BS11: 0 | BT11: 0 | BU11: 0 | BV11: 0 | BW11: 0 | BX11: 0 | BZ11: =AA11+AQ11+BH11+BX11 -> 187000000 | CA11: =BZ11/(G11*1000000) -> 1.87
A12: =TechnologyInputs!A12 -> 2 | B12: =TechnologyInputs!B12 -> Wind | C12: =TechnologyInputs!C12 -> na | D12: =TechnologyInputs!D12 -> na | E12: =TechnologyInputs!E12 -> na | G12: 100 | H12: 0 | I12: =K12 -> 100 | J12: 100 | K12: =J12*TechnologyInputs!H12 -> 100 | M12: =TechnologyInputs!N12 -> 2.18 | N12: =TechnologyInputs!O12 -> 100 | O12: =TechnologyInputs!P12 -> 0.38 | P12: =TechnologyInputs!Q12 -> 0.9 | Q12: =TechnologyInputs!R12 -> 30 | R12: =TechnologyInputs!S12 -> 0.02 | S12: =TechnologyInputs!T12 -> 0 | T12: =TechnologyInputs!V12 -> 0.85 | U12: =TechnologyInputs!W12 -> 0.1 | V12: =(K12/N12)^(P12-1) -> 1 | W12: =(1+U12)^($E$6-$E$5) -> 1 | X12: =LOG(W12,2) -> 0 | Y12: =T12^X12 -> 1 | Z12: =V12*M12*Y12 -> 2.18 | AA12: =Z12*K12*1000000 -> 218000000 | AC12: =TechnologyInputs!Y12 -> 0 | AD12: =TechnologyInputs!Z12 -> 1 | AE12: =TechnologyInputs!AA12 -> 1 | AF12: =TechnologyInputs!AB12 -> 30 | AG12: =TechnologyInputs!AC12 -> 0 | AH12: =TechnologyInputs!AD12 -> 0 | AI12: =TechnologyInputs!AE12 -> 1 | AJ12: =TechnologyInputs!AF12 -> 1 | AK12: =TechnologyInputs!AG12 -> 0 | AL12: 0 | AM12: 0 | AN12: 0 | AO12: 0 | AP12: 0 | AQ12: 0 | AS12: =TechnologyInputs!AI12 -> 0 | AT12: =TechnologyInputs!AJ12 -> 1 | AU12: =TechnologyInputs!AK12 -> 1 | AV12: =TechnologyInputs!AL12 -> 30 | AW12: =TechnologyInputs!AM12 -> 0 | AX12: =TechnologyInputs!AN12 -> 0 | AY12: =TechnologyInputs!AO12 -> 1 | AZ12: =TechnologyInputs!AP12 -> 1 | BA12: =TechnologyInputs!AQ12 -> 1 | BB12: =TechnologyInputs!AR12 -> 0 | BC12: 0 | BD12: 0 | BE12: 0 | BF12: 0 | BG12: 0 | BH12: 0 | BJ12: =TechnologyInputs!AT12 -> 0 | BK12: =TechnologyInputs!AU12 -> 1 | BL12: =TechnologyInputs!AV12 -> 1 | BM12: =TechnologyInputs!AW12 -> 30 | BN12: =TechnologyInputs!AX12 -> 0 | BO12: =TechnologyInputs!AY12 -> 0 | BP12: =TechnologyInputs!AZ12 -> 1 | BQ12: =TechnologyInputs!BA12 -> 1 | BR12: =TechnologyInputs!BB12 -> 0 | BS12: 0 | BT12: 0 | BU12: 0 | BV12: 0 | BW12: 0 | BX12: 0 | BZ12: =AA12+AQ12+BH12+BX12 -> 218000000 | CA12: =BZ12/(G12*1000000) -> 2.18
A13: =TechnologyInputs!A13 -> 3 | B13: =TechnologyInputs!B13 -> Utility PV | C13: =TechnologyInputs!C13 -> na | D13: =TechnologyInputs!D13 -> Batteries | E13: =TechnologyInputs!E13 -> Inverter | G13: 100 | H13: =$E$3*$E$4/(BP13*AY13) -> 666.6666667 | I13: 249.7672928 | J13: 111.1111111 | K13: =J13*TechnologyInputs!H13 -> 249.7672928 | M13: =TechnologyInputs!N13 -> 1.87 | N13: =TechnologyInputs!O13 -> 100 | O13: =TechnologyInputs!P13 -> 0.28 | P13: =TechnologyInputs!Q13 -> 0.89 | Q13: =TechnologyInputs!R13 -> 30 | R13: =TechnologyInputs!S13 -> 0.012 | S13: =TechnologyInputs!T13 -> 0 | T13: =TechnologyInputs!V13 -> 0.85 | U13: =TechnologyInputs!W13 -> 0.3 | V13: 0.90421371 | W13: 1 | X13: 0 | Y13: 1 | Z13: 1.690879638 | AA13: 422326429.5 | AC13: =TechnologyInputs!Y13 -> 0 | AD13: =TechnologyInputs!Z13 -> 1 | AE13: =TechnologyInputs!AA13 -> 1 | AF13: =TechnologyInputs!AB13 -> 30 | AG13: =TechnologyInputs!AC13 -> 0 | AH13: =TechnologyInputs!AD13 -> 0 | AI13: =TechnologyInputs!AE13 -> 1 | AJ13: =TechnologyInputs!AF13 -> 1 | AK13: =TechnologyInputs!AG13 -> 0 | AL13: =(I13/AD13)^(AE13-1) -> 1 | AM13: =(1+AK13)^($E$6-$E$5) -> 1 | AN13: =LOG(AM13,2) -> 0 | AO13: =AJ13^AN13 -> 1 | AP13: =AL13*AC13*AO13 -> 0 | AQ13: =AP13*I13*1000000 -> 0 | AS13: =TechnologyInputs!AI13 -> 687735 | AT13: =TechnologyInputs!AJ13 -> 1 | AU13: =TechnologyInputs!AK13 -> 1 | AV13: =TechnologyInputs!AL13 -> 15 | AW13: =TechnologyInputs!AM13 -> 0.017 | AX13: =TechnologyInputs!AN13 -> 0 | AY13: =TechnologyInputs!AO13 -> 0.9 | AZ13: =TechnologyInputs!AP13 -> 0.9 | BA13: =TechnologyInputs!AQ13 -> 0.85 | BB13: =TechnologyInputs!AR13 -> 0.4 | BC13: =(H13/AT13)^(AU13-1) -> 1 | BD13: =(1+BB13)^($E$6-$E$5) -> 1 | BE13: =LOG(BD13,2) -> 0 | BF13: =BA13^BE13 -> 1 | BG13: =BC13*AS13*BF13 -> 687735 | BH13: =BG13*H13 -> 458490000 | BJ13: =TechnologyInputs!AT13 -> 0.39 | BK13: =TechnologyInputs!AU13 -> 1 | BL13: =TechnologyInputs!AV13 -> 0.74 | BM13: =TechnologyInputs!AW13 -> 20 | BN13: =TechnologyInputs!AX13 -> 0.02 | BO13: =TechnologyInputs!AY13 -> 10 | BP13: =TechnologyInputs!AZ13 -> 1 | BQ13: =TechnologyInputs!BA13 -> 0.85 | BR13: =TechnologyInputs!BB13 -> 0.4 | BS13: =(G13/BK13)^(BL13-1) -> 0.301995172 | BT13: =(1+BR13)^($E$6-$E$5) -> 1 | BU13: =LOG(BT13,2) -> 0 | BV13: =BQ13^BU13 -> 1 | BW13: =BS13*BJ13*BV13 -> 0.1177781171 | BX13: =BW13*G13*1000000 -> 11777811.71 | BZ13: =AA13+AQ13+BH13+BX13 -> 892594241.2 | CA13: =BZ13/(G13*1000000) -> 8.925942412
A14: =TechnologyInputs!A14 -> 4 | B14: =TechnologyInputs!B14 -> Utility PV | C14: =TechnologyInputs!C14 -> na | D14: =TechnologyInputs!D14 -> Hydro Dam | E14: =TechnologyInputs!E14 -> Hydro turbine | G14: 100 | H14: 750 | I14: 209.2100125 | J14: 125 | K14: =J14*TechnologyInputs!H14 -> 209.2100125 | M14: =TechnologyInputs!N14 -> 1.87 | N14: =TechnologyInputs!O14 -> 100 | O14: =TechnologyInputs!P14 -> 0.28 | P14: =TechnologyInputs!Q14 -> 0.89 | Q14: =TechnologyInputs!R14 -> 30 | R14: =TechnologyInputs!S14 -> 0.012 | S14: =TechnologyInputs!T14 -> 0 | T14: =TechnologyInputs!V14 -> 0.85 | U14: =TechnologyInputs!W14 -> 0.3 | V14: 0.9220106314 | W14: 1 | X14: 0 | Y14: 1 | Z14: 1.724159881 | AA14: 360711510.2 | AC14: =TechnologyInputs!Y14 -> 0 | AD14: =TechnologyInputs!Z14 -> 1 | AE14: =TechnologyInputs!AA14 -> 1 | AF14: =TechnologyInputs!AB14 -> 30 | AG14: =TechnologyInputs!AC14 -> 0 | AH14: =TechnologyInputs!AD14 -> 0 | AI14: =TechnologyInputs!AE14 -> 1 | AJ14: =TechnologyInputs!AF14 -> 1 | AK14: =TechnologyInputs!AG14 -> 0 | AL14: =(I14/AD14)^(AE14-1) -> 1 | AM14: 1 | AN14: =LOG(AM14,2) -> 0 | AO14: 1 | AP14: 0 | AQ14: 0 | AS14: =TechnologyInputs!AI14 -> 37000 | AT14: =TechnologyInputs!AJ14 -> 1200 | AU14: =TechnologyInputs!AK14 -> 0.7 | AV14: =TechnologyInputs!AL14 -> 30 | AW14: =TechnologyInputs!AM14 -> 0.02 | AX14: =TechnologyInputs!AN14 -> 0 | AY14: =TechnologyInputs!AO14 -> 1 | AZ14: =TechnologyInputs!AP14 -> 1 | BA14: =TechnologyInputs!AQ14 -> 0.85 | BB14: =TechnologyInputs!AR14 -> 0.05 | BC14: =(H14/AT14)^(AU14-1) -> 1.151425902 | BD14: 1 | BE14: =LOG(BD14,2) -> 0 | BF14: =BA14^BE14 -> 1 | BG14: =BC14*AS14*BF14 -> 42602.75836 | BH14: =BG14*H14 -> 31952068.77 | BJ14: =TechnologyInputs!AT14 -> 1.5 | BK14: =TechnologyInputs!AU14 -> 200 | BL14: =TechnologyInputs!AV14 -> 0.7 | BM14: =TechnologyInputs!AW14 -> 30 | BN14: =TechnologyInputs!AX14 -> 0.02 | BO14: =TechnologyInputs!AY14 -> 0 | BP14: =TechnologyInputs!AZ14 -> 0.8 | BQ14: =TechnologyInputs!BA14 -> 0.85 | BR14: =TechnologyInputs!BB14 -> 0.05 | BS14: =(G14/BK14)^(BL14-1) -> 1.231144413 | BT14: =(1+BR14)^($E$6-$E$5) -> 1 | BU14: =LOG(BT14,2) -> 0 | BV14: =BQ14^BU14 -> 1 | BW14: =BS14*BJ14*BV14 -> 1.84671662 | BX14: =BW14*G14*1000000 -> 184671662 | BZ14: =AA14+AQ14+BH14+BX14 -> 577335241 | CA14: =BZ14/(G14*1000000) -> 5.77335241
A15: =TechnologyInputs!A15 -> 5 | B15: =TechnologyInputs!B15 -> Utility PV | C15: =TechnologyInputs!C15 -> Electrolyser | D15: =TechnologyInputs!D15 -> Hydrogen | E15: =TechnologyInputs!E15 -> Fuel cell / GT | G15: 100 | H15: 1052.631579 | I15: 209.9265257 | J15: 299.8950367 | K15: =J15*TechnologyInputs!H15 -> 209.9265257 | M15: =TechnologyInputs!N15 -> 1.87 | N15: =TechnologyInputs!O15 -> 100 | O15: =TechnologyInputs!P15 -> 0.28 | P15: =TechnologyInputs!Q15 -> 0.89 | Q15: =TechnologyInputs!R15 -> 30 | R15: =TechnologyInputs!S15 -> 0.012 | S15: =TechnologyInputs!T15 -> 0 | T15: =TechnologyInputs!V15 -> 0.85 | U15: =TechnologyInputs!W15 -> 0.3 | V15: 0.9216639377 | W15: 1 | X15: 0 | Y15: 1 | Z15: 1.723511563 | AA15: 361810794.5 | AC15: =TechnologyInputs!Y15 -> 1.09 | AD15: =TechnologyInputs!Z15 -> 20 | AE15: =TechnologyInputs!AA15 -> 0.7 | AF15: =TechnologyInputs!AB15 -> 15 | AG15: =TechnologyInputs!AC15 -> 0.02 | AH15: =TechnologyInputs!AD15 -> 0 | AI15: =TechnologyInputs!AE15 -> 0.65 | AJ15: =TechnologyInputs!AF15 -> 0.85 | AK15: =TechnologyInputs!AG15 -> 0.2 | AL15: =(I15/ AD15)^(AE15-1) -> 0.493956612 | AM15: 1 | AN15: 0 | AO15: 1 | AP15: 0.5384127071 | AQ15: =AP15*I15*1000000 -> 113027109 | AS15: =TechnologyInputs!AI15 -> 655 | AT15: =TechnologyInputs!AJ15 -> 20000 | AU15: =TechnologyInputs!AK15 -> 0.7 | AV15: =TechnologyInputs!AL15 -> 30 | AW15: =TechnologyInputs!AM15 -> 0.05 | AX15: =TechnologyInputs!AN15 -> 0 | AY15: =TechnologyInputs!AO15 -> 1 | AZ15: =TechnologyInputs!AP15 -> 0.9 | BA15: =TechnologyInputs!AQ15 -> 0.85 | BB15: =TechnologyInputs!AR15 -> 0.2 | BC15: 2.418945481 | BD15: 1 | BE15: 0 | BF15: 1 | BG15: 1584.40929 | BH15: 1667799.253 | BJ15: =TechnologyInputs!AT15 -> 1.64 | BK15: =TechnologyInputs!AU15 -> 20 | BL15: =TechnologyInputs!AV15 -> 0.7 | BM15: =TechnologyInputs!AW15 -> 30 | BN15: =TechnologyInputs!AX15 -> 0.03 | BO15: =TechnologyInputs!AY15 -> 0 | BP15: =TechnologyInputs!AZ15 -> 0.57 | BQ15: =TechnologyInputs!BA15 -> 0.85 | BR15: =TechnologyInputs!BB15 -> 0.2 | BS15: 0.6170338627 | BT15: 1 | BU15: 0 | BV15: 1 | BW15: 1.011935535 | BX15: 101193553.5 | BZ15: 577699256.3 | CA15: 5.776992563
A16: =TechnologyInputs!A16 -> 6 | B16: =TechnologyInputs!B16 -> Wind | C16: =TechnologyInputs!C16 -> na | D16: =TechnologyInputs!D16 -> Batteries | E16: =TechnologyInputs!E16 -> Inverter | G16: 100 | H16: 666.6666667 | I16: 225.4689953 | J16: 111.1111111 | K16: =J16*TechnologyInputs!H16 -> 225.4689953 | M16: =TechnologyInputs!N16 -> 2.18 | N16: =TechnologyInputs!O16 -> 100 | O16: =TechnologyInputs!P16 -> 0.38 | P16: =TechnologyInputs!Q16 -> 0.9 | Q16: =TechnologyInputs!R16 -> 30 | R16: =TechnologyInputs!S16 -> 0.02 | S16: =TechnologyInputs!T16 -> 0 | T16: =TechnologyInputs!V16 -> 0.85 | U16: =TechnologyInputs!W16 -> 0.1 | V16: 0.9219159252 | W16: 1 | X16: 0 | Y16: 1 | Z16: 2.009776717 | AA16: 453142337.1 | AC16: =TechnologyInputs!Y16 -> 0 | AD16: =TechnologyInputs!Z16 -> 1 | AE16: =TechnologyInputs!AA16 -> 1 | AF16: =TechnologyInputs!AB16 -> 30 | AG16: =TechnologyInputs!AC16 -> 0 | AH16: =TechnologyInputs!AD16 -> 0 | AI16: =TechnologyInputs!AE16 -> 1 | AJ16: =TechnologyInputs!AF16 -> 1 | AK16: =TechnologyInputs!AG16 -> 0 | AL16: =(I16/AD16)^(AE16-1) -> 1 | AM16: 1 | AN16: 0 | AO16: 1 | AP16: 0 | AQ16: =AP16*I16*1000000 -> 0 | AS16: =TechnologyInputs!AI16 -> 687735 | AT16: =TechnologyInputs!AJ16 -> 1 | AU16: =TechnologyInputs!AK16 -> 1 | AV16: =TechnologyInputs!AL16 -> 15 | AW16: =TechnologyInputs!AM16 -> 0.017 | AX16: =TechnologyInputs!AN16 -> 0 | AY16: =TechnologyInputs!AO16 -> 0.9 | AZ16: =TechnologyInputs!AP16 -> 0.9 | BA16: =TechnologyInputs!AQ16 -> 0.85 | BB16: =TechnologyInputs!AR16 -> 0.4 | BC16: 1 | BD16: 1 | BE16: 0 | BF16: 1 | BG16: 687735 | BH16: 458490000 | BJ16: =TechnologyInputs!AT16 -> 0.39 | BK16: =TechnologyInputs!AU16 -> 1 | BL16: =TechnologyInputs!AV16 -> 0.74 | BM16: =TechnologyInputs!AW16 -> 20 | BN16: =TechnologyInputs!AX16 -> 0.02 | BO16: =TechnologyInputs!AY16 -> 10 | BP16: =TechnologyInputs!AZ16 -> 1 | BQ16: =TechnologyInputs!BA16 -> 0.85 | BR16: =TechnologyInputs!BB16 -> 0.4 | BS16: 0.301995172 | BT16: 1 | BU16: 0 | BV16: 1 | BW16: 0.1177781171 | BX16: 11777811.71 | BZ16: 923410148.8 | CA16: 9.234101488
A17: =TechnologyInputs!A17 -> 7 | B17: =TechnologyInputs!B17 -> Wind | C17: =TechnologyInputs!C17 -> na | D17: =TechnologyInputs!D17 -> Hydro Dam | E17: =TechnologyInputs!E17 -> Hydro turbine | G17: 100 | H17: 750 | I17: 181.6201916 | J17: 125 | K17: =J17*TechnologyInputs!H17 -> 181.6201916 | M17: =TechnologyInputs!N17 -> 2.18 | N17: =TechnologyInputs!O17 -> 100 | O17: =TechnologyInputs!P17 -> 0.38 | P17: =TechnologyInputs!Q17 -> 0.9 | Q17: =TechnologyInputs!R17 -> 30 | R17: =TechnologyInputs!S17 -> 0.02 | S17: =TechnologyInputs!T17 -> 0 | T17: =TechnologyInputs!V17 -> 0.85 | U17: =TechnologyInputs!W17 -> 0.1 | V17: 0.942070896 | W17: 1 | X17: 0 | Y17: 1 | Z17: 2.053714553 | AA17: 372996030.6 | AC17: =TechnologyInputs!Y17 -> 0 | AD17: =TechnologyInputs!Z17 -> 1 | AE17: =TechnologyInputs!AA17 -> 1 | AF17: =TechnologyInputs!AB17 -> 30 | AG17: =TechnologyInputs!AC17 -> 0 | AH17: =TechnologyInputs!AD17 -> 0 | AI17: =TechnologyInputs!AE17 -> 1 | AJ17: =TechnologyInputs!AF17 -> 1 | AK17: =TechnologyInputs!AG17 -> 0 | AL17: 1 | AM17: 1 | AN17: 0 | AO17: 1 | AP17: 0 | AQ17: 0 | AS17: =TechnologyInputs!AI17 -> 37000 | AT17: =TechnologyInputs!AJ17 -> 1200 | AU17: =TechnologyInputs!AK17 -> 0.7 | AV17: =TechnologyInputs!AL17 -> 30 | AW17: =TechnologyInputs!AM17 -> 0.02 | AX17: =TechnologyInputs!AN17 -> 0 | AY17: =TechnologyInputs!AO17 -> 1 | AZ17: =TechnologyInputs!AP17 -> 1 | BA17: =TechnologyInputs!AQ17 -> 0.85 | BB17: =TechnologyInputs!AR17 -> 0.05 | BC17: 1.151425902 | BD17: 1 | BE17: 0 | BF17: 1 | BG17: 42602.75836 | BH17: 31952068.77 | BJ17: =TechnologyInputs!AT17 -> 1.5 | BK17: =TechnologyInputs!AU17 -> 200 | BL17: =TechnologyInputs!AV17 -> 0.7 | BM17: =TechnologyInputs!AW17 -> 30 | BN17: =TechnologyInputs!AX17 -> 0.02 | BO17: =TechnologyInputs!AY17 -> 0 | BP17: =TechnologyInputs!AZ17 -> 0.8 | BQ17: =TechnologyInputs!BA17 -> 0.85 | BR17: =TechnologyInputs!BB17 -> 0.05 | BS17: 1.231144413 | BT17: 1 | BU17: 0 | BV17: 1 | BW17: 1.84671662 | BX17: 184671662 | BZ17: 589619761.4 | CA17: 5.896197614
A18: =TechnologyInputs!A18 -> 8 | B18: =TechnologyInputs!B18 -> Wind | C18: =TechnologyInputs!C18 -> Electrolyser | D18: =TechnologyInputs!D18 -> Cavern | E18: =TechnologyInputs!E18 -> Fuel cell / GT | G18: 100 | H18: 1052.631579 | I18: 212.2266965 | J18: 299.8950367 | K18: =J18*TechnologyInputs!H18 -> 212.2266965 | M18: =TechnologyInputs!N18 -> 2.18 | N18: =TechnologyInputs!O18 -> 100 | O18: =TechnologyInputs!P18 -> 0.38 | P18: =TechnologyInputs!Q18 -> 0.9 | Q18: =TechnologyInputs!R18 -> 30 | R18: =TechnologyInputs!S18 -> 0.02 | S18: =TechnologyInputs!T18 -> 0 | T18: =TechnologyInputs!V18 -> 0.85 | U18: =TechnologyInputs!W18 -> 0.1 | V18: 0.9275129855 | W18: 1 | X18: 0 | Y18: 1 | Z18: 2.021978308 | AA18: 429117776.8 | AC18: =TechnologyInputs!Y18 -> 1.09 | AD18: =TechnologyInputs!Z18 -> 20 | AE18: =TechnologyInputs!AA18 -> 0.7 | AF18: =TechnologyInputs!AB18 -> 15 | AG18: =TechnologyInputs!AC18 -> 0.02 | AH18: =TechnologyInputs!AD18 -> 0 | AI18: =TechnologyInputs!AE18 -> 0.65 | AJ18: =TechnologyInputs!AF18 -> 0.85 | AK18: =TechnologyInputs!AG18 -> 0.2 | AL18: 0.4923443909 | AM18: 1 | AN18: 0 | AO18: 1 | AP18: 0.5366553861 | AQ18: 113892599.7 | AS18: =TechnologyInputs!AI18 -> 655 | AT18: =TechnologyInputs!AJ18 -> 20000 | AU18: =TechnologyInputs!AK18 -> 0.7 | AV18: =TechnologyInputs!AL18 -> 30 | AW18: =TechnologyInputs!AM18 -> 0.05 | AX18: =TechnologyInputs!AN18 -> 0 | AY18: =TechnologyInputs!AO18 -> 1 | AZ18: =TechnologyInputs!AP18 -> 0.9 | BA18: =TechnologyInputs!AQ18 -> 0.85 | BB18: =TechnologyInputs!AR18 -> 0.2 | BC18: 2.418945481 | BD18: 1 | BE18: 0 | BF18: 1 | BG18: 1584.40929 | BH18: 1667799.253 | BJ18: =TechnologyInputs!AT18 -> 1.64 | BK18: =TechnologyInputs!AU18 -> 20 | BL18: =TechnologyInputs!AV18 -> 0.7 | BM18: =TechnologyInputs!AW18 -> 30 | BN18: =TechnologyInputs!AX18 -> 0.03 | BO18: =TechnologyInputs!AY18 -> 0 | BP18: =TechnologyInputs!AZ18 -> 0.57 | BQ18: =TechnologyInputs!BA18 -> 0.85 | BR18: =TechnologyInputs!BB18 -> 0.2 | BS18: 0.6170338627 | BT18: 1 | BU18: 0 | BV18: 1 | BW18: 1.011935535 | BX18: 101193553.5 | BZ18: 645871729.3 | CA18: 6.458717293
A19: =TechnologyInputs!A19 -> 9 | B19: =TechnologyInputs!B19 -> Grid VRE | C19: =TechnologyInputs!C19 -> na | D19: =TechnologyInputs!D19 -> Batteries | E19: =TechnologyInputs!E19 -> Inverter | G19: 100 | H19: 666.6666667 | I19: 333.3333333 | J19: 111.1111111 | K19: =J19*TechnologyInputs!H19 -> 333.3333333 | M19: =TechnologyInputs!N19 -> 0 | N19: =TechnologyInputs!O19 -> 1 | O19: =TechnologyInputs!P19 -> 0.8 | P19: =TechnologyInputs!Q19 -> 1 | Q19: =TechnologyInputs!R19 -> 30 | R19: =TechnologyInputs!S19 -> 0 | S19: =TechnologyInputs!T19 -> 0 | T19: =TechnologyInputs!V19 -> 0.85 | U19: =TechnologyInputs!W19 -> 0.3 | V19: 1 | W19: 1 | X19: 0 | Y19: 1 | Z19: 0 | AA19: 0 | AC19: =TechnologyInputs!Y19 -> 0 | AD19: =TechnologyInputs!Z19 -> 1 | AE19: =TechnologyInputs!AA19 -> 1 | AF19: =TechnologyInputs!AB19 -> 30 | AG19: =TechnologyInputs!AC19 -> 0 | AH19: =TechnologyInputs!AD19 -> 0 | AI19: =TechnologyInputs!AE19 -> 1 | AJ19: =TechnologyInputs!AF19 -> 1 | AK19: =TechnologyInputs!AG19 -> 0 | AL19: 1 | AM19: 1 | AN19: 0 | AO19: 1 | AP19: 0 | AQ19: 0 | AS19: =TechnologyInputs!AI19 -> 687735 | AT19: =TechnologyInputs!AJ19 -> 1 | AU19: =TechnologyInputs!AK19 -> 1 | AV19: =TechnologyInputs!AL19 -> 15 | AW19: =TechnologyInputs!AM19 -> 0.017 | AX19: =TechnologyInputs!AN19 -> 0 | AY19: =TechnologyInputs!AO19 -> 0.9 | AZ19: =TechnologyInputs!AP19 -> 0.9 | BA19: =TechnologyInputs!AQ19 -> 0.85 | BB19: =TechnologyInputs!AR19 -> 0.4 | BC19: 1 | BD19: 1 | BE19: 0 | BF19: 1 | BG19: 687735 | BH19: 458490000 | BJ19: =TechnologyInputs!AT19 -> 0.39 | BK19: =TechnologyInputs!AU19 -> 1 | BL19: =TechnologyInputs!AV19 -> 0.74 | BM19: =TechnologyInputs!AW19 -> 20 | BN19: =TechnologyInputs!AX19 -> 0.02 | BO19: =TechnologyInputs!AY19 -> 10 | BP19: =TechnologyInputs!AZ19 -> 1 | BQ19: =TechnologyInputs!BA19 -> 0.85 | BR19: =TechnologyInputs!BB19 -> 0.4 | BS19: 0.301995172 | BT19: 1 | BU19: 0 | BV19: 1 | BW19: 0.1177781171 | BX19: 11777811.71 | BZ19: 470267811.7 | CA19: 4.702678117
A20: =TechnologyInputs!A20 -> 10 | B20: =TechnologyInputs!B20 -> Grid VRE | C20: =TechnologyInputs!C20 -> na | D20: =TechnologyInputs!D20 -> Hydro Dam | E20: =TechnologyInputs!E20 -> Hydro turbine | G20: 100 | H20: 750 | I20: 375 | J20: 125 | K20: =J20*TechnologyInputs!H20 -> 375 | M20: =TechnologyInputs!N20 -> 0 | N20: =TechnologyInputs!O20 -> 1 | O20: =TechnologyInputs!P20 -> 0.8 | P20: =TechnologyInputs!Q20 -> 1 | Q20: =TechnologyInputs!R20 -> 30 | R20: =TechnologyInputs!S20 -> 0 | S20: =TechnologyInputs!T20 -> 0 | T20: =TechnologyInputs!V20 -> 0.85 | U20: =TechnologyInputs!W20 -> 0.3 | V20: 1 | W20: 1 | X20: 0 | Y20: 1 | Z20: 0 | AA20: 0 | AC20: =TechnologyInputs!Y20 -> 0 | AD20: =TechnologyInputs!Z20 -> 1 | AE20: =TechnologyInputs!AA20 -> 1 | AF20: =TechnologyInputs!AB20 -> 30 | AG20: =TechnologyInputs!AC20 -> 0 | AH20: =TechnologyInputs!AD20 -> 0 | AI20: =TechnologyInputs!AE20 -> 1 | AJ20: =TechnologyInputs!AF20 -> 1 | AK20: =TechnologyInputs!AG20 -> 0 | AL20: 1 | AM20: 1 | AN20: 0 | AO20: 1 | AP20: 0 | AQ20: 0 | AS20: =TechnologyInputs!AI20 -> 37000 | AT20: =TechnologyInputs!AJ20 -> 1200 | AU20: =TechnologyInputs!AK20 -> 0.7 | AV20: =TechnologyInputs!AL20 -> 30 | AW20: =TechnologyInputs!AM20 -> 0.02 | AX20: =TechnologyInputs!AN20 -> 0 | AY20: =TechnologyInputs!AO20 -> 1 | AZ20: =TechnologyInputs!AP20 -> 1 | BA20: =TechnologyInputs!AQ20 -> 0.85 | BB20: =TechnologyInputs!AR20 -> 0.05 | BC20: 1.151425902 | BD20: 1 | BE20: 0 | BF20: 1 | BG20: 42602.75836 | BH20: 31952068.77 | BJ20: =TechnologyInputs!AT20 -> 1.5 | BK20: =TechnologyInputs!AU20 -> 200 | BL20: =TechnologyInputs!AV20 -> 0.7 | BM20: =TechnologyInputs!AW20 -> 30 | BN20: =TechnologyInputs!AX20 -> 0.02 | BO20: =TechnologyInputs!AY20 -> 0 | BP20: =TechnologyInputs!AZ20 -> 0.8 | BQ20: =TechnologyInputs!BA20 -> 0.85 | BR20: =TechnologyInputs!BB20 -> 0.05 | BS20: 1.231144413 | BT20: 1 | BU20: 0 | BV20: 1 | BW20: 1.84671662 | BX20: 184671662 | BZ20: 216623730.8 | CA20: 2.166237308
A21: =TechnologyInputs!A21 -> 11 | B21: =TechnologyInputs!B21 -> Grid VRE | C21: =TechnologyInputs!C21 -> Electrolyser | D21: =TechnologyInputs!D21 -> Hydrogen | E21: =TechnologyInputs!E21 -> Fuel cell / GT | G21: 100 | H21: 1052.631579 | I21: 899.6851102 | J21: 299.8950367 | K21: =J21*TechnologyInputs!H21 -> 899.6851102 | M21: =TechnologyInputs!N21 -> 0 | N21: =TechnologyInputs!O21 -> 1 | O21: =TechnologyInputs!P21 -> 0.8 | P21: =TechnologyInputs!Q21 -> 1 | Q21: =TechnologyInputs!R21 -> 30 | R21: =TechnologyInputs!S21 -> 0 | S21: =TechnologyInputs!T21 -> 0 | T21: =TechnologyInputs!V21 -> 0.85 | U21: =TechnologyInputs!W21 -> 0.3 | V21: 1 | W21: 1 | X21: 0 | Y21: 1 | Z21: 0 | AA21: 0 | AC21: =TechnologyInputs!Y21 -> 1.09 | AD21: =TechnologyInputs!Z21 -> 20 | AE21: =TechnologyInputs!AA21 -> 0.7 | AF21: =TechnologyInputs!AB21 -> 15 | AG21: =TechnologyInputs!AC21 -> 0.02 | AH21: =TechnologyInputs!AD21 -> 0 | AI21: =TechnologyInputs!AE21 -> 0.65 | AJ21: =TechnologyInputs!AF21 -> 0.85 | AK21: =TechnologyInputs!AG21 -> 0.2 | AL21: 0.3192139328 | AM21: 1 | AN21: 0 | AO21: 1 | AP21: 0.3479431867 | AQ21: 313039304.3 | AS21: =TechnologyInputs!AI21 -> 655 | AT21: =TechnologyInputs!AJ21 -> 20000 | AU21: =TechnologyInputs!AK21 -> 0.7 | AV21: =TechnologyInputs!AL21 -> 30 | AW21: =TechnologyInputs!AM21 -> 0.05 | AX21: =TechnologyInputs!AN21 -> 0 | AY21: =TechnologyInputs!AO21 -> 1 | AZ21: =TechnologyInputs!AP21 -> 0.9 | BA21: =TechnologyInputs!AQ21 -> 0.85 | BB21: =TechnologyInputs!AR21 -> 0.2 | BC21: 2.418945481 | BD21: 1 | BE21: 0 | BF21: 1 | BG21: 1584.40929 | BH21: 1667799.253 | BJ21: =TechnologyInputs!AT21 -> 1.64 | BK21: =TechnologyInputs!AU21 -> 20 | BL21: =TechnologyInputs!AV21 -> 0.7 | BM21: =TechnologyInputs!AW21 -> 30 | BN21: =TechnologyInputs!AX21 -> 0.03 | BO21: =TechnologyInputs!AY21 -> 0 | BP21: =TechnologyInputs!AZ21 -> 0.57 | BQ21: =TechnologyInputs!BA21 -> 0.85 | BR21: =TechnologyInputs!BB21 -> 0.2 | BS21: 0.6170338627 | BT21: 1 | BU21: 0 | BV21: 1 | BW21: 1.011935535 | BX21: 101193553.5 | BZ21: 415900657 | CA21: 4.15900657
A22: =TechnologyInputs!A22 -> 12 | B22: =TechnologyInputs!B22 -> Rooftop PV | C22: =TechnologyInputs!C22 -> na | D22: =TechnologyInputs!D22 -> Batteries | E22: =TechnologyInputs!E22 -> Inverter | G22: 100 | H22: 666.6666667 | I22: 197.9621825 | J22: 111.1111111 | K22: =J22*TechnologyInputs!H22 -> 197.9621825 | M22: =TechnologyInputs!N22 -> 2 | N22: =TechnologyInputs!O22 -> 0.005 | O22: =TechnologyInputs!P22 -> 0.17 | P22: =TechnologyInputs!Q22 -> 1 | Q22: =TechnologyInputs!R22 -> 25 | R22: =TechnologyInputs!S22 -> 0.02 | S22: =TechnologyInputs!T22 -> 0 | T22: =TechnologyInputs!V22 -> 0.85 | U22: =TechnologyInputs!W22 -> 0.3 | V22: 1 | W22: 1 | X22: 0 | Y22: 1 | Z22: 2 | AA22: 395924365 | AC22: =TechnologyInputs!Y22 -> 0 | AD22: =TechnologyInputs!Z22 -> 1 | AE22: =TechnologyInputs!AA22 -> 1 | AF22: =TechnologyInputs!AB22 -> 30 | AG22: =TechnologyInputs!AC22 -> 0 | AH22: =TechnologyInputs!AD22 -> 0 | AI22: =TechnologyInputs!AE22 -> 1 | AJ22: =TechnologyInputs!AF22 -> 1 | AK22: =TechnologyInputs!AG22 -> 0 | AL22: 1 | AM22: 1 | AN22: 0 | AO22: 1 | AP22: 0 | AQ22: 0 | AS22: =TechnologyInputs!AI22 -> 687735 | AT22: =TechnologyInputs!AJ22 -> 1 | AU22: =TechnologyInputs!AK22 -> 1 | AV22: =TechnologyInputs!AL22 -> 15 | AW22: =TechnologyInputs!AM22 -> 0.017 | AX22: =TechnologyInputs!AN22 -> 0 | AY22: =TechnologyInputs!AO22 -> 0.9 | AZ22: =TechnologyInputs!AP22 -> 0.9 | BA22: =TechnologyInputs!AQ22 -> 0.85 | BB22: =TechnologyInputs!AR22 -> 0.4 | BC22: 1 | BD22: 1 | BE22: 0 | BF22: 1 | BG22: 687735 | BH22: 458490000 | BJ22: =TechnologyInputs!AT22 -> 0.39 | BK22: =TechnologyInputs!AU22 -> 1 | BL22: =TechnologyInputs!AV22 -> 0.74 | BM22: =TechnologyInputs!AW22 -> 20 | BN22: =TechnologyInputs!AX22 -> 0.02 | BO22: =TechnologyInputs!AY22 -> 10 | BP22: =TechnologyInputs!AZ22 -> 1 | BQ22: =TechnologyInputs!BA22 -> 0.85 | BR22: =TechnologyInputs!BB22 -> 0.4 | BS22: 0.301995172 | BT22: 1 | BU22: 0 | BV22: 1 | BW22: 0.1177781171 | BX22: 11777811.71 | BZ22: 866192176.7 | CA22: 8.661921767
A23: =TechnologyInputs!A23 -> 13 | B23: =TechnologyInputs!B23 -> Conc. Solar | C23: =TechnologyInputs!C23 -> na | D23: =TechnologyInputs!D23 -> Molten Salt | E23: =TechnologyInputs!E23 -> Steam turbine | G23: 100 | H23: 1428.571429 | I23: 654.3054086 | J23: 238.0952381 | K23: =J23*TechnologyInputs!H23 -> 654.3054086 | M23: =TechnologyInputs!N23 -> 0.46 | N23: =TechnologyInputs!O23 -> 600 | O23: =TechnologyInputs!P23 -> 0.187 | P23: =TechnologyInputs!Q23 -> 0.9 | Q23: =TechnologyInputs!R23 -> 30 | R23: =TechnologyInputs!S23 -> 0.02 | S23: =TechnologyInputs!T23 -> 0 | T23: =TechnologyInputs!V23 -> 0.85 | U23: =TechnologyInputs!W23 -> 0.2 | V23: 0.9913729709 | W23: 1 | X23: 0 | Y23: 1 | Z23: 0.4560315666 | AA23: 298383920.6 | AC23: =TechnologyInputs!Y23 -> 0 | AD23: =TechnologyInputs!Z23 -> 1 | AE23: =TechnologyInputs!AA23 -> 1 | AF23: =TechnologyInputs!AB23 -> 30 | AG23: =TechnologyInputs!AC23 -> 0 | AH23: =TechnologyInputs!AD23 -> 0 | AI23: =TechnologyInputs!AE23 -> 1 | AJ23: =TechnologyInputs!AF23 -> 1 | AK23: =TechnologyInputs!AG23 -> 0 | AL23: 1 | AM23: 1 | AN23: 0 | AO23: 1 | AP23: 0 | AQ23: 0 | AS23: =TechnologyInputs!AI23 -> 26000 | AT23: =TechnologyInputs!AJ23 -> 1429 | AU23: =TechnologyInputs!AK23 -> 0.8 | AV23: =TechnologyInputs!AL23 -> 30 | AW23: =TechnologyInputs!AM23 -> 0.02 | AX23: =TechnologyInputs!AN23 -> 0 | AY23: =TechnologyInputs!AO23 -> 1 | AZ23: =TechnologyInputs!AP23 -> 1 | BA23: =TechnologyInputs!AQ23 -> 0.85 | BB23: =TechnologyInputs!AR23 -> 0.2 | BC23: 1.000059993 | BD23: 1 | BE23: 0 | BF23: 1 | BG23: 26001.55981 | BH23: 37145085.45 | BJ23: =TechnologyInputs!AT23 -> 2.4 | BK23: =TechnologyInputs!AU23 -> 100 | BL23: =TechnologyInputs!AV23 -> 0.7 | BM23: =TechnologyInputs!AW23 -> 30 | BN23: =TechnologyInputs!AX23 -> 0.02 | BO23: =TechnologyInputs!AY23 -> 0 | BP23: =TechnologyInputs!AZ23 -> 0.42 | BQ23: =TechnologyInputs!BA23 -> 0.85 | BR23: =TechnologyInputs!BB23 -> 0.2 | BS23: 1 | BT23: 1 | BU23: 0 | BV23: 1 | BW23: 2.4 | BX23: 240000000 | BZ23: 575529006 | CA23: 5.75529006
A24: =TechnologyInputs!A24 -> 14 | B24: =TechnologyInputs!B24 -> Biomass+AD | C24: =TechnologyInputs!C24 -> Digestor | D24: =TechnologyInputs!D24 -> Gas accumulator | E24: =TechnologyInputs!E24 -> Turbine /eng. | G24: 100 | H24: =I24*AI24*(MAX((24-E4),1.5)) -> 1470.588235 | I24: 81.69934641 | J24: 294.1176471 | K24: =J24*TechnologyInputs!H24 -> 81.69934641 | M24: =TechnologyInputs!N24 -> 0 | N24: =TechnologyInputs!O24 -> 1 | O24: =TechnologyInputs!P24 -> 1 | P24: =TechnologyInputs!Q24 -> 1 | Q24: =TechnologyInputs!R24 -> 20 | R24: =TechnologyInputs!S24 -> 0 | S24: =TechnologyInputs!T24 -> 0 | T24: =TechnologyInputs!V24 -> 0.85 | U24: =TechnologyInputs!W24 -> 0.05 | V24: 1 | W24: 1 | X24: 0 | Y24: 1 | Z24: 0 | AA24: 0 | AC24: =TechnologyInputs!Y24 -> 1.42 | AD24: =TechnologyInputs!Z24 -> 7.26 | AE24: =TechnologyInputs!AA24 -> 0.7 | AF24: =TechnologyInputs!AB24 -> 20 | AG24: =TechnologyInputs!AC24 -> 0.065 | AH24: =TechnologyInputs!AD24 -> 0 | AI24: =TechnologyInputs!AE24 -> 1 | AJ24: =TechnologyInputs!AF24 -> 0.85 | AK24: =TechnologyInputs!AG24 -> 0.05 | AL24: =MAX(0.657,(I24/AD24)^(AE24-1)) -> 0.657 | AM24: 1 | AN24: 0 | AO24: 1 | AP24: 0.93294 | AQ24: 76220588.24 | AS24: =TechnologyInputs!AI24 -> 12391 | AT24: =TechnologyInputs!AJ24 -> 11 | AU24: =TechnologyInputs!AK24 -> 0.8 | AV24: =TechnologyInputs!AL24 -> 20 | AW24: =TechnologyInputs!AM24 -> 0.065 | AX24: =TechnologyInputs!AN24 -> 0 | AY24: =TechnologyInputs!AO24 -> 1 | AZ24: =TechnologyInputs!AP24 -> 1 | BA24: =TechnologyInputs!AQ24 -> 0.85 | BB24: =TechnologyInputs!AR24 -> 0.05 | BC24: =MAX(0.623,(H24/AT24)^(AU24-1)) -> 0.623 | BD24: 1 | BE24: 0 | BF24: 1 | BG24: 7719.593 | BH24: 11352342.65 | BJ24: =TechnologyInputs!AT24 -> 0.91 | BK24: =TechnologyInputs!AU24 -> 2.5 | BL24: =TechnologyInputs!AV24 -> 0.7 | BM24: =TechnologyInputs!AW24 -> 20 | BN24: =TechnologyInputs!AX24 -> 0.065 | BO24: =TechnologyInputs!AY24 -> 0 | BP24: =TechnologyInputs!AZ24 -> 0.34 | BQ24: =TechnologyInputs!BA24 -> 0.85 | BR24: =TechnologyInputs!BB24 -> 0.05 | BS24: =MAX(0.66,(G24/BK24)^(BL24-1)) -> 0.66 | BT24: 1 | BU24: 0 | BV24: 1 | BW24: 0.6006 | BX24: 60060000 | BZ24: 147632930.9 | CA24: 1.476329309
A25: =TechnologyInputs!A25 -> 15 | B25: =TechnologyInputs!B25 -> Dry Biomass $5/GJ | C25: =TechnologyInputs!C25 -> na | D25: =TechnologyInputs!D25 -> Depot | E25: =TechnologyInputs!E25 -> Boiler&Turbine | G25: 100 | H25: =I25*E$4*90 -> 66176.47059 | I25: 122.5490196 | J25: 416.6666667 | K25: =J25*TechnologyInputs!H25 -> 122.5490196 | M25: =TechnologyInputs!N25 -> 0 | N25: =TechnologyInputs!O25 -> 1 | O25: =TechnologyInputs!P25 -> 0.5 | P25: =TechnologyInputs!Q25 -> 1 | Q25: =TechnologyInputs!R25 -> 25 | R25: =TechnologyInputs!S25 -> 0 | S25: =TechnologyInputs!T25 -> 0 | T25: =TechnologyInputs!V25 -> 0.85 | U25: =TechnologyInputs!W25 -> 0.05 | V25: 1 | W25: 1 | X25: 0 | Y25: 1 | Z25: 0 | AA25: 0 | AC25: =TechnologyInputs!Y25 -> 0 | AD25: =TechnologyInputs!Z25 -> 1 | AE25: =TechnologyInputs!AA25 -> 1 | AF25: =TechnologyInputs!AB25 -> 25 | AG25: =TechnologyInputs!AC25 -> 0 | AH25: =TechnologyInputs!AD25 -> 0 | AI25: =TechnologyInputs!AE25 -> 1 | AJ25: =TechnologyInputs!AF25 -> 1 | AK25: =TechnologyInputs!AG25 -> 0 | AL25: 1 | AM25: 1 | AN25: 0 | AO25: 1 | AP25: 0 | AQ25: 0 | AS25: =TechnologyInputs!AI25 -> 6.7 | AT25: =TechnologyInputs!AJ25 -> 44384 | AU25: =TechnologyInputs!AK25 -> 1 | AV25: =TechnologyInputs!AL25 -> 25 | AW25: =TechnologyInputs!AM25 -> 0.036 | AX25: =TechnologyInputs!AN25 -> 0 | AY25: =TechnologyInputs!AO25 -> 1 | AZ25: =TechnologyInputs!AP25 -> 1 | BA25: =TechnologyInputs!AQ25 -> 0.85 | BB25: =TechnologyInputs!AR25 -> 0 | BC25: 1 | BD25: 1 | BE25: 0 | BF25: 1 | BG25: 6.7 | BH25: 443382.3529 | BJ25: =TechnologyInputs!AT25 -> 4.89 | BK25: =TechnologyInputs!AU25 -> 15 | BL25: =TechnologyInputs!AV25 -> 0.7 | BM25: =TechnologyInputs!AW25 -> 25 | BN25: =TechnologyInputs!AX25 -> 0.036 | BO25: =TechnologyInputs!AY25 -> 0 | BP25: =TechnologyInputs!AZ25 -> 0.24 | BQ25: =TechnologyInputs!BA25 -> 0.85 | BR25: =TechnologyInputs!BB25 -> 0.05 | BS25: =MAX(0.697,(G25/BK25)^(BL25-1)) -> 0.697 | BT25: 1 | BU25: 0 | BV25: 1 | BW25: 3.40833 | BX25: 340833000 | BZ25: 341276382.4 | CA25: 3.412763824
A26: =TechnologyInputs!A26 -> 16 | B26: =TechnologyInputs!B26 -> Dry Biomass $2.5/GJ | C26: =TechnologyInputs!C26 -> na | D26: =TechnologyInputs!D26 -> Depot | E26: =TechnologyInputs!E26 -> Boiler&Turbine | G26: 100 | H26: =I26*E$4*90 -> 66176.47059 | I26: 122.5490196 | J26: 416.6666667 | K26: =J26*TechnologyInputs!H26 -> 122.5490196 | M26: =TechnologyInputs!N26 -> 0 | N26: =TechnologyInputs!O26 -> 1 | O26: =TechnologyInputs!P26 -> 0.5 | P26: =TechnologyInputs!Q26 -> 1 | Q26: =TechnologyInputs!R26 -> 25 | R26: =TechnologyInputs!S26 -> 0 | S26: =TechnologyInputs!T26 -> 0 | T26: =TechnologyInputs!V26 -> 0.85 | U26: =TechnologyInputs!W26 -> 0.05 | V26: 1 | W26: 1 | X26: 0 | Y26: 1 | Z26: 0 | AA26: 0 | AC26: =TechnologyInputs!Y26 -> 0 | AD26: =TechnologyInputs!Z26 -> 1 | AE26: =TechnologyInputs!AA26 -> 1 | AF26: =TechnologyInputs!AB26 -> 25 | AG26: =TechnologyInputs!AC26 -> 0 | AH26: =TechnologyInputs!AD26 -> 0 | AI26: =TechnologyInputs!AE26 -> 1 | AJ26: =TechnologyInputs!AF26 -> 1 | AK26: =TechnologyInputs!AG26 -> 0 | AL26: =(I26/AD26)^(AE26-1) -> 1 | AM26: =(1+AK26)^($E$6-$E$5) -> 1 | AN26: =LOG(AM26,2) -> 0 | AO26: =AJ26^AN26 -> 1 | AP26: =AL26*AC26*AO26 -> 0 | AQ26: =AP26*I26*1000000 -> 0 | AS26: =TechnologyInputs!AI26 -> 6.7 | AT26: =TechnologyInputs!AJ26 -> 44384 | AU26: =TechnologyInputs!AK26 -> 1 | AV26: =TechnologyInputs!AL26 -> 25 | AW26: =TechnologyInputs!AM26 -> 0.036 | AX26: =TechnologyInputs!AN26 -> 0 | AY26: =TechnologyInputs!AO26 -> 1 | AZ26: =TechnologyInputs!AP26 -> 1 | BA26: =TechnologyInputs!AQ26 -> 0.85 | BB26: =TechnologyInputs!AR26 -> 0 | BC26: =(H26/AT26)^(AU26-1) -> 1 | BD26: =(1+BB26)^($E$6-$E$5) -> 1 | BE26: =LOG(BD26,2) -> 0 | BF26: =BA26^BE26 -> 1 | BG26: =BC26*AS26*BF26 -> 6.7 | BH26: =BG26*H26 -> 443382.3529 | BJ26: =TechnologyInputs!AT26 -> 4.89 | BK26: =TechnologyInputs!AU26 -> 15 | BL26: =TechnologyInputs!AV26 -> 0.7 | BM26: =TechnologyInputs!AW26 -> 25 | BN26: =TechnologyInputs!AX26 -> 0.036 | BO26: =TechnologyInputs!AY26 -> 0 | BP26: =TechnologyInputs!AZ26 -> 0.24 | BQ26: =TechnologyInputs!BA26 -> 0.85 | BR26: =TechnologyInputs!BB26 -> 0.05 | BS26: =MAX(0.697,(G26/BK26)^(BL26-1)) -> 0.697 | BT26: =(1+BR26)^($E$6-$E$5) -> 1 | BU26: =LOG(BT26,2) -> 0 | BV26: =BQ26^BU26 -> 1 | BW26: =BS26*BJ26*BV26 -> 3.40833 | BX26: =BW26*G26*1000000 -> 340833000 | BZ26: =AA26+AQ26+BH26+BX26 -> 341276382.4 | CA26: =BZ26/(G26*1000000) -> 3.412763824
A27: =TechnologyInputs!A27 -> 17 | B27: =TechnologyInputs!B27 -> HSA Geothermal | C27: =TechnologyInputs!C27 -> na | D27: =TechnologyInputs!D27 -> Self | E27: =TechnologyInputs!E27 -> Turbine | G27: 100 | H27: 0.1 | I27: 500 | J27: 500 | K27: =J27*TechnologyInputs!H27 -> 500 | M27: =TechnologyInputs!N27 -> 0 | N27: =TechnologyInputs!O27 -> 50 | O27: =TechnologyInputs!P27 -> 1 | P27: =TechnologyInputs!Q27 -> 1 | Q27: =TechnologyInputs!R27 -> 30 | R27: =TechnologyInputs!S27 -> 0.02 | S27: =TechnologyInputs!T27 -> 0 | T27: =TechnologyInputs!V27 -> 0.85 | U27: =TechnologyInputs!W27 -> 0.05 | V27: 1 | W27: 1 | X27: 0 | Y27: 1 | Z27: 0 | AA27: 0 | AC27: =TechnologyInputs!Y27 -> 0 | AD27: =TechnologyInputs!Z27 -> 1 | AE27: =TechnologyInputs!AA27 -> 1 | AF27: =TechnologyInputs!AB27 -> 30 | AG27: =TechnologyInputs!AC27 -> 0 | AH27: =TechnologyInputs!AD27 -> 0 | AI27: =TechnologyInputs!AE27 -> 1 | AJ27: =TechnologyInputs!AF27 -> 1 | AK27: =TechnologyInputs!AG27 -> 0 | AL27: 1 | AM27: 1 | AN27: 0 | AO27: 1 | AP27: 0 | AQ27: 0 | AS27: =TechnologyInputs!AI27 -> 0 | AT27: =TechnologyInputs!AJ27 -> 1 | AU27: =TechnologyInputs!AK27 -> 1 | AV27: =TechnologyInputs!AL27 -> 30 | AW27: =TechnologyInputs!AM27 -> 0 | AX27: =TechnologyInputs!AN27 -> 0 | AY27: =TechnologyInputs!AO27 -> 1 | AZ27: =TechnologyInputs!AP27 -> 1 | BA27: =TechnologyInputs!AQ27 -> 0.85 | BB27: =TechnologyInputs!AR27 -> 0 | BC27: 1 | BD27: 1 | BE27: 0 | BF27: 1 | BG27: 0 | BH27: 0 | BJ27: =TechnologyInputs!AT27 -> 6.27 | BK27: =TechnologyInputs!AU27 -> 50 | BL27: =TechnologyInputs!AV27 -> 0.7 | BM27: =TechnologyInputs!AW27 -> 30 | BN27: =TechnologyInputs!AX27 -> 0.02 | BO27: =TechnologyInputs!AY27 -> 0 | BP27: =TechnologyInputs!AZ27 -> 0.2 | BQ27: =TechnologyInputs!BA27 -> 0.85 | BR27: =TechnologyInputs!BB27 -> 0.05 | BS27: 0.8122523964 | BT27: 1 | BU27: 0 | BV27: 1 | BW27: 5.092822525 | BX27: 509282252.5 | BZ27: 509282252.5 | CA27: 5.092822525
A28: =TechnologyInputs!A28 -> 18 | B28: =TechnologyInputs!B28 -> EGS Geothermal | C28: =TechnologyInputs!C28 -> na | D28: =TechnologyInputs!D28 -> Self | E28: =TechnologyInputs!E28 -> Turbine | G28: 100 | H28: 0.1 | I28: 500 | J28: 500 | K28: =J28*TechnologyInputs!H28 -> 500 | M28: =TechnologyInputs!N28 -> 0 | N28: =TechnologyInputs!O28 -> 50 | O28: =TechnologyInputs!P28 -> 1 | P28: =TechnologyInputs!Q28 -> 1 | Q28: =TechnologyInputs!R28 -> 30 | R28: =TechnologyInputs!S28 -> 0.02 | S28: =TechnologyInputs!T28 -> 0 | T28: =TechnologyInputs!V28 -> 0.85 | U28: =TechnologyInputs!W28 -> 0.05 | V28: 1 | W28: 1 | X28: 0 | Y28: 1 | Z28: 0 | AA28: 0 | AC28: =TechnologyInputs!Y28 -> 0 | AD28: =TechnologyInputs!Z28 -> 1 | AE28: =TechnologyInputs!AA28 -> 1 | AF28: =TechnologyInputs!AB28 -> 30 | AG28: =TechnologyInputs!AC28 -> 0 | AH28: =TechnologyInputs!AD28 -> 0 | AI28: =TechnologyInputs!AE28 -> 1 | AJ28: =TechnologyInputs!AF28 -> 1 | AK28: =TechnologyInputs!AG28 -> 0 | AL28: 1 | AM28: 1 | AN28: 0 | AO28: 1 | AP28: 0 | AQ28: 0 | AS28: =TechnologyInputs!AI28 -> 0 | AT28: =TechnologyInputs!AJ28 -> 1 | AU28: =TechnologyInputs!AK28 -> 1 | AV28: =TechnologyInputs!AL28 -> 30 | AW28: =TechnologyInputs!AM28 -> 0 | AX28: =TechnologyInputs!AN28 -> 0 | AY28: =TechnologyInputs!AO28 -> 1 | AZ28: =TechnologyInputs!AP28 -> 1 | BA28: =TechnologyInputs!AQ28 -> 0.85 | BB28: =TechnologyInputs!AR28 -> 0 | BC28: 1 | BD28: 1 | BE28: 0 | BF28: 1 | BG28: 0 | BH28: 0 | BJ28: =TechnologyInputs!AT28 -> 14 | BK28: =TechnologyInputs!AU28 -> 50 | BL28: =TechnologyInputs!AV28 -> 0.8 | BM28: =TechnologyInputs!AW28 -> 30 | BN28: =TechnologyInputs!AX28 -> 0.02 | BO28: =TechnologyInputs!AY28 -> 0 | BP28: =TechnologyInputs!AZ28 -> 0.2 | BQ28: =TechnologyInputs!BA28 -> 0.85 | BR28: =TechnologyInputs!BB28 -> 0.05 | BS28: 0.8705505633 | BT28: 1 | BU28: 0 | BV28: 1 | BW28: 12.18770789 | BX28: 1218770789 | BZ28: 1218770789 | CA28: 12.18770789

Sheet LCOECalc
B2: Global inputs | I2: Input Cells
B3: =IN_OUT!B3 -> Nameplate capacity | D3: =IN_OUT!F3 -> 100 | E3: =IN_OUT!E3 -> MW | I3: Fixed Cells
B4: =IN_OUT!B4 -> Daily duration of delivery / storage | D4: =IN_OUT!F4 -> 6 | E4: =IN_OUT!E4 -> Hours | I4: Linked Cells | S4: BACK TO INDEX
B5: =IN_OUT!B5 -> Base Year | D5: =IN_OUT!F5 -> 2017 | I5: Calculated Cells
B6: =IN_OUT!B6 -> Target Year | D6: =IN_OUT!F6 -> 2017
B7: =IN_OUT!B7 -> WACC | D7: =IN_OUT!F7 -> 0.065 | E7: =IN_OUT!E7 -> %
O8: Sizing | T8: Energy Capture | AF8: Initial Energy conversion | AQ8: Energy Storage | BB8: Final Energy conversion
A9: SI No | B9: =TechnologyInputs!B9 -> Energy Capture | C9: =TechnologyInputs!C9 -> Initial energy conversion | D9: =TechnologyInputs!D9 -> Energy Storage | E9: =TechnologyInputs!E9 -> Energy Conversion | G9: ='InitialSize&CostCalc'!G9 -> Nameplate output | H9: ='InitialSize&CostCalc'!H9 -> Storage capacity required | I9: ='InitialSize&CostCalc'!I9 -> Initial conversion capacity required | J9: ='InitialSize&CostCalc'!J9 -> Base collector capacity required | K9: Output capacity factor | M9: ='InitialSize&CostCalc'!Z9 -> Collector specific cost scaled | O9: =TechnologyInputs!P9 -> Capture capacity factor | P9: =TechnologyInputs!R9 -> Life-time | Q9: =TechnologyInputs!S9 -> Fixed O&M cost | R9: =TechnologyInputs!T9 -> Variable O&M cost | S9: =TechnologyInputs!U9 -> Input energy/ fuel cost | T9: Capital recovery factor | U9: Capex contribution to LCOE Collection | V9: Fixed O&M contribution | W9: Variable O&M contribution | X9: Energy input cost contribution to LCOE | Y9: LCOE collected energy | Z9: =TechnologyInputs!X9 -> 0 | AA9: ='InitialSize&CostCalc'!AP9 -> Conversion specific cost scaled | AB9: ='InitialSize&CostCalc'!AQ9 -> Conversion cost | AC9: =TechnologyInputs!AB9 -> Lifetime | AD9: =TechnologyInputs!AC9 -> Fixed O&M cost | AE9: =TechnologyInputs!AD9 -> Variable O&M cost | AF9: =TechnologyInputs!AE9 -> efficiency | AG9: Capital recovery factor | AH9: Capex contribution to final LCOE | AI9: Fixed O&M contribution to final LCOE | AJ9: Variable O&M contribution to final LCOE | AL9: ='InitialSize&CostCalc'!BG9 -> Storage specific cost scaled | AM9: ='InitialSize&CostCalc'!BH9 -> Storage cost | AN9: =TechnologyInputs!AL9 -> Lifetime | AO9: =TechnologyInputs!AM9 -> Fixed O&M cost | AP9: =TechnologyInputs!AN9 -> Variable O&M cost | AQ9: =TechnologyInputs!AP9 -> efficiency | AR9: Capital recovery factor | AS9: Capex contribution to final LCOE | AT9: Fixed O&M contribution to final LCOE | AU9: Variable O&M contribution to final LCOE | AW9: ='InitialSize&CostCalc'!BW9 -> Conversion specific cost scaled | AX9: ='InitialSize&CostCalc'!BX9 -> Conversion cost | AY9: =TechnologyInputs!AW9 -> Lifetime | AZ9: =TechnologyInputs!AX9 -> Fixed O&M cost | BA9: =TechnologyInputs!AY9 -> Variable O&M cost | BB9: =TechnologyInputs!AZ9 -> efficiency | BC9: Capital recovery factor | BD9: Capex contribution to final LCOE | BE9: Fixed O&M contribution to final LCOE | BF9: Variable O&M contribution to final LCOE | BH9: Collection Energy contribution to LCOE | BI9: TOTAL LCOE | BN9: LCOE collection | BO9: LCOE initial conversion | BP9: LCOE storage | BQ9: LCOE final conversion | BR9: TOTAL
G10: ='InitialSize&CostCalc'!G10 -> MW | H10: ='InitialSize&CostCalc'!H10 -> MWh | I10: ='InitialSize&CostCalc'!I10 -> MW | J10: ='InitialSize&CostCalc'!J10 -> MW | M10: =TechnologyInputs!N10 -> m$/MW | P10: =TechnologyInputs!R10 -> year | Q10: =TechnologyInputs!S10 -> %/yr | R10: =TechnologyInputs!T10 -> $/MWh | S10: =TechnologyInputs!U10 -> $/MWh | U10: $/MWh | V10: $/MWh | W10: $/MWh | X10: $/MWh | Y10: $/MWh | AA10: ='InitialSize&CostCalc'!AP10 -> m$/MW | AD10: =TechnologyInputs!AC10 -> %/yr | AE10: =TechnologyInputs!AD10 -> $/MWh | AH10: $/MWh | AI10: $/MWh | AJ10: $/MWh | AL10: ='InitialSize&CostCalc'!BG10 -> $/MWH | AM10: ='InitialSize&CostCalc'!BH10 -> AUD $ | AN10: =TechnologyInputs!AL10 -> Year | AO10: =TechnologyInputs!AM10 -> %/yr | AP10: =TechnologyInputs!AN10 -> $/MWh | AS10: $/MWh | AT10: $/MWh | AU10: $/MWh | AW10: ='InitialSize&CostCalc'!BW10 -> m$/MW | AX10: ='InitialSize&CostCalc'!BX10 -> AUD $ | AZ10: =TechnologyInputs!AX10 -> %/yr | BA10: =TechnologyInputs!AY10 -> $/MWh | BD10: $/MWh | BE10: $/MWh | BF10: $/MWh | BH10: $/MWh | BI10: AUD$/MWh
A11: =TechnologyInputs!A11 -> 1 | B11: =TechnologyInputs!B11 -> Utility PV | C11: =TechnologyInputs!C11 -> na | D11: =TechnologyInputs!D11 -> na | E11: =TechnologyInputs!E11 -> na | G11: ='InitialSize&CostCalc'!G11 -> 100 | H11: ='InitialSize&CostCalc'!H11 -> 0 | I11: ='InitialSize&CostCalc'!I11 -> 100 | J11: ='InitialSize&CostCalc'!J11 -> 100 | K11: =TechnologyInputs!K11 -> 0.28 | M11: ='InitialSize&CostCalc'!Z11 -> 1.87 | O11: =TechnologyInputs!P11 -> 0.28 | P11: =TechnologyInputs!R11 -> 30 | Q11: =TechnologyInputs!S11 -> 0.012 | R11: =TechnologyInputs!T11 -> 0 | S11: =TechnologyInputs!U11 -> 0 | T11: =($D$7*(1+$D$7)^P11)/((1+$D$7)^P11-1) -> 0.07657744225 | U11: =M11*1000000*T11/(O11*365*24) -> 58.3821824 | V11: =M11*1000000*Q11/(O11*365*24) -> 9.148727984 | W11: =R11 -> 0 | X11: =S11 -> 0 | Y11: =SUM(U11:X11) -> 67.53091039 | AA11: ='InitialSize&CostCalc'!AP11 -> 0 | AB11: ='InitialSize&CostCalc'!AQ11 -> 0 | AC11: =TechnologyInputs!AB11 -> 30 | AD11: =TechnologyInputs!AC11 -> 0 | AE11: =TechnologyInputs!AD11 -> 0 | AF11: =TechnologyInputs!AE11 -> 1 | AG11: =($D$7*(1+$D$7)^AC11)/((1+$D$7)^AC11-1) -> 0.07657744225 | AH11: =AB11*AG11/(G11*K11*365*24) -> 0 | AI11: =AB11*AD11/(G11*K11*365*24) -> 0 | AJ11: =AE11/(AF11*AQ11*BB11) -> 0 | AL11: ='InitialSize&CostCalc'!BG11 -> 0 | AM11: ='InitialSize&CostCalc'!BH11 -> 0 | AN11: =TechnologyInputs!AL11 -> 30 | AO11: =TechnologyInputs!AM11 -> 0 | AP11: =TechnologyInputs!AN11 -> 0 | AQ11: =TechnologyInputs!AP11 -> 1 | AR11: =($D$7*(1+$D$7)^AN11)/((1+$D$7)^AN11-1) -> 0.07657744225 | AS11: =AM11*AR11/(G11*K11*365*24) -> 0 | AT11: =AM11*AO11/(G11*K11*365*24) -> 0 | AU11: =AP11/(AQ11*BB11) -> 0 | AW11: ='InitialSize&CostCalc'!BW11 -> 0 | AX11: ='InitialSize&CostCalc'!BX11 -> 0 | AY11: =TechnologyInputs!AW11 -> 30 | AZ11: =TechnologyInputs!AX11 -> 0 | BA11: =TechnologyInputs!AY11 -> 0 | BB11: =TechnologyInputs!AZ11 -> 1 | BC11: =($D$7*(1+$D$7)^AY11)/((1+$D$7)^AY11-1) -> 0.07657744225 | BD11: =AX11*BC11/(G11*K11*365*24) -> 0 | BE11: =AX11*AZ11/(G11*K11*365*24) -> 0 | BF11: =BA11 -> 0 | BH11: =Y11/(BB11*AQ11*AF11) -> 67.53091039 | BI11: =AH11+AI11+AJ11+AS11+AT11+AU11+BD11+BE11+BF11+BH11 -> 67.53091039 | BN11: =BH11 -> 67.53091039 | BO11: =AH11+AI11+AJ11 -> 0 | BP11: =AS11+AT11+AU11 -> 0 | BQ11: =BD11+BE11+BF11 -> 0 | BR11: =SUM(BN11:BQ11) -> 67.53091039
A12: =TechnologyInputs!A12 -> 2 | B12: =TechnologyInputs!B12 -> Wind | C12: =TechnologyInputs!C12 -> na | D12: =TechnologyInputs!D12 -> na | E12: =TechnologyInputs!E12 -> na | G12: ='InitialSize&CostCalc'!G12 -> 100 | H12: ='InitialSize&CostCalc'!H12 -> 0 | I12: ='InitialSize&CostCalc'!I12 -> 100 | J12: ='InitialSize&CostCalc'!J12 -> 100 | K12: =TechnologyInputs!K12 -> 0.38 | M12: ='InitialSize&CostCalc'!Z12 -> 2.18 | O12: =TechnologyInputs!P12 -> 0.38 | P12: =TechnologyInputs!R12 -> 30 | Q12: =TechnologyInputs!S12 -> 0.02 | R12: =TechnologyInputs!T12 -> 0 | S12: =TechnologyInputs!U12 -> 0 | T12: 0.07657744225 | U12: 50.14985103 | V12: =M12*1000000*Q12/(O12*365*24) -> 13.09781303 | W12: 0 | X12: 0 | Y12: =SUM(U12:X12) -> 63.24766405 | AA12: ='InitialSize&CostCalc'!AP12 -> 0 | AB12: ='InitialSize&CostCalc'!AQ12 -> 0 | AC12: =TechnologyInputs!AB12 -> 30 | AD12: =TechnologyInputs!AC12 -> 0 | AE12: =TechnologyInputs!AD12 -> 0 | AF12: =TechnologyInputs!AE12 -> 1 | AG12: 0.07657744225 | AH12: =AB12*AG12/(G12*K12*365*24) -> 0 | AI12: =AB12*AD12/(G12*K12*365*24) -> 0 | AJ12: =AE12/(AF12*AQ12*BB12) -> 0 | AL12: ='InitialSize&CostCalc'!BG12 -> 0 | AM12: ='InitialSize&CostCalc'!BH12 -> 0 | AN12: =TechnologyInputs!AL12 -> 30 | AO12: =TechnologyInputs!AM12 -> 0 | AP12: =TechnologyInputs!AN12 -> 0 | AQ12: =TechnologyInputs!AP12 -> 1 | AR12: =($D$7*(1+$D$7)^AN12)/((1+$D$7)^AN12-1) -> 0.07657744225 | AS12: =AM12*AR12/(G12*K12*365*24) -> 0 | AT12: =AM12*AO12/(G12*K12*365*24) -> 0 | AU12: =AP12/(AQ12*BB12) -> 0 | AW12: ='InitialSize&CostCalc'!BW12 -> 0 | AX12: ='InitialSize&CostCalc'!BX12 -> 0 | AY12: =TechnologyInputs!AW12 -> 30 | AZ12: =TechnologyInputs!AX12 -> 0 | BA12: =TechnologyInputs!AY12 -> 0 | BB12: =TechnologyInputs!AZ12 -> 1 | BC12: =($D$7*(1+$D$7)^AY12)/((1+$D$7)^AY12-1) -> 0.07657744225 | BD12: =AX12*BC12/(G12*K12*365*24) -> 0 | BE12: =AX12*AZ12/(G12*K12*365*24) -> 0 | BF12: =BA12 -> 0 | BH12: 63.24766405 | BI12: =AH12+AI12+AJ12+AS12+AT12+AU12+BD12+BE12+BF12+BH12 -> 63.24766405 | BN12: =BH12 -> 63.24766405 | BO12: =AH12+AI12+AJ12 -> 0 | BP12: =AS12+AT12+AU12 -> 0 | BQ12: =BD12+BE12+BF12 -> 0 | BR12: =SUM(BN12:BQ12) -> 63.24766405
A13: =TechnologyInputs!A13 -> 3 | B13: =TechnologyInputs!B13 -> Utility PV | C13: =TechnologyInputs!C13 -> na | D13: =TechnologyInputs!D13 -> Batteries | E13: =TechnologyInputs!E13 -> Inverter | G13: ='InitialSize&CostCalc'!G13 -> 100 | H13: ='InitialSize&CostCalc'!H13 -> 666.6666667 | I13: ='InitialSize&CostCalc'!I13 -> 249.7672928 | J13: ='InitialSize&CostCalc'!J13 -> 111.1111111 | K13: =TechnologyInputs!K13 -> 0.4982326923 | M13: ='InitialSize&CostCalc'!Z13 -> 1.690879638 | O13: =TechnologyInputs!P13 -> 0.28 | P13: =TechnologyInputs!R13 -> 30 | Q13: =TechnologyInputs!S13 -> 0.012 | R13: =TechnologyInputs!T13 -> 0 | S13: =TechnologyInputs!U13 -> 0 | T13: =($D$7*(1+$D$7)^P13)/((1+$D$7)^P13-1) -> 0.07657744225 | U13: 52.78996975 | V13: =M13*1000000*Q13/(O13*365*24) -> 8.272405273 | W13: =R13 -> 0 | X13: =S13 -> 0 | Y13: =SUM(U13:X13) -> 61.06237502 | AA13: ='InitialSize&CostCalc'!AP13 -> 0 | AB13: ='InitialSize&CostCalc'!AQ13 -> 0 | AC13: =TechnologyInputs!AB13 -> 30 | AD13: =TechnologyInputs!AC13 -> 0 | AE13: =TechnologyInputs!AD13 -> 0 | AF13: =TechnologyInputs!AE13 -> 1 | AG13: =($D$7*(1+$D$7)^AC13)/((1+$D$7)^AC13-1) -> 0.07657744225 | AH13: 0 | AI13: 0 | AJ13: 0 | AL13: ='InitialSize&CostCalc'!BG13 -> 687735 | AM13: ='InitialSize&CostCalc'!BH13 -> 458490000 | AN13: =TechnologyInputs!AL13 -> 15 | AO13: =TechnologyInputs!AM13 -> 0.017 | AP13: =TechnologyInputs!AN13 -> 0 | AQ13: =TechnologyInputs!AP13 -> 0.9 | AR13: 0.106352783 | AS13: 111.7229512 | AT13: 17.85839654 | AU13: 0 | AW13: ='InitialSize&CostCalc'!BW13 -> 0.1177781171 | AX13: ='InitialSize&CostCalc'!BX13 -> 11777811.71 | AY13: =TechnologyInputs!AW13 -> 20 | AZ13: =TechnologyInputs!AX13 -> 0.02 | BA13: =TechnologyInputs!AY13 -> 10 | BB13: =TechnologyInputs!AZ13 -> 1 | BC13: 0.09075639536 | BD13: 2.44909436 | BE13: 0.5397072792 | BF13: 10 | BH13: =Y13/(BB13*AQ13*AF13) -> 67.84708336 | BI13: 210.4172328 | BN13: 67.84708336 | BO13: 0 | BP13: 129.5813478 | BQ13: 12.98880164 | BR13: 210.4172328
A14: =TechnologyInputs!A14 -> 4 | B14: =TechnologyInputs!B14 -> Utility PV | C14: =TechnologyInputs!C14 -> na | D14: =TechnologyInputs!D14 -> Hydro Dam | E14: =TechnologyInputs!E14 -> Hydro turbine | G14: ='InitialSize&CostCalc'!G14 -> 100 | H14: ='InitialSize&CostCalc'!H14 -> 750 | I14: ='InitialSize&CostCalc'!I14 -> 209.2100125 | J14: ='InitialSize&CostCalc'!J14 -> 125 | K14: =TechnologyInputs!K14 -> 0.4957634051 | M14: ='InitialSize&CostCalc'!Z14 -> 1.724159881 | O14: =TechnologyInputs!P14 -> 0.28 | P14: =TechnologyInputs!R14 -> 30 | Q14: =TechnologyInputs!S14 -> 0.012 | R14: =TechnologyInputs!T14 -> 0 | S14: =TechnologyInputs!U14 -> 0 | T14: 0.07657744225 | U14: 53.82899286 | V14: =M14*1000000*Q14/(O14*365*24) -> 8.435224466 | W14: 0 | X14: 0 | Y14: =SUM(U14:X14) -> 62.26421733 | AA14: ='InitialSize&CostCalc'!AP14 -> 0 | AB14: ='InitialSize&CostCalc'!AQ14 -> 0 | AC14: =TechnologyInputs!AB14 -> 30 | AD14: =TechnologyInputs!AC14 -> 0 | AE14: =TechnologyInputs!AD14 -> 0 | AF14: =TechnologyInputs!AE14 -> 1 | AG14: 0.07657744225 | AH14: 0 | AI14: 0 | AJ14: 0 | AL14: ='InitialSize&CostCalc'!BG14 -> 42602.75836 | AM14: ='InitialSize&CostCalc'!BH14 -> 31952068.77 | AN14: =TechnologyInputs!AL14 -> 30 | AO14: =TechnologyInputs!AM14 -> 0.02 | AP14: =TechnologyInputs!AN14 -> 0 | AQ14: =TechnologyInputs!AP14 -> 1 | AR14: 0.07657744225 | AS14: 5.634057389 | AT14: 1.47146659 | AU14: 0 | AW14: ='InitialSize&CostCalc'!BW14 -> 1.84671662 | AX14: ='InitialSize&CostCalc'!BX14 -> 184671662 | AY14: =TechnologyInputs!AW14 -> 30 | AZ14: =TechnologyInputs!AX14 -> 0.02 | BA14: =TechnologyInputs!AY14 -> 0 | BB14: =TechnologyInputs!AZ14 -> 0.8 | BC14: 0.07657744225 | BD14: 32.56286 | BE14: 8.504556705 | BF14: 0 | BH14: 77.83027166 | BI14: 126.0032123 | BN14: 77.83027166 | BO14: 0 | BP14: 7.105523979 | BQ14: 41.0674167 | BR14: 126.0032123
A15: =TechnologyInputs!A15 -> 5 | B15: =TechnologyInputs!B15 -> Utility PV | C15: =TechnologyInputs!C15 -> Electrolyser | D15: =TechnologyInputs!D15 -> Hydrogen | E15: =TechnologyInputs!E15 -> Fuel cell / GT | G15: ='InitialSize&CostCalc'!G15 -> 100 | H15: ='InitialSize&CostCalc'!H15 -> 1052.631579 | I15: ='InitialSize&CostCalc'!I15 -> 209.9265257 | J15: ='InitialSize&CostCalc'!J15 -> 299.8950367 | K15: =TechnologyInputs!K15 -> 0.339747538 | M15: ='InitialSize&CostCalc'!Z15 -> 1.723511563 | O15: =TechnologyInputs!P15 -> 0.28 | P15: =TechnologyInputs!R15 -> 30 | Q15: =TechnologyInputs!S15 -> 0.012 | R15: =TechnologyInputs!T15 -> 0 | S15: =TechnologyInputs!U15 -> 0 | T15: 0.07657744225 | U15: 53.80875212 | V15: 8.432052659 | W15: 0 | X15: 0 | Y15: 62.24080478 | AA15: ='InitialSize&CostCalc'!AP15 -> 0.5384127071 | AB15: ='InitialSize&CostCalc'!AQ15 -> 113027109 | AC15: =TechnologyInputs!AB15 -> 15 | AD15: =TechnologyInputs!AC15 -> 0.02 | AE15: =TechnologyInputs!AD15 -> 0 | AF15: =TechnologyInputs!AE15 -> 0.65 | AG15: 0.106352783 | AH15: 40.38973964 | AI15: 7.595426939 | AJ15: 0 | AL15: ='InitialSize&CostCalc'!BG15 -> 1584.40929 | AM15: ='InitialSize&CostCalc'!BH15 -> 1667799.253 | AN15: =TechnologyInputs!AL15 -> 30 | AO15: =TechnologyInputs!AM15 -> 0.05 | AP15: =TechnologyInputs!AN15 -> 0 | AQ15: =TechnologyInputs!AP15 -> 0.9 | AR15: 0.07657744225 | AS15: 0.4291253858 | AT15: 0.2801904668 | AU15: 0 | AW15: ='InitialSize&CostCalc'!BW15 -> 1.011935535 | AX15: ='InitialSize&CostCalc'!BX15 -> 101193553.5 | AY15: =TechnologyInputs!AW15 -> 30 | AZ15: =TechnologyInputs!AX15 -> 0.03 | BA15: =TechnologyInputs!AY15 -> 0 | BB15: =TechnologyInputs!AZ15 -> 0.57 | BC15: 0.07657744225 | BD15: 26.03714002 | BE15: 10.20031719 | BF15: 0 | BH15: =Y15/(BB15*AQ15*AF15) -> 186.6570844 | BI15: =AH15+AI15+AJ15+AS15+AT15+AU15+BD15+BE15+BF15+BH15 -> 271.589024 | BN15: 186.6570844 | BO15: 47.98516658 | BP15: 0.7093158527 | BQ15: 36.23745722 | BR15: 271.589024
A16: =TechnologyInputs!A16 -> 6 | B16: =TechnologyInputs!B16 -> Wind | C16: =TechnologyInputs!C16 -> na | D16: =TechnologyInputs!D16 -> Batteries | E16: =TechnologyInputs!E16 -> Inverter | G16: ='InitialSize&CostCalc'!G16 -> 100 | H16: ='InitialSize&CostCalc'!H16 -> 666.6666667 | I16: ='InitialSize&CostCalc'!I16 -> 225.4689953 | J16: ='InitialSize&CostCalc'!J16 -> 111.1111111 | K16: =TechnologyInputs!K16 -> 0.7303775309 | M16: ='InitialSize&CostCalc'!Z16 -> 2.009776717 | O16: =TechnologyInputs!P16 -> 0.38 | P16: =TechnologyInputs!R16 -> 30 | Q16: =TechnologyInputs!S16 -> 0.02 | R16: =TechnologyInputs!T16 -> 0 | S16: =TechnologyInputs!U16 -> 0 | T16: 0.07657744225 | U16: 46.23394631 | V16: 12.07508241 | W16: 0 | X16: 0 | Y16: 58.30902872 | AA16: ='InitialSize&CostCalc'!AP16 -> 0 | AB16: ='InitialSize&CostCalc'!AQ16 -> 0 | AC16: =TechnologyInputs!AB16 -> 30 | AD16: =TechnologyInputs!AC16 -> 0 | AE16: =TechnologyInputs!AD16 -> 0 | AF16: =TechnologyInputs!AE16 -> 1 | AG16: 0.07657744225 | AH16: 0 | AI16: 0 | AJ16: 0 | AL16: ='InitialSize&CostCalc'!BG16 -> 687735 | AM16: ='InitialSize&CostCalc'!BH16 -> 458490000 | AN16: =TechnologyInputs!AL16 -> 15 | AO16: =TechnologyInputs!AM16 -> 0.017 | AP16: =TechnologyInputs!AN16 -> 0 | AQ16: =TechnologyInputs!AP16 -> 0.9 | AR16: 0.106352783 | AS16: 76.21267691 | AT16: 12.18224358 | AU16: 0 | AW16: ='InitialSize&CostCalc'!BW16 -> 0.1177781171 | AX16: ='InitialSize&CostCalc'!BX16 -> 11777811.71 | AY16: =TechnologyInputs!AW16 -> 20 | AZ16: =TechnologyInputs!AX16 -> 0.02 | BA16: =TechnologyInputs!AY16 -> 10 | BB16: =TechnologyInputs!AZ16 -> 1 | BC16: 0.09075639536 | BD16: 1.670668695 | BE16: 0.3681655026 | BF16: 10 | BH16: 64.78780969 | BI16: 165.2215644 | BN16: 64.78780969 | BO16: 0 | BP16: 88.39492049 | BQ16: 12.0388342 | BR16: 165.2215644
A17: =TechnologyInputs!A17 -> 7 | B17: =TechnologyInputs!B17 -> Wind | C17: =TechnologyInputs!C17 -> na | D17: =TechnologyInputs!D17 -> Hydro Dam | E17: =TechnologyInputs!E17 -> Hydro turbine | G17: ='InitialSize&CostCalc'!G17 -> 100 | H17: ='InitialSize&CostCalc'!H17 -> 750 | I17: ='InitialSize&CostCalc'!I17 -> 181.6201916 | J17: ='InitialSize&CostCalc'!J17 -> 125 | K17: =TechnologyInputs!K17 -> 0.5733470213 | M17: ='InitialSize&CostCalc'!Z17 -> 2.053714553 | O17: =TechnologyInputs!P17 -> 0.38 | P17: =TechnologyInputs!R17 -> 30 | Q17: =TechnologyInputs!S17 -> 0.02 | R17: =TechnologyInputs!T17 -> 0 | S17: =TechnologyInputs!U17 -> 0 | T17: 0.07657744225 | U17: 47.24471509 | V17: 12.33906845 | W17: 0 | X17: 0 | Y17: 59.58378354 | AA17: ='InitialSize&CostCalc'!AP17 -> 0 | AB17: ='InitialSize&CostCalc'!AQ17 -> 0 | AC17: =TechnologyInputs!AB17 -> 30 | AD17: =TechnologyInputs!AC17 -> 0 | AE17: =TechnologyInputs!AD17 -> 0 | AF17: =TechnologyInputs!AE17 -> 1 | AG17: 0.07657744225 | AH17: 0 | AI17: 0 | AJ17: 0 | AL17: ='InitialSize&CostCalc'!BG17 -> 42602.75836 | AM17: ='InitialSize&CostCalc'!BH17 -> 31952068.77 | AN17: =TechnologyInputs!AL17 -> 30 | AO17: =TechnologyInputs!AM17 -> 0.02 | AP17: =TechnologyInputs!AN17 -> 0 | AQ17: =TechnologyInputs!AP17 -> 1 | AR17: 0.07657744225 | AS17: 4.871673475 | AT17: 1.272352101 | AU17: 0 | AW17: ='InitialSize&CostCalc'!BW17 -> 1.84671662 | AX17: ='InitialSize&CostCalc'!BX17 -> 184671662 | AY17: =TechnologyInputs!AW17 -> 30 | AZ17: =TechnologyInputs!AX17 -> 0.02 | BA17: =TechnologyInputs!AY17 -> 0 | BB17: =TechnologyInputs!AZ17 -> 0.8 | BC17: 0.07657744225 | BD17: 28.15655048 | BE17: 7.353745348 | BF17: 0 | BH17: 74.47972943 | BI17: 116.1340508 | BN17: 74.47972943 | BO17: 0 | BP17: 6.144025576 | BQ17: 35.51029583 | BR17: 116.1340508
A18: =TechnologyInputs!A18 -> 8 | B18: =TechnologyInputs!B18 -> Wind | C18: =TechnologyInputs!C18 -> Electrolyser | D18: =TechnologyInputs!D18 -> Cavern | E18: =TechnologyInputs!E18 -> Fuel cell / GT | G18: ='InitialSize&CostCalc'!G18 -> 100 | H18: ='InitialSize&CostCalc'!H18 -> 1052.631579 | I18: ='InitialSize&CostCalc'!I18 -> 212.2266965 | J18: ='InitialSize&CostCalc'!J18 -> 299.8950367 | K18: =TechnologyInputs!K18 -> 0.5392174707 | M18: ='InitialSize&CostCalc'!Z18 -> 2.021978308 | O18: =TechnologyInputs!P18 -> 0.38 | P18: =TechnologyInputs!R18 -> 30 | Q18: =TechnologyInputs!S18 -> 0.02 | R18: =TechnologyInputs!T18 -> 0 | S18: =TechnologyInputs!U18 -> 0 | T18: 0.07657744225 | U18: 46.51463805 | V18: 12.14839166 | W18: 0 | X18: 0 | Y18: 58.66302971 | AA18: ='InitialSize&CostCalc'!AP18 -> 0.5366553861 | AB18: ='InitialSize&CostCalc'!AQ18 -> 113892599.7 | AC18: =TechnologyInputs!AB18 -> 15 | AD18: =TechnologyInputs!AC18 -> 0.02 | AE18: =TechnologyInputs!AD18 -> 0 | AF18: =TechnologyInputs!AE18 -> 0.65 | AG18: 0.106352783 | AH18: 25.64344117 | AI18: 4.822335712 | AJ18: 0 | AL18: ='InitialSize&CostCalc'!BG18 -> 1584.40929 | AM18: ='InitialSize&CostCalc'!BH18 -> 1667799.253 | AN18: =TechnologyInputs!AL18 -> 30 | AO18: =TechnologyInputs!AM18 -> 0.05 | AP18: =TechnologyInputs!AN18 -> 0 | AQ18: =TechnologyInputs!AP18 -> 0.9 | AR18: 0.07657744225 | AS18: 0.2703812493 | AT18: 0.1765410553 | AU18: 0 | AW18: ='InitialSize&CostCalc'!BW18 -> 1.011935535 | AX18: ='InitialSize&CostCalc'!BX18 -> 101193553.5 | AY18: =TechnologyInputs!AW18 -> 30 | AZ18: =TechnologyInputs!AX18 -> 0.03 | BA18: =TechnologyInputs!AY18 -> 0 | BB18: =TechnologyInputs!AZ18 -> 0.57 | BC18: 0.07657744225 | BD18: 16.40535536 | BE18: 6.426966562 | BF18: 0 | BH18: 175.9275145 | BI18: 229.6725356 | BN18: 175.9275145 | BO18: 30.46577688 | BP18: 0.4469223046 | BQ18: 22.83232192 | BR18: 229.6725356
A19: =TechnologyInputs!A19 -> 9 | B19: =TechnologyInputs!B19 -> Grid VRE | C19: =TechnologyInputs!C19 -> na | D19: =TechnologyInputs!D19 -> Batteries | E19: =TechnologyInputs!E19 -> Inverter | G19: ='InitialSize&CostCalc'!G19 -> 100 | H19: ='InitialSize&CostCalc'!H19 -> 666.6666667 | I19: ='InitialSize&CostCalc'!I19 -> 333.3333333 | J19: ='InitialSize&CostCalc'!J19 -> 111.1111111 | K19: =TechnologyInputs!K19 -> 0.8853250107 | M19: ='InitialSize&CostCalc'!Z19 -> 0 | O19: =TechnologyInputs!P19 -> 0.8 | P19: =TechnologyInputs!R19 -> 30 | Q19: =TechnologyInputs!S19 -> 0 | R19: =TechnologyInputs!T19 -> 0 | S19: =TechnologyInputs!U19 -> 65.38928722 | T19: 0.07657744225 | U19: 0 | V19: 0 | W19: 0 | X19: 65.38928722 | Y19: 65.38928722 | AA19: ='InitialSize&CostCalc'!AP19 -> 0 | AB19: ='InitialSize&CostCalc'!AQ19 -> 0 | AC19: =TechnologyInputs!AB19 -> 30 | AD19: =TechnologyInputs!AC19 -> 0 | AE19: =TechnologyInputs!AD19 -> 0 | AF19: =TechnologyInputs!AE19 -> 1 | AG19: 0.07657744225 | AH19: 0 | AI19: 0 | AJ19: 0 | AL19: ='InitialSize&CostCalc'!BG19 -> 687735 | AM19: ='InitialSize&CostCalc'!BH19 -> 458490000 | AN19: =TechnologyInputs!AL19 -> 15 | AO19: =TechnologyInputs!AM19 -> 0.017 | AP19: =TechnologyInputs!AN19 -> 0 | AQ19: =TechnologyInputs!AP19 -> 0.9 | AR19: 0.106352783 | AS19: 62.87411528 | AT19: 10.05013625 | AU19: 0 | AW19: ='InitialSize&CostCalc'!BW19 -> 0.1177781171 | AX19: ='InitialSize&CostCalc'!BX19 -> 11777811.71 | AY19: =TechnologyInputs!AW19 -> 20 | AZ19: =TechnologyInputs!AX19 -> 0.02 | BA19: =TechnologyInputs!AY19 -> 10 | BB19: =TechnologyInputs!AZ19 -> 1 | BC19: 0.09075639536 | BD19: 1.37827223 | BE19: 0.3037300511 | BF19: 10 | BH19: 72.65476358 | BI19: 157.2610174 | BN19: 72.65476358 | BO19: 0 | BP19: 72.92425153 | BQ19: 11.68200228 | BR19: 157.2610174
A20: =TechnologyInputs!A20 -> 10 | B20: =TechnologyInputs!B20 -> Grid VRE | C20: =TechnologyInputs!C20 -> na | D20: =TechnologyInputs!D20 -> Hydro Dam | E20: =TechnologyInputs!E20 -> Hydro turbine | G20: ='InitialSize&CostCalc'!G20 -> 100 | H20: ='InitialSize&CostCalc'!H20 -> 750 | I20: ='InitialSize&CostCalc'!I20 -> 375 | J20: ='InitialSize&CostCalc'!J20 -> 125 | K20: =TechnologyInputs!K20 -> 0.8937725522 | M20: ='InitialSize&CostCalc'!Z20 -> 0 | O20: =TechnologyInputs!P20 -> 0.8 | P20: =TechnologyInputs!R20 -> 30 | Q20: =TechnologyInputs!S20 -> 0 | R20: =TechnologyInputs!T20 -> 0 | S20: =TechnologyInputs!U20 -> 65.38928722 | T20: 0.07657744225 | U20: 0 | V20: 0 | W20: 0 | X20: 65.38928722 | Y20: 65.38928722 | AA20: ='InitialSize&CostCalc'!AP20 -> 0 | AB20: ='InitialSize&CostCalc'!AQ20 -> 0 | AC20: =TechnologyInputs!AB20 -> 30 | AD20: =TechnologyInputs!AC20 -> 0 | AE20: =TechnologyInputs!AD20 -> 0 | AF20: =TechnologyInputs!AE20 -> 1 | AG20: 0.07657744225 | AH20: 0 | AI20: 0 | AJ20: 0 | AL20: ='InitialSize&CostCalc'!BG20 -> 42602.75836 | AM20: ='InitialSize&CostCalc'!BH20 -> 31952068.77 | AN20: =TechnologyInputs!AL20 -> 30 | AO20: =TechnologyInputs!AM20 -> 0.02 | AP20: =TechnologyInputs!AN20 -> 0 | AQ20: =TechnologyInputs!AP20 -> 1 | AR20: 0.07657744225 | AS20: 3.125134542 | AT20: 0.8162023831 | AU20: 0 | AW20: ='InitialSize&CostCalc'!BW20 -> 1.84671662 | AX20: ='InitialSize&CostCalc'!BX20 -> 184671662 | AY20: =TechnologyInputs!AW20 -> 30 | AZ20: =TechnologyInputs!AX20 -> 0.02 | BA20: =TechnologyInputs!AY20 -> 0 | BB20: =TechnologyInputs!AZ20 -> 0.8 | BC20: 0.07657744225 | BD20: 18.06217288 | BE20: 4.717361235 | BF20: 0 | BH20: 81.73660903 | BI20: =AH20+AI20+AJ20+AS20+AT20+AU20+BD20+BE20+BF20+BH20 -> 108.4574801 | BN20: 81.73660903 | BO20: 0 | BP20: 3.941336926 | BQ20: 22.77953411 | BR20: 108.4574801
A21: =TechnologyInputs!A21 -> 11 | B21: =TechnologyInputs!B21 -> Grid VRE | C21: =TechnologyInputs!C21 -> Electrolyser | D21: =TechnologyInputs!D21 -> Hydrogen | E21: =TechnologyInputs!E21 -> Fuel cell / GT | G21: ='InitialSize&CostCalc'!G21 -> 100 | H21: ='InitialSize&CostCalc'!H21 -> 1052.631579 | I21: ='InitialSize&CostCalc'!I21 -> 899.6851102 | J21: ='InitialSize&CostCalc'!J21 -> 299.8950367 | K21: =TechnologyInputs!K21 -> 0.9400259912 | M21: ='InitialSize&CostCalc'!Z21 -> 0 | O21: =TechnologyInputs!P21 -> 0.8 | P21: =TechnologyInputs!R21 -> 30 | Q21: =TechnologyInputs!S21 -> 0 | R21: =TechnologyInputs!T21 -> 0 | S21: =TechnologyInputs!U21 -> 65.38928722 | T21: 0.07657744225 | U21: 0 | V21: 0 | W21: 0 | X21: 65.38928722 | Y21: 65.38928722 | AA21: ='InitialSize&CostCalc'!AP21 -> 0.3479431867 | AB21: ='InitialSize&CostCalc'!AQ21 -> 313039304.3 | AC21: =TechnologyInputs!AB21 -> 15 | AD21: =TechnologyInputs!AC21 -> 0.02 | AE21: =TechnologyInputs!AD21 -> 0 | AF21: =TechnologyInputs!AE21 -> 0.65 | AG21: 0.106352783 | AH21: 40.43000178 | AI21: 7.602998371 | AJ21: 0 | AL21: ='InitialSize&CostCalc'!BG21 -> 1584.40929 | AM21: ='InitialSize&CostCalc'!BH21 -> 1667799.253 | AN21: =TechnologyInputs!AL21 -> 30 | AO21: =TechnologyInputs!AM21 -> 0.05 | AP21: =TechnologyInputs!AN21 -> 0 | AQ21: =TechnologyInputs!AP21 -> 0.9 | AR21: 0.07657744225 | AS21: 0.1550960236 | AT21: 0.1012674354 | AU21: 0 | AW21: ='InitialSize&CostCalc'!BW21 -> 1.011935535 | AX21: ='InitialSize&CostCalc'!BX21 -> 101193553.5 | AY21: =TechnologyInputs!AW21 -> 30 | AZ21: =TechnologyInputs!AX21 -> 0.03 | BA21: =TechnologyInputs!AY21 -> 0 | BB21: =TechnologyInputs!AZ21 -> 0.57 | BC21: 0.07657744225 | BD21: 9.41043578 | BE21: 3.686634929 | BF21: 0 | BH21: 196.0992269 | BI21: 257.4856613 | BN21: 196.0992269 | BO21: 48.03300015 | BP21: 0.256363459 | BQ21: 13.09707071 | BR21: 257.4856613
A22: =TechnologyInputs!A22 -> 12 | B22: =TechnologyInputs!B22 -> Rooftop PV | C22: =TechnologyInputs!C22 -> na | D22: =TechnologyInputs!D22 -> Batteries | E22: =TechnologyInputs!E22 -> Inverter | G22: ='InitialSize&CostCalc'!G22 -> 100 | H22: ='InitialSize&CostCalc'!H22 -> 666.6666667 | I22: ='InitialSize&CostCalc'!I22 -> 197.9621825 | J22: ='InitialSize&CostCalc'!J22 -> 111.1111111 | K22: =TechnologyInputs!K22 -> 0.37684475 | M22: ='InitialSize&CostCalc'!Z22 -> 2 | O22: =TechnologyInputs!P22 -> 0.17 | P22: =TechnologyInputs!R22 -> 25 | Q22: =TechnologyInputs!S22 -> 0.02 | R22: =TechnologyInputs!T22 -> 0 | S22: =TechnologyInputs!U22 -> 0 | T22: 0.08198148108 | U22: 110.1013713 | V22: 26.86005909 | W22: 0 | X22: 0 | Y22: 136.9614304 | AA22: ='InitialSize&CostCalc'!AP22 -> 0 | AB22: ='InitialSize&CostCalc'!AQ22 -> 0 | AC22: =TechnologyInputs!AB22 -> 30 | AD22: =TechnologyInputs!AC22 -> 0 | AE22: =TechnologyInputs!AD22 -> 0 | AF22: =TechnologyInputs!AE22 -> 1 | AG22: 0.07657744225 | AH22: 0 | AI22: 0 | AJ22: 0 | AL22: ='InitialSize&CostCalc'!BG22 -> 687735 | AM22: ='InitialSize&CostCalc'!BH22 -> 458490000 | AN22: =TechnologyInputs!AL22 -> 15 | AO22: =TechnologyInputs!AM22 -> 0.017 | AP22: =TechnologyInputs!AN22 -> 0 | AQ22: =TechnologyInputs!AP22 -> 0.9 | AR22: 0.106352783 | AS22: 147.7107663 | AT22: 23.61088217 | AU22: 0 | AW22: ='InitialSize&CostCalc'!BW22 -> 0.1177781171 | AX22: ='InitialSize&CostCalc'!BX22 -> 11777811.71 | AY22: =TechnologyInputs!AW22 -> 20 | AZ22: =TechnologyInputs!AX22 -> 0.02 | BA22: =TechnologyInputs!AY22 -> 10 | BB22: =TechnologyInputs!AZ22 -> 1 | BC22: 0.09075639536 | BD22: 3.237988261 | BE22: 0.7135559424 | BF22: 10 | BH22: 152.1793671 | BI22: 337.4525598 | BN22: 152.1793671 | BO22: 0 | BP22: 171.3216484 | BQ22: 13.9515442 | BR22: 337.4525598
A23: =TechnologyInputs!A23 -> 13 | B23: =TechnologyInputs!B23 -> Conc. Solar | C23: =TechnologyInputs!C23 -> na | D23: =TechnologyInputs!D23 -> Molten Salt | E23: =TechnologyInputs!E23 -> Steam turbine | G23: ='InitialSize&CostCalc'!G23 -> 100 | H23: ='InitialSize&CostCalc'!H23 -> 1428.571429 | I23: ='InitialSize&CostCalc'!I23 -> 654.3054086 | J23: ='InitialSize&CostCalc'!J23 -> 238.0952381 | K23: =TechnologyInputs!K23 -> 0.4343324126 | M23: ='InitialSize&CostCalc'!Z23 -> 0.4560315666 | O23: =TechnologyInputs!P23 -> 0.187 | P23: =TechnologyInputs!R23 -> 30 | Q23: =TechnologyInputs!S23 -> 0.02 | R23: =TechnologyInputs!T23 -> 0 | S23: =TechnologyInputs!U23 -> 0 | T23: 0.07657744225 | U23: 21.3181763 | V23: 5.567743103 | W23: 0 | X23: 0 | Y23: 26.8859194 | AA23: ='InitialSize&CostCalc'!AP23 -> 0 | AB23: ='InitialSize&CostCalc'!AQ23 -> 0 | AC23: =TechnologyInputs!AB23 -> 30 | AD23: =TechnologyInputs!AC23 -> 0 | AE23: =TechnologyInputs!AD23 -> 0 | AF23: =TechnologyInputs!AE23 -> 1 | AG23: 0.07657744225 | AH23: 0 | AI23: 0 | AJ23: 0 | AL23: ='InitialSize&CostCalc'!BG23 -> 26001.55981 | AM23: ='InitialSize&CostCalc'!BH23 -> 37145085.45 | AN23: =TechnologyInputs!AL23 -> 30 | AO23: =TechnologyInputs!AM23 -> 0.02 | AP23: =TechnologyInputs!AN23 -> 0 | AQ23: =TechnologyInputs!AP23 -> 1 | AR23: 0.07657744225 | AS23: 7.476113252 | AT23: 1.9525628 | AU23: 0 | AW23: ='InitialSize&CostCalc'!BW23 -> 2.4 | AX23: ='InitialSize&CostCalc'!BX23 -> 240000000 | AY23: =TechnologyInputs!AW23 -> 30 | AZ23: =TechnologyInputs!AX23 -> 0.02 | BA23: =TechnologyInputs!AY23 -> 0 | BB23: =TechnologyInputs!AZ23 -> 0.42 | BC23: 0.07657744225 | BD23: 48.30429541 | BE23: 12.61580277 | BF23: 0 | BH23: =Y23/(BB23*AQ23*AF23) -> 64.01409381 | BI23: 134.362868 | BN23: 64.01409381 | BO23: 0 | BP23: 9.428676052 | BQ23: 60.92009819 | BR23: 134.362868
A24: =TechnologyInputs!A24 -> 14 | B24: =TechnologyInputs!B24 -> Biomass+AD | C24: =TechnologyInputs!C24 -> Digestor | D24: =TechnologyInputs!D24 -> Gas accumulator | E24: =TechnologyInputs!E24 -> Turbine /eng. | G24: ='InitialSize&CostCalc'!G24 -> 100 | H24: ='InitialSize&CostCalc'!H24 -> 1470.588235 | I24: ='InitialSize&CostCalc'!I24 -> 81.69934641 | J24: ='InitialSize&CostCalc'!J24 -> 294.1176471 | K24: =TechnologyInputs!K24 -> 0.25 | M24: ='InitialSize&CostCalc'!Z24 -> 0 | O24: =TechnologyInputs!P24 -> 1 | P24: =TechnologyInputs!R24 -> 20 | Q24: =TechnologyInputs!S24 -> 0 | R24: =TechnologyInputs!T24 -> 0 | S24: =TechnologyInputs!U24 -> 0 | T24: 0.09075639536 | U24: 0 | V24: 0 | W24: 0 | X24: 0 | Y24: 0 | AA24: ='InitialSize&CostCalc'!AP24 -> 0.93294 | AB24: ='InitialSize&CostCalc'!AQ24 -> 76220588.24 | AC24: =TechnologyInputs!AB24 -> 20 | AD24: =TechnologyInputs!AC24 -> 0.065 | AE24: =TechnologyInputs!AD24 -> 0 | AF24: =TechnologyInputs!AE24 -> 1 | AG24: 0.09075639536 | AH24: 31.58678466 | AI24: 22.62254902 | AJ24: 0 | AL24: ='InitialSize&CostCalc'!BG24 -> 7719.593 | AM24: ='InitialSize&CostCalc'!BH24 -> 11352342.65 | AN24: =TechnologyInputs!AL24 -> 20 | AO24: =TechnologyInputs!AM24 -> 0.065 | AP24: =TechnologyInputs!AN24 -> 0 | AQ24: =TechnologyInputs!AP24 -> 1 | AR24: 0.09075639536 | AS24: 4.704555696 | AT24: 3.369416767 | AU24: 0 | AW24: ='InitialSize&CostCalc'!BW24 -> 0.6006 | AX24: ='InitialSize&CostCalc'!BX24 -> 60060000 | AY24: =TechnologyInputs!AW24 -> 20 | AZ24: =TechnologyInputs!AX24 -> 0.065 | BA24: =TechnologyInputs!AY24 -> 0 | BB24: =TechnologyInputs!AZ24 -> 0.34 | BC24: 0.09075639536 | BD24: 24.88963062 | BE24: 17.8260274 | BF24: 0 | BH24: 0 | BI24: 104.9989642 | BN24: 0 | BO24: 54.20933368 | BP24: 8.073972464 | BQ24: 42.71565801 | BR24: 104.9989642
A25: =TechnologyInputs!A25 -> 15 | B25: =TechnologyInputs!B25 -> Dry Biomass $5/GJ | C25: =TechnologyInputs!C25 -> na | D25: =TechnologyInputs!D25 -> Depot | E25: =TechnologyInputs!E25 -> Boiler&Turbine | G25: ='InitialSize&CostCalc'!G25 -> 100 | H25: ='InitialSize&CostCalc'!H25 -> 66176.47059 | I25: ='InitialSize&CostCalc'!I25 -> 122.5490196 | J25: ='InitialSize&CostCalc'!J25 -> 416.6666667 | K25: =TechnologyInputs!K25 -> 0.25 | M25: ='InitialSize&CostCalc'!Z25 -> 0 | O25: =TechnologyInputs!P25 -> 0.5 | P25: =TechnologyInputs!R25 -> 25 | Q25: =TechnologyInputs!S25 -> 0 | R25: =TechnologyInputs!T25 -> 0 | S25: =TechnologyInputs!U25 -> 18 | T25: 0.08198148108 | U25: 0 | V25: 0 | W25: 0 | X25: 18 | Y25: 18 | AA25: ='InitialSize&CostCalc'!AP25 -> 0 | AB25: ='InitialSize&CostCalc'!AQ25 -> 0 | AC25: =TechnologyInputs!AB25 -> 25 | AD25: =TechnologyInputs!AC25 -> 0 | AE25: =TechnologyInputs!AD25 -> 0 | AF25: =TechnologyInputs!AE25 -> 1 | AG25: 0.08198148108 | AH25: 0 | AI25: 0 | AJ25: 0 | AL25: ='InitialSize&CostCalc'!BG25 -> 6.7 | AM25: ='InitialSize&CostCalc'!BH25 -> 443382.3529 | AN25: =TechnologyInputs!AL25 -> 25 | AO25: =TechnologyInputs!AM25 -> 0.036 | AP25: =TechnologyInputs!AN25 -> 0 | AQ25: =TechnologyInputs!AP25 -> 1 | AR25: 0.08198148108 | AS25: 0.1659778173 | AT25: 0.07288477035 | AU25: 0 | AW25: ='InitialSize&CostCalc'!BW25 -> 3.40833 | AX25: ='InitialSize&CostCalc'!BX25 -> 340833000 | AY25: =TechnologyInputs!AW25 -> 25 | AZ25: =TechnologyInputs!AX25 -> 0.036 | BA25: =TechnologyInputs!AY25 -> 0 | BB25: =TechnologyInputs!AZ25 -> 0.24 | BC25: 0.08198148108 | BD25: 127.5890143 | BE25: 56.02734247 | BF25: 0 | BH25: 75 | BI25: 258.8552194 | BN25: 75 | BO25: 0 | BP25: 0.2388625876 | BQ25: 183.6163568 | BR25: 258.8552194
A26: =TechnologyInputs!A26 -> 16 | B26: =TechnologyInputs!B26 -> Dry Biomass $2.5/GJ | C26: =TechnologyInputs!C26 -> na | D26: =TechnologyInputs!D26 -> Depot | E26: =TechnologyInputs!E26 -> Boiler&Turbine | G26: ='InitialSize&CostCalc'!G26 -> 100 | H26: ='InitialSize&CostCalc'!H26 -> 66176.47059 | I26: ='InitialSize&CostCalc'!I26 -> 122.5490196 | J26: ='InitialSize&CostCalc'!J26 -> 416.6666667 | K26: =TechnologyInputs!K26 -> 0.25 | M26: ='InitialSize&CostCalc'!Z26 -> 0 | O26: =TechnologyInputs!P26 -> 0.5 | P26: =TechnologyInputs!R26 -> 25 | Q26: =TechnologyInputs!S26 -> 0 | R26: =TechnologyInputs!T26 -> 0 | S26: =TechnologyInputs!U26 -> 9 | T26: =($D$7*(1+$D$7)^P26)/((1+$D$7)^P26-1) -> 0.08198148108 | U26: =M26*1000000*T26/(O26*365*24) -> 0 | V26: =M26*1000000*Q26/(O26*365*24) -> 0 | W26: =R26 -> 0 | X26: =S26 -> 9 | Y26: =SUM(U26:X26) -> 9 | AA26: ='InitialSize&CostCalc'!AP26 -> 0 | AB26: ='InitialSize&CostCalc'!AQ26 -> 0 | AC26: =TechnologyInputs!AB26 -> 25 | AD26: =TechnologyInputs!AC26 -> 0 | AE26: =TechnologyInputs!AD26 -> 0 | AF26: =TechnologyInputs!AE26 -> 1 | AG26: =($D$7*(1+$D$7)^AC26)/((1+$D$7)^AC26-1) -> 0.08198148108 | AH26: =AB26*AG26/(G26*K26*365*24) -> 0 | AI26: =AB26*AD26/(G26*K26*365*24) -> 0 | AJ26: =AE26/(AF26*AQ26*BB26) -> 0 | AL26: ='InitialSize&CostCalc'!BG26 -> 6.7 | AM26: ='InitialSize&CostCalc'!BH26 -> 443382.3529 | AN26: =TechnologyInputs!AL26 -> 25 | AO26: =TechnologyInputs!AM26 -> 0.036 | AP26: =TechnologyInputs!AN26 -> 0 | AQ26: =TechnologyInputs!AP26 -> 1 | AR26: =($D$7*(1+$D$7)^AN26)/((1+$D$7)^AN26-1) -> 0.08198148108 | AS26: =AM26*AR26/(G26*K26*365*24) -> 0.1659778173 | AT26: =AM26*AO26/(G26*K26*365*24) -> 0.07288477035 | AU26: =AP26/(AQ26*BB26) -> 0 | AW26: ='InitialSize&CostCalc'!BW26 -> 3.40833 | AX26: ='InitialSize&CostCalc'!BX26 -> 340833000 | AY26: =TechnologyInputs!AW26 -> 25 | AZ26: =TechnologyInputs!AX26 -> 0.036 | BA26: =TechnologyInputs!AY26 -> 0 | BB26: =TechnologyInputs!AZ26 -> 0.24 | BC26: =($D$7*(1+$D$7)^AY26)/((1+$D$7)^AY26-1) -> 0.08198148108 | BD26: =AX26*BC26/(G26*K26*365*24) -> 127.5890143 | BE26: =AX26*AZ26/(G26*K26*365*24) -> 56.02734247 | BF26: =BA26 -> 0 | BH26: =Y26/(BB26*AQ26*AF26) -> 37.5 | BI26: =AH26+AI26+AJ26+AS26+AT26+AU26+BD26+BE26+BF26+BH26 -> 221.3552194 | BN26: 37.5 | BO26: 0 | BP26: 0.2388625876 | BQ26: 183.6163568 | BR26: 221.3552194
A27: =TechnologyInputs!A27 -> 17 | B27: =TechnologyInputs!B27 -> HSA Geothermal | C27: =TechnologyInputs!C27 -> na | D27: =TechnologyInputs!D27 -> Self | E27: =TechnologyInputs!E27 -> Turbine | G27: ='InitialSize&CostCalc'!G27 -> 100 | H27: ='InitialSize&CostCalc'!H27 -> 0.1 | I27: ='InitialSize&CostCalc'!I27 -> 500 | J27: ='InitialSize&CostCalc'!J27 -> 500 | K27: =TechnologyInputs!K27 -> 0.25 | M27: ='InitialSize&CostCalc'!Z27 -> 0 | O27: =TechnologyInputs!P27 -> 1 | P27: =TechnologyInputs!R27 -> 30 | Q27: =TechnologyInputs!S27 -> 0.02 | R27: =TechnologyInputs!T27 -> 0 | S27: =TechnologyInputs!U27 -> 0 | T27: 0.07657744225 | U27: =M27*1000000*T27/(O27*365*24) -> 0 | V27: 0 | W27: 0 | X27: 0 | Y27: 0 | AA27: ='InitialSize&CostCalc'!AP27 -> 0 | AB27: ='InitialSize&CostCalc'!AQ27 -> 0 | AC27: =TechnologyInputs!AB27 -> 30 | AD27: =TechnologyInputs!AC27 -> 0 | AE27: =TechnologyInputs!AD27 -> 0 | AF27: =TechnologyInputs!AE27 -> 1 | AG27: 0.07657744225 | AH27: 0 | AI27: 0 | AJ27: 0 | AL27: ='InitialSize&CostCalc'!BG27 -> 0 | AM27: ='InitialSize&CostCalc'!BH27 -> 0 | AN27: =TechnologyInputs!AL27 -> 30 | AO27: =TechnologyInputs!AM27 -> 0 | AP27: =TechnologyInputs!AN27 -> 0 | AQ27: =TechnologyInputs!AP27 -> 1 | AR27: 0.07657744225 | AS27: 0 | AT27: 0 | AU27: 0 | AW27: ='InitialSize&CostCalc'!BW27 -> 5.092822525 | AX27: ='InitialSize&CostCalc'!BX27 -> 509282252.5 | AY27: =TechnologyInputs!AW27 -> 30 | AZ27: =TechnologyInputs!AX27 -> 0.02 | BA27: =TechnologyInputs!AY27 -> 0 | BB27: =TechnologyInputs!AZ27 -> 0.2 | BC27: 0.07657744225 | BD27: 178.0800561 | BE27: 46.50979475 | BF27: 0 | BH27: 0 | BI27: 224.5898508 | BN27: 0 | BO27: 0 | BP27: 0 | BQ27: 224.5898508 | BR27: 224.5898508
A28: =TechnologyInputs!A28 -> 18 | B28: =TechnologyInputs!B28 -> EGS Geothermal | C28: =TechnologyInputs!C28 -> na | D28: =TechnologyInputs!D28 -> Self | E28: =TechnologyInputs!E28 -> Turbine | G28: ='InitialSize&CostCalc'!G28 -> 100 | H28: ='InitialSize&CostCalc'!H28 -> 0.1 | I28: ='InitialSize&CostCalc'!I28 -> 500 | J28: ='InitialSize&CostCalc'!J28 -> 500 | K28: =TechnologyInputs!K28 -> 0.25 | M28: ='InitialSize&CostCalc'!Z28 -> 0 | O28: =TechnologyInputs!P28 -> 1 | P28: =TechnologyInputs!R28 -> 30 | Q28: =TechnologyInputs!S28 -> 0.02 | R28: =TechnologyInputs!T28 -> 0 | S28: =TechnologyInputs!U28 -> 0 | T28: 0.07657744225 | U28: =M28*1000000*T28/(O28*365*24) -> 0 | V28: 0 | W28: 0 | X28: 0 | Y28: 0 | AA28: ='InitialSize&CostCalc'!AP28 -> 0 | AB28: ='InitialSize&CostCalc'!AQ28 -> 0 | AC28: =TechnologyInputs!AB28 -> 30 | AD28: =TechnologyInputs!AC28 -> 0 | AE28: =TechnologyInputs!AD28 -> 0 | AF28: =TechnologyInputs!AE28 -> 1 | AG28: 0.07657744225 | AH28: 0 | AI28: 0 | AJ28: 0 | AL28: ='InitialSize&CostCalc'!BG28 -> 0 | AM28: ='InitialSize&CostCalc'!BH28 -> 0 | AN28: =TechnologyInputs!AL28 -> 30 | AO28: =TechnologyInputs!AM28 -> 0 | AP28: =TechnologyInputs!AN28 -> 0 | AQ28: =TechnologyInputs!AP28 -> 1 | AR28: 0.07657744225 | AS28: 0 | AT28: 0 | AU28: 0 | AW28: ='InitialSize&CostCalc'!BW28 -> 12.18770789 | AX28: ='InitialSize&CostCalc'!BX28 -> 1218770789 | AY28: =TechnologyInputs!AW28 -> 30 | AZ28: =TechnologyInputs!AX28 -> 0.02 | BA28: =TechnologyInputs!AY28 -> 0 | BB28: =TechnologyInputs!AZ28 -> 0.2 | BC28: 0.07657744225 | BD28: =AX28*BC28/(G28*K28*365*24) -> 426.1659803 | BE28: 111.3032684 | BF28: 0 | BH28: 0 | BI28: =AH28+AI28+AJ28+AS28+AT28+AU28+BD28+BE28+BF28+BH28 -> 537.4692486 | BN28: 0 | BO28: 0 | BP28: 0 | BQ28: 537.4692486 | BR28: 537.4692486
